Workbook

Sheet Title Page
A1: US EPA, Office of Water, Office of Ground Water & Drinking Water
A2: Work Breakdown Structure (WBS) Model for Granular Activated Carbon (GAC) Treatment
A3: Release Date: August 12, 2014
A4: · This model is designed to assist EPA in estimating national compliance costs for drinking water regulations.
A5: · As such, the costs are intended to be representative of typical facilities.
A6: · The costs, however, do not account for all of the site-specific factors that could affect the cost of any given individual facility.
A7: · Use of this model requires Excel 2007.
A8: · The model should be opened as Read-only, so that any changes you make are saved under a new file name.
A9: · To function properly, macros ("active content") must be enabled. If a security warning appears, click "options" and "enable this content."
A10: · For further information see the following document distributed with this file:
A11: USEPA. 2014. Work Breakdown Structure-Based Cost Models for Drinking Water Treatment Technologies. Office of Water.
A12: · To begin using the model, go to the INPUT sheet.

Sheet Index
A1: INDEX
A2: This page provides an index to all user-adjustable inputs and assumptions. Click on a variable name to go directly to the adjustable cells.
A4: User-adjustable Input or Assumption | B4: Variable Name and Link
A5: 2nd Freundlich constant (1/n) or Bohart and Adams quasi-chemical rate constant (k) | B5: freund_2
A6: Access space per pump for custom designed systems | B6: space_pumps_cust
A7: Access space per pump for pre-engineered packages | B7: space_pumps_pre
A8: Add a redundant pressure vessel per x parallel lines | B8: redund_freq
A9: Add coagulant to holding tank? | B9: coag_res
A10: Additional building after… | B10: add_2nd_building
A11: Additional pH meters (pressure systems) | B11: add_pH_controls
A12: Additional sampling ports | B12: add_ports
A13: Additional turbidity meters (pressure systems) for small systems | B13: add_turb_small_p
A14: Additional turbitidy meters | B14: add_turb
A15: Additional turbitidy meters (pressure systems) | B15: add_turb_p
A16: Additonal pH meters (pressure systems) for small systems | B16: add_pH_controls_small
A17: Additonal turbidity meters for small systems | B17: add_turb_small
A18: Add-on (pre- or post-treatment) | B18: addon_I
A19: Air conditioning EER | B19: EER
A20: Always include NEPA compliance costs? | B20: include_NEPA
A21: Annual contactor materials cost as a percent of capital | B21: Materials_pct
A22: Annual cooling degree days | B22: cool_DD
A23: Annual heating degree days | B23: heat_DD
A24: Apply POTW discharge base charge (i.e., $/month) | B24: POTW_base_fee
A25: Apply POTW discharge TSS charge (i.e., $/lb of TSS over limit below) | B25: POTW_TSS_fee
A26: Apply POTW discharge volume charge (i.e., $/1000 gallons) | B26: POTW_volume_fee
A27: Average annual pan evaporation rate | B27: pan_evap
A28: Average annual precipitation | B28: precip
A29: Average Flow (including bypass) | B29: average_flow_I
A30: Backwash basin depth to volume ratio | B30: back_ratio
A31: Backwash freeboard | B31: back_freeboard
A32: Backwash pump head | B32: back_pump_head
A33: Backwash pumping | B33: no_backwash_I
A34: Backwash storage | B34: no_back_tank_I
A35: Backwash storage volume | B35: back_multiplier
A36: Backwash time | B36: backwash_time
A37: Basin excavation depth above which deeper boreholes are needed | B37: deep_bore_need
A38: Basin freeboard above filter media at full expansion | B38: basin_freeboard
A39: Bedding depth below pipe | B39: bedding_depth
A40: Bedding depth surrounding the pipe | B40: bedding_pct
A41: Borehole depth (pressure systems) | B41: bore_depth_p
A42: Borehole depth for deep basins | B42: bore_depth_max
A43: Borehole depth for shallow basins | B43: bore_depth_min
A44: Borehole needed every x square feet | B44: hole_per_sf
A45: Boreholes per job | B45: hole_per_job
A46: Breakthrough concentration | B46: C_b
A47: Builder's risk insurance percentage | B47: br_ins_pct
A48: Building height (gravity systems) | B48: Building_height_g
A49: Carbon expansion during backwash | B49: bed_expansion
A50: Carbon life, 1st Freundlich constant (Kf), or Sorption capacity | B50: freund_1
A51: Characteristics of evaporation pond solids or Characteristics of holding tank solids | B51: solids_haz_I
A52: Chemical storage height | B52: storage_height
A53: Chemical tank mixer horsepower | B53: cmix_hp_per
A54: Clean holding tanks/basins when solids accumulation =x% of capacity | B54: htank_clean_pct
A55: Clerical LOE as a percent of average technical labor | B55: Clerical_percent
A56: Coefficient of passive pressure | B56: Coeff_Kp
A57: Component level | B57: component_level_I
A58: Computer workstations per x operators | B58: workstation_ratio
A59: Concrete pad thickness | B59: pad_thick
A60: Concrete pad thickness for small systems | B60: pad_thick_small
A61: Concrete thickness for basins | B61: conc_thick
A62: Contaminant removal input type | B62: EBCT_type_I
A63: Cooling table for buildings 500 square feet or greater | B63: cooling_table
A64: Cooling table for buildings less than 500 ft2 | B64: cooling_table_shed
A65: Cooling ventilation/infiltration load | B65: cool_viload
A66: Cost estimating method | B66: curve
A67: Cost for parts & maintenance for pumps | B67: booster_pump_maintenance
A68: Days of coagulant storage | B68: cstore_days
A69: Days of winter (i.e., days of storage during periods with no net evaporation) | B69: winter_days
A70: Default number of backwash basins | B70: back_basins_default
A71: Default number of residuals basins | B71: hbasins_default
A72: Design Flow (including bypass) | B72: design_flow_I
A73: Design safety factor for standby power | B73: std_safety_factor
A74: Desired effluent concentration | B74: EBCT_O
A75: Discharge option for spent backwash | B75: res_s2_opt_I
A76: Disposal method for non-hazardous secondary solids | B76: solids_method
A77: Distance between drain field trenches | B77: sept_trench_dist
A78: Distance to discharge or recycle point | B78: add_res_pipe_length
A79: Distance to discharge point for TCE and PCE | B79: add_res_pipe_length_TCE
A80: Drive controllers per backwash pump | B80: S_back_pump
A81: Drive controllers per booster pump | B81: S_booster_pump
A82: Drive controllers per coagulant feeder | B82: S_feeder
A83: Drive controllers per coagulant mixer | B83: S_mixer
A84: Drive controllers per eductor | B84: S_eductor
A85: Drive controllers per residuals pump | B85: S_res_pump
A86: Drive controllers per slurry pump system | B86: S_slurry
A87: Electric resistance heating efficiency | B87: resist_eff
A88: Electrical percentage | B88: elect_pct
A89: Engineering percentage for large systems | B89: eng_pct_large
A90: Engineering percentage for medium systems | B90: eng_pct_medium
A91: Engineering percentage for small systems | B91: eng_pct_small
A92: Ethernet modules | B92: plc_ethernet_standalone
A93: Ethernet modules in add-on scenario | B93: plc_ethernet_addon
A94: Evaporation pond dike cross-sectional area | B94: dike_xsection
A95: Evaporation pond freeboard | B95: ep_freeboard
A96: Evaporation pond safety factor | B96: ep_safety_factor
A97: Evaporation pond solids density | B97: ep_solids_density
A98: Evaporation pond solids removal frequency | B98: dredging_freq
A99: Evaporation ratio | B99: evap_ratio
A100: Ferric chloride bulk density | B100: coag_density
A101: Ferric chloride dosage | B101: coag_dose
A102: Ferric chloride sludge production factor | B102: coag_spf
A103: Financing percentage | B103: finance_pct
A104: Financing percentage for small systems | B104: finance_pct_small
A105: Fire Buffer for Buildings | B105: fire_buffer
A106: Flow meters for backwash line | B106: tot_fm_back
A107: Flow meters for influent and treated water line | B107: fm_in
A108: Flow meters for influent and treated water line in add-on scenario | B108: fm_in_addon
A109: Flow meters for process line per vessel | B109: fm_proc
A110: Flow meters for residuals line | B110: tot_fm_res
A111: Frost depth | B111: frost
A112: GAC bulk density | B112: GAC_density
A113: GAC transfer method | B113: transfer_method_I
A114: Gravity contact basin length | B114: basin_length
A115: Gravity contact basin width | B115: basin_width
A116: Gravity contact bed depth | B116: basin_op_depth
A117: Head loss sensors per contactor | B117: head_tank
A118: Head loss sensors per contactor for small systems | B118: head_tank_small
A119: Heat pump cooling mode EER | B119: hp_EER
A120: Heat pump heating coefficient of performance | B120: COP
A121: Heating Oil Heat Content | B121: diesel_heat_content
A122: Heating table for buildings 500 square feet or greater | B122: heating_table
A123: Heating table for buildings less than 500 ft2 | B123: heating_table_shed
A124: Heating ventilation/infiltration load | B124: heat_viload
A125: High/Low alarms per backwash tank | B125: alarm_back
A126: High/Low alarms per holding tank/basin | B126: alarm_res
A127: Holding basin depth to volume ratio | B127: holding_ratio
A128: Holding basin freeboard | B128: holding_freeboard
A129: Holding tank for spent backwash | B129: res_s1_opt_I
A130: Holding tank/basin capacity safety factor | B130: res_cap_factor
A131: Holding tank/basin mixer horsepower (if coagulant is used) | B131: hmix_hp_per
A132: Holding tank/basin solids density | B132: ht_solids_density
A133: Holding tank/basin solids transfer method | B133: res_transfer_method
A134: Holding tank/basin suspended solids removal efficiency with coagulant | B134: coag_TSSrem
A135: Holding tank/basin suspended solids removal efficiency without coagulant | B135: htank_TSSrem
A136: I/O port table | B136: port_table
A137: Include architectural fee for small systems? | B137: include_arch_small
A138: Include architectural fee? | B138: include_arch
A139: Include buildings in total capital cost? | B139: include_buildings
A140: Include concrete pad in total capital cost? | B140: include_pad
A141: Include construction management cost for pre-engineered packages? | B141: include_cm_pre
A142: Include construction management cost? | B142: include_cm
A143: Include contingency costs for high cost systems? | B143: include_conting_high
A144: Include contingency costs for low cost systems? | B144: include_conting_low
A145: Include contingency costs for medium cost systems? | B145: include_conting_medium
A146: Include cooling in standby power | B146: need_cool
A147: Include geotechnical costs for high cost gravity systems? | B147: include_geo_high_g
A148: Include geotechnical costs for high cost pressure systems? | B148: include_geo_high
A149: Include geotechnical costs for low cost gravity systems? | B149: include_geo_low_g
A150: Include geotechnical costs for low cost pressure systems? | B150: include_geo_low
A151: Include geotechnical costs for medium cost gravity systems? | B151: include_geo_medium_g
A152: Include geotechnical costs for medium cost pressure systems? | B152: include_geo_medium
A153: Include heating in standby power | B153: need_heat
A154: Include land costs? | B154: include_land
A155: Include performance bond cost? | B155: include_bond
A156: Include permit costs? | B156: include_permits
A157: Include pilot study costs in add-on scenario? | B157: include_pilot_addon
A158: Include pilot study costs? | B158: include_pilot
A159: Include sitework costs? | B159: include_sitework
A160: Include standby power costs for small systems? | B160: include_standby_small
A161: Include standby power costs? | B161: include_standby
A162: Include yard piping costs? | B162: include_yardpipe
A163: Influent concentration | B163: C_0
A164: Installation, Transportatation, and O&P percentage | B164: inst_pct
A165: Instrumentation and control percentage | B165: i_c_pct
A166: Interval Between backwashes | B166: back_interval_I
A167: Labor hours per week for contact basins | B167: Weekly_labor
A168: Legal percentage | B168: legal_pct
A169: Level switch/alarms per GAC basin | B169: level_switch_g
A170: Level switch/alarms per GAC basin for small systems | B170: level_switch_small_g
A171: Level switch/alarms per pressure vessel | B171: level_switch
A172: Level swithch/alarms per pressure vessel for small systems | B172: level_switch_small
A173: Lighting power per sf, high-quality buildings | B173: lighting_power_high
A174: Lighting power per sf, low-quality buildings and sheds | B174: lighting_power_low
A175: Lighting power per sf, mid-quality buildings | B175: lighting_power_mid
A176: Linear feet bored per day | B176: hole_per_day
A177: Loading rate maximum | B177: load_max
A178: Loading rate minimum | B178: load_min
A179: Long term acceptance rate | B179: sept_LTAR
A180: Maintenance LOE for chemical supply systems | B180: uloe_chem_maint
A181: Maintenance LOE for instruments (includes calibration) | B181: uloe_inst_maint
A182: Maintenance LOE for pumps | B182: uloe_pump_maint
A183: Maintenance LOE for valves | B183: uloe_valve_maint
A184: Makeup carbon for off-site regeneration | B184: makeup_rate_off
A185: Makeup carbon for on-site regeneration | B185: makeup_rate
A186: Management option for spent carbon | B186: regen_type_I
A187: Mangerial LOE as a percent of average technical labor | B187: Manager_percent
A188: Maximum access space per vessel or tank for custom designed systems | B188: max_space_vessels_cust
A189: Maximum access space per vessel or tank for pre-engineered systems | B189: max_space_vessels_pre
A190: Maximum basin length | B190: max_length_g
A191: Maximum basin width | B191: max_width
A192: Maximum bed depth (gravity) | B192: max_depth
A193: Maximum bed depth (pressure) | B193: max_bed_depth
A194: Maximum distribution pipe connections per distribution box | B194: sept_dist_connections
A195: Maximum evaporation pond cell area | B195: max_ep_cell_area
A196: Maximum hazardous waste shipment size | B196: max_haz_ship
A197: Maximum radioactive (non-hazardous) waste shipment size | B197: max_rad_ship
A198: Maximum radioactive hazardous waste shipment size | B198: max_hazrad_ship
A199: Maximum septic drain field trench length | B199: sept_max_trench_l
A200: Maximum vessel diameter | B200: max_diam_override
A201: Maximum vessel height (circular vessels) | B201: max_height
... 165 more rows

Sheet INPUT
A1: GRANULAR ACTIVATED CARBON (GAC) SYSTEM DESIGN AND COST INPUT
E3: STEP 1
E4: Select Contaminant | H4: =IF(OR(contam_type=1,contam_type=6,contam_type=18),"To estimate costs for other contaminants, enter input parameters manually",IF(contam_type=2,"Standard designs for atrazine assume treatment of unfiltered surface water",IF(contam_type=18,"","Standard designs for this contaminant assume treatment of groundwater"))) -> Standard designs for atrazine assume treatment of unfiltered surface water
H5: =IF(OR(contam_type=1,contam_type=6,contam_type=18),"","Users wishing to simulate the cost impact of different water quality should adjust the appropriate inputs manually (e.g., bed volumes before breakthrough and backwash frequency)") -> Users wishing to simulate the cost impact of different water quality should adjust the appropriate inputs manually (e.g., bed volumes before breakthrough and backwash frequency)
E6: STEP 2
E7: Select Design Type
C9: =CHOOSE(contam_type,'Standard Inputs'!AV9,'Standard Inputs'!AV25,'Standard Inputs'!AV41,'Standard Inputs'!AV57,'Standard Inputs'!AV73,'Standard Inputs'!AV89,'Standard Inputs'!AV105,'Standard Inputs'!AV121,'Standard Inputs'!AV137,'Standard Inputs'!AV153,'Standard Inputs'!AV169,'Standard Inputs'!AV185,'Standard Inputs'!AV201,'Standard Inputs'!AV217,'Standard Inputs'!AV233,'Standard Inputs'!AV249,'Standard Inputs'!AV265,'Standard Inputs'!AV281) -> FALSE | D9: =CHOOSE(contam_type,'Standard Inputs'!AW9,'Standard Inputs'!AW25,'Standard Inputs'!AW41,'Standard Inputs'!AW57,'Standard Inputs'!AW73,'Standard Inputs'!AW89,'Standard Inputs'!AW105,'Standard Inputs'!AW121,'Standard Inputs'!AW137,'Standard Inputs'!AW153,'Standard Inputs'!AW169,'Standard Inputs'!AW185,'Standard Inputs'!AW201,'Standard Inputs'!AW217,'Standard Inputs'!AW233,'Standard Inputs'!AW249,'Standard Inputs'!AW265,'Standard Inputs'!AW281) -> FALSE | E9: STEP 3 | H9: =IF(C9,"<- Using this design",IF(D9,"<- You modified this design","")) -> 
C10: =CHOOSE(contam_type,'Standard Inputs'!AV10,'Standard Inputs'!AV26,'Standard Inputs'!AV42,'Standard Inputs'!AV58,'Standard Inputs'!AV74,'Standard Inputs'!AV90,'Standard Inputs'!AV106,'Standard Inputs'!AV122,'Standard Inputs'!AV138,'Standard Inputs'!AV154,'Standard Inputs'!AV170,'Standard Inputs'!AV186,'Standard Inputs'!AV202,'Standard Inputs'!AV218,'Standard Inputs'!AV234,'Standard Inputs'!AV250,'Standard Inputs'!AV266,'Standard Inputs'!AV282) -> FALSE | D10: =CHOOSE(contam_type,'Standard Inputs'!AW10,'Standard Inputs'!AW26,'Standard Inputs'!AW42,'Standard Inputs'!AW58,'Standard Inputs'!AW74,'Standard Inputs'!AW90,'Standard Inputs'!AW106,'Standard Inputs'!AW122,'Standard Inputs'!AW138,'Standard Inputs'!AW154,'Standard Inputs'!AW170,'Standard Inputs'!AW186,'Standard Inputs'!AW202,'Standard Inputs'!AW218,'Standard Inputs'!AW234,'Standard Inputs'!AW250,'Standard Inputs'!AW266,'Standard Inputs'!AW282) -> FALSE | E10: Select one of the eight standard designs at right | H10: =IF(C10,"<- Using this design",IF(D10,"<- You modified this design","")) -> 
C11: =CHOOSE(contam_type,'Standard Inputs'!AV11,'Standard Inputs'!AV27,'Standard Inputs'!AV43,'Standard Inputs'!AV59,'Standard Inputs'!AV75,'Standard Inputs'!AV91,'Standard Inputs'!AV107,'Standard Inputs'!AV123,'Standard Inputs'!AV139,'Standard Inputs'!AV155,'Standard Inputs'!AV171,'Standard Inputs'!AV187,'Standard Inputs'!AV203,'Standard Inputs'!AV219,'Standard Inputs'!AV235,'Standard Inputs'!AV251,'Standard Inputs'!AV267,'Standard Inputs'!AV283) -> FALSE | D11: =CHOOSE(contam_type,'Standard Inputs'!AW11,'Standard Inputs'!AW27,'Standard Inputs'!AW43,'Standard Inputs'!AW59,'Standard Inputs'!AW75,'Standard Inputs'!AW91,'Standard Inputs'!AW107,'Standard Inputs'!AW123,'Standard Inputs'!AW139,'Standard Inputs'!AW155,'Standard Inputs'!AW171,'Standard Inputs'!AW187,'Standard Inputs'!AW203,'Standard Inputs'!AW219,'Standard Inputs'!AW235,'Standard Inputs'!AW251,'Standard Inputs'!AW267,'Standard Inputs'!AW283) -> FALSE
C12: =CHOOSE(contam_type,'Standard Inputs'!AV12,'Standard Inputs'!AV28,'Standard Inputs'!AV44,'Standard Inputs'!AV60,'Standard Inputs'!AV76,'Standard Inputs'!AV92,'Standard Inputs'!AV108,'Standard Inputs'!AV124,'Standard Inputs'!AV140,'Standard Inputs'!AV156,'Standard Inputs'!AV172,'Standard Inputs'!AV188,'Standard Inputs'!AV204,'Standard Inputs'!AV220,'Standard Inputs'!AV236,'Standard Inputs'!AV252,'Standard Inputs'!AV268,'Standard Inputs'!AV284) -> FALSE | D12: =CHOOSE(contam_type,'Standard Inputs'!AW12,'Standard Inputs'!AW28,'Standard Inputs'!AW44,'Standard Inputs'!AW60,'Standard Inputs'!AW76,'Standard Inputs'!AW92,'Standard Inputs'!AW108,'Standard Inputs'!AW124,'Standard Inputs'!AW140,'Standard Inputs'!AW156,'Standard Inputs'!AW172,'Standard Inputs'!AW188,'Standard Inputs'!AW204,'Standard Inputs'!AW220,'Standard Inputs'!AW236,'Standard Inputs'!AW252,'Standard Inputs'!AW268,'Standard Inputs'!AW284) -> FALSE | E12: OR
C13: =CHOOSE(contam_type,'Standard Inputs'!AV13,'Standard Inputs'!AV29,'Standard Inputs'!AV45,'Standard Inputs'!AV61,'Standard Inputs'!AV77,'Standard Inputs'!AV93,'Standard Inputs'!AV109,'Standard Inputs'!AV125,'Standard Inputs'!AV141,'Standard Inputs'!AV157,'Standard Inputs'!AV173,'Standard Inputs'!AV189,'Standard Inputs'!AV205,'Standard Inputs'!AV221,'Standard Inputs'!AV237,'Standard Inputs'!AV253,'Standard Inputs'!AV269,'Standard Inputs'!AV285) -> FALSE | D13: =CHOOSE(contam_type,'Standard Inputs'!AW13,'Standard Inputs'!AW29,'Standard Inputs'!AW45,'Standard Inputs'!AW61,'Standard Inputs'!AW77,'Standard Inputs'!AW93,'Standard Inputs'!AW109,'Standard Inputs'!AW125,'Standard Inputs'!AW141,'Standard Inputs'!AW157,'Standard Inputs'!AW173,'Standard Inputs'!AW189,'Standard Inputs'!AW205,'Standard Inputs'!AW221,'Standard Inputs'!AW237,'Standard Inputs'!AW253,'Standard Inputs'!AW269,'Standard Inputs'!AW285) -> FALSE
C14: =CHOOSE(contam_type,'Standard Inputs'!AV14,'Standard Inputs'!AV30,'Standard Inputs'!AV46,'Standard Inputs'!AV62,'Standard Inputs'!AV78,'Standard Inputs'!AV94,'Standard Inputs'!AV110,'Standard Inputs'!AV126,'Standard Inputs'!AV142,'Standard Inputs'!AV158,'Standard Inputs'!AV174,'Standard Inputs'!AV190,'Standard Inputs'!AV206,'Standard Inputs'!AV222,'Standard Inputs'!AV238,'Standard Inputs'!AV254,'Standard Inputs'!AV270,'Standard Inputs'!AV286) -> FALSE | D14: =CHOOSE(contam_type,'Standard Inputs'!AW14,'Standard Inputs'!AW30,'Standard Inputs'!AW46,'Standard Inputs'!AW62,'Standard Inputs'!AW78,'Standard Inputs'!AW94,'Standard Inputs'!AW110,'Standard Inputs'!AW126,'Standard Inputs'!AW142,'Standard Inputs'!AW158,'Standard Inputs'!AW174,'Standard Inputs'!AW190,'Standard Inputs'!AW206,'Standard Inputs'!AW222,'Standard Inputs'!AW238,'Standard Inputs'!AW254,'Standard Inputs'!AW270,'Standard Inputs'!AW286) -> FALSE | E14: Select "CLEAR FOR MANUAL ENTRY"
C15: =CHOOSE(contam_type,'Standard Inputs'!AV15,'Standard Inputs'!AV31,'Standard Inputs'!AV47,'Standard Inputs'!AV63,'Standard Inputs'!AV79,'Standard Inputs'!AV95,'Standard Inputs'!AV111,'Standard Inputs'!AV127,'Standard Inputs'!AV143,'Standard Inputs'!AV159,'Standard Inputs'!AV175,'Standard Inputs'!AV191,'Standard Inputs'!AV207,'Standard Inputs'!AV223,'Standard Inputs'!AV239,'Standard Inputs'!AV255,'Standard Inputs'!AV271,'Standard Inputs'!AV287) -> FALSE | D15: =CHOOSE(contam_type,'Standard Inputs'!AW15,'Standard Inputs'!AW31,'Standard Inputs'!AW47,'Standard Inputs'!AW63,'Standard Inputs'!AW79,'Standard Inputs'!AW95,'Standard Inputs'!AW111,'Standard Inputs'!AW127,'Standard Inputs'!AW143,'Standard Inputs'!AW159,'Standard Inputs'!AW175,'Standard Inputs'!AW191,'Standard Inputs'!AW207,'Standard Inputs'!AW223,'Standard Inputs'!AW239,'Standard Inputs'!AW255,'Standard Inputs'!AW271,'Standard Inputs'!AW287) -> FALSE
C16: =CHOOSE(contam_type,'Standard Inputs'!AV16,'Standard Inputs'!AV32,'Standard Inputs'!AV48,'Standard Inputs'!AV64,'Standard Inputs'!AV80,'Standard Inputs'!AV96,'Standard Inputs'!AV112,'Standard Inputs'!AV128,'Standard Inputs'!AV144,'Standard Inputs'!AV160,'Standard Inputs'!AV176,'Standard Inputs'!AV192,'Standard Inputs'!AV208,'Standard Inputs'!AV224,'Standard Inputs'!AV240,'Standard Inputs'!AV256,'Standard Inputs'!AV272,'Standard Inputs'!AV288) -> TRUE | D16: =CHOOSE(contam_type,'Standard Inputs'!AW16,'Standard Inputs'!AW32,'Standard Inputs'!AW48,'Standard Inputs'!AW64,'Standard Inputs'!AW80,'Standard Inputs'!AW96,'Standard Inputs'!AW112,'Standard Inputs'!AW128,'Standard Inputs'!AW144,'Standard Inputs'!AW160,'Standard Inputs'!AW176,'Standard Inputs'!AW192,'Standard Inputs'!AW208,'Standard Inputs'!AW224,'Standard Inputs'!AW240,'Standard Inputs'!AW256,'Standard Inputs'!AW272,'Standard Inputs'!AW288) -> TRUE | H16: <- Using this design
H17: =IF(COUNTIF(H9:H16,"")=8,"Using a manual design","") ->  | I17: =IF(COUNTIF(H9:H16,"")=8,"Fill in all gold cells below, then consider using AutoSize button","") -> 
E18: STEP 4
E19: (Optional for standard designs)
C20: =AND(C34,C43,C53,C65:C70,C78:C81,C89,C104,C114) -> TRUE | E20: Enter or change values in the gold and blue cells below, under "Manual Inputs" | G20: =IF(C20,IF('Standard Inputs'!AS299,"Input Complete -- Results Ready","Input Complete -- Press 'Generate Results'"),"Input Incomplete -- Check for Error Messages Below") -> Input Complete -- Results Ready | I20: =IF(C20,"","Fill in all gold cells below. If errors persist, consider using AutoSize button.") -> 
E22: STEP 5 | I22: Results summary (see OUTPUT sheet for details)
E23: =IF(G20="input complete -- results ready","Results are ready (no need to click button)","Click here to generate results -->") -> Results are ready (no need to click button) | I23: ="Direct Capital Cost: " & IF(input_status<>"input complete -- results ready","Input incomplete",IF(Missing_Cost,"Missing cost!",IF(cost_buildup_error,"Cost buildup error!",IF(ISERROR(direct_cost),"Calculation error!",TEXT(direct_cost,"$0,0"))))) -> Direct Capital Cost: $20,567,817
I24: ="Total Capital Cost: " & IF(input_status<>"input complete -- results ready","Input incomplete",IF(Missing_Cost,"Missing cost!",IF(cost_buildup_error,"Cost buildup error!",IF(ISERROR(system_cost),"Calculation error!",TEXT(system_cost,"$0,0"))))) -> Total Capital Cost: Calculation error!
I25: ="Annual O&M Cost: "&IF(G20="input complete -- results ready",IF(ISERROR(OM_cost),"Calculation error!",TEXT(OM_cost,"$0,0")),"Input incomplete") -> Annual O&M Cost: $8,884,138
E26: MANUAL INPUTS | I26: ="Annualized Cost: "&IF(input_status<>"input complete -- results ready","Input incomplete",IF(Missing_Cost,"Missing Price!",IF(cost_buildup_error,"Cost buildup error!",IF(ISERROR(Annualized_Cost),"Calculation error!",TEXT(Annualized_Cost,"$0,0")&" ("&useful_life&" years at "&Discount_rate*100&"%)")))) -> Annualized Cost: Calculation error!
E27: Cells in gold are required; cells in blue are optional | I27: =IF(input_status="Input Incomplete -- check for error messages below","",IF(Missing_Cost,"A price is not available for at least one required component. See Use? column on OUTPUT sheet.",IF(cost_buildup_error,"There is an Excel error in the price for at least one component. Please see the Use? column on OUTPUT sheet.",""))) -> 
B28: Used? | C28: Valid input? | D28: Invalid reason? | H28: Select units
E29: Design Flow (including bypass) | F29: design_flow_I | G29: 75.072 | H29: MGD
E30: Average Flow (including bypass) | F30: average_flow_I | G30: 37.536 | H30: MGD
E31: For information:
E32: Treatment system design flow | G32: =IF(ISERROR(design_flow),"",IF(df_units="gpm",design_flow_rate, design_flow)) -> 75.072 | H32: =df_units -> MGD
E33: Bypass design flow | G33: =IF(ISERROR(design_flow),"",IF(df_units="gpm",bp_flow_rate, bp_flow_rate*60*24/10^6)) -> 0 | H33: =df_units -> MGD | I33: ="Current bypass percentage is "&TEXT(bp_pct,"0%")&". Go to Critical Design Assumptions (link below) to change this value." -> Current bypass percentage is 0%. Go to Critical Design Assumptions (link below) to change this value.
C34: =IF(OR(df_units="",af_units=""),FALSE,IF(average_flow>design_flow,FALSE,IF(OR(design_flow_I=0,average_flow_I=0),FALSE,IF(average_flow_I<design_flow_I*min_avg_flow,FALSE,TRUE)))) -> TRUE | D34: =IF(OR(df_units="",af_units=""),"Choose units for design and average flow",IF(average_flow>design_flow,"The average flow should not be greater than the design flow",IF(OR(design_flow_I=0,average_flow_I=0),"Input incomplete",IF(average_flow_I<design_flow_I*min_avg_flow,"The averageflow must be at least "&min_avg_flow&"times design flow","OK")))) -> OK | H34: =IF(C34,"System size inputs OK",D34) -> System size inputs OK | I34: Adjust bypass percentage
C36: =NOT(freund_type_I="") -> TRUE | E36: Select carbon life input type | F36: freund_type_I | G36: carbon life value- months | H36: <-- pick one | I36: Guidance: Carbon life is best determined by pilot or RSSCT tests. Use theoretical calculation methods (e.g., Freundlich isotherms) only in the absence of such data for initial assessment of carbon life and suitability of GAC for treatment.
C37: =NOT(freund_1="") -> TRUE | E37: =CHOOSE(freund_type," Carbon life"," 1st Freundlich constant (Kf)"," Sorption capacity"," Carbon life") -> Carbon life | F37: freund_1 | G37: 12 | H37: =CHOOSE(freund_type,"months","(ug/g)(L/ug)^(1/n)","mg/g","bed volumes") -> months
B38: =OR(freund_type=2,freund_type=3) -> FALSE | C38: =IF(B38,NOT(freund_2=""),TRUE) -> TRUE | E38: =CHOOSE(freund_type," no additonal input required"," 2nd Freundlich constant (1/n)"," Bohart and Adams quasi-chemical rate constant (k)"," no additonal input required") -> no additonal input required | F38: freund_2 | H38: =CHOOSE(freund_type,"not required","dimensionless","L/mg-sec","not required") -> not required
B39: =OR(freund_type=2,freund_type=3) -> FALSE | C39: =IF(B39,NOT(C_0=""),TRUE) -> TRUE | E39: =CHOOSE(freund_type," no additonal input required"," Influent concentration"," Influent concentration"," no additonal input required") -> no additonal input required | F39: C_0 | H39: =CHOOSE(freund_type,"not required","mg/L","mg/L","not required") -> not required
B40: =OR(freund_type=2,freund_type=3) -> FALSE | C40: =IF(B40,NOT(C_b=""),TRUE) -> TRUE | E40: =CHOOSE(freund_type," no additonal input required"," Breakthrough concentration"," Breakthrough concentration"," no additonal input required") -> no additonal input required | F40: C_b | H40: =CHOOSE(freund_type,"not required","mg/L","mg/L","not required") -> not required
E41: For information:
E42: Carbon Life | G42: =IF(AND(C43,NOT(ISERROR(bed_life))),bed_life,"") -> 12 | H42: months
C43: =IF(NOT(AND(C36,C37,C38,C39,C40)),FALSE,IF(AND(EBCT_type=2,OR(freund_type=2,freund_type=3)),IF(C_0<>EBCT_I,FALSE,TRUE),TRUE)) -> TRUE | D43: =IF(NOT(AND(C36,C37,C38,C39,C40)),"Carbon life input incomplete",IF(AND(EBCT_type=2,OR(freund_type=2,freund_type=3)),IF(C_0<>EBCT_I,"Warning: Influent concentration should be the same as entered for EBCT calculation","Carbon life input OK"),"OK")) -> OK | H43: =IF(C43,"Carbon input OK",D43) -> Carbon input OK | I43: =IF(OR(freund_type=1,freund_type=4),"",IF(OR(freund_type=2,freund_type=3),"Guidance: Low calculated value may indicate unsuitability of GAC as a treatment technique.","")) -> 
C45: =NOT(EBCT_type_I="") -> TRUE | E45: Contaminant removal input type | F45: EBCT_type_I | G45: EBCT | H45: <-- pick one | I45: =IF(EBCT_type<>3,"Warning: use this method for radon only","") -> 
C46: =NOT(EBCT_I="") -> TRUE | E46: =IF(EBCT_type=1," Percent removal",IF(EBCT_type=2," Influent concentration",IF(EBCT_type=3," Total Theoretical Empty Bed Contact Time (EBCT)",""))) -> Total Theoretical Empty Bed Contact Time (EBCT) | F46: EBCT_I | G46: 15 | H46: =IF(EBCT_type=1,"enter percentage as fraction",IF(EBCT_type=2,"mg/l",IF(EBCT_type=3,"minutes",""))) -> minutes | I46: Guidance: EBCT is best determined by pilot tests, but may be calculated for radon if a steady state rate constant (Kss) is available. Use the theoretical calculation method for radon only in the absence of pilot data for initial assessment of EBCT and suitability of GAC for treatment.
B47: =EBCT_type=2 -> FALSE | C47: =IF(B47,NOT(EBCT_O=""),TRUE) -> TRUE | E47: =IF(EBCT_type=1," no additonal input required",IF(EBCT_type=2," Desired effluent concentration",IF(EBCT_type=3," no additonal input required"," no additonal input required"))) -> no additonal input required | F47: EBCT_O | H47: =IF(EBCT_type<>2,"not required","mg/l") -> not required
B48: =EBCT_type<>3 -> FALSE | C48: =IF(B48,NOT(Kss=""),TRUE) -> TRUE | E48: =IF(OR(EBCT_type=1,EBCT_type=2)," Steady state system constant (Kss)",IF(EBCT_type=3," no additonal input required"," no additonal input required")) -> no additonal input required | F48: Kss | H48: =IF(EBCT_type=3,"not required","1/hrs") -> not required
B49: =IF(design_type=1,TRUE,FALSE) -> TRUE | C49: =IF(B49,NOT(Num_tanks_I=""),TRUE) -> TRUE | E49: Minimum number of contactors in series (i.e., parallel or series operation) | F49: Num_tanks_I | G49: 3 | H49: <-- enter 1 for parallel, 2 or more for series | I49: =IF(design_type=1,"Consider multiple vessels in series for long EBCTs (>10 minutes)","Parallel operation only for gravity systems") -> Consider multiple vessels in series for long EBCTs (>10 minutes)
E50: For information:
E51: EBCT | G51: =IF(C53,EBCT,"") -> 15 | H51: minutes
E52: EBCT per contactor | G52: =IF(C53,IF(design_type=1,EBCT_tank,EBCT),"") -> 5 | H52: minutes
C53: =IF(NOT(AND(C45,C46,C47,C48,C49)),FALSE,IF(EBCT_type=1,IF(EBCT_I>=1,FALSE,TRUE),IF(EBCT_type=2,IF(EBCT_O>EBCT_I,FALSE,TRUE),TRUE))) -> TRUE | D53: =IF(NOT(AND(C45,C46,C47,C48,C49)),"Contaminant removal inputs incomplete",IF(EBCT_type=1,IF(EBCT_I>=1,"Removal fraction cannot be greater than or equal to 1","OK"),IF(EBCT_type=2,IF(EBCT_O>EBCT_I,"Effluent concentration cannot be greater than influent concentration","OK"),"OK"))) -> OK | H53: =IF(C53,"Contaminant removal inputs OK",D53) -> Contaminant removal inputs OK
B55: =IF(design_type=1,TRUE,FALSE) -> TRUE | E55: Pressure Vessels
E56: The next four inputs may be entered manually, or calculated with AutoSize button. All other gold inputs must be complete before AutoSizing.
C57: =IF(NOT(B55),TRUE,NOT(bed_depth="")) -> TRUE | E57: Bed depth | F57: bed_depth | G57: 6.6 | H57: feet | I57: Guidance: Typical pressure GAC bed depths are 2 to 8.5 ft.
C58: =IF(NOT(B55),TRUE,NOT(tank_geom_I="")) -> TRUE | E58: Vessel geometry | F58: tank_geom_I | G58: horizontal | H58: <-- pick one | I58: Guidance: Typically upright, although larger systems (e.g., greater than 2,000 gpm) might use horizontal vessels
C59: =IF(NOT(B55),TRUE,NOT(comm_height_length="")) -> TRUE | E59: =IF(tank_geom=1,"Height (straight)",IF(tank_geom=2,"Length (straight)","")) -> Length (straight) | F59: comm_height_length | G59: 21 | H59: =IF(tank_geom<>"","feet","") -> feet | I59: Guidance: Typically up to 14 feet for upright vessels, 20 to 40 feet for horizontal vessels
C60: =IF(NOT(B55),TRUE,NOT(comm_diam="")) -> TRUE | E60: =IF(tank_geom<>""," Diameter","") -> Diameter | F60: comm_diam | G60: 14 | H60: =IF(tank_geom<>"","feet","") -> feet | I60: Guidance: Typically 1.5 to 14 feet for upright vessels, 10 to 14 feet for horizontal vessels
E61: For information:
E62: Number of treatment trains | G62: =IF(OR(NOT(B55),ISERROR(num_treat_lines)),"",num_treat_lines) -> 20 | H62: trains
E63: Number of operating vessels | G63: =IF(OR(NOT(B55),ISERROR(op_num_tanks)),"",op_num_tanks) -> 60 | H63: units
E64: Total vessels (incl. redundancy, below) | G64: =IF(OR(NOT(B55),ISERROR(final_num_tanks)),"",final_num_tanks) -> 65 | H64: units
C65: =IF(NOT(B55),TRUE,IF(NOT(AND(C57:C60)),FALSE,IF(bed_depth>max_bed_depth,FALSE,IF(bed_depth>2*comm_diam,FALSE,IF(bed_depth<min_bed_depth,FALSE,TRUE))))) -> TRUE | D65: =IF(NOT(B55),"OK",IF(NOT(AND(C57:C60)),"Input incomplete",IF(bed_depth>max_bed_depth,"Warning: bed depth too great",IF(bed_depth>2*comm_diam,"Warning: bed depth should be less than twice the vessel diameter",IF(bed_depth<min_bed_depth,"Warning: bed depth too shallow","OK"))))) -> OK | H65: =IF(NOT(B55),"",IF(C65,"Bed Depth OK",D65)) -> Bed Depth OK | I65: Adjust bed depth constraints
C66: =IF(NOT(B55),TRUE,IF(NOT(AND(C57:C60)),FALSE,IF(tank_geom=1,IF(IF(AND(comm_diam>=min_diam,comm_diam<=max_diam_std_size),(OR(comm_height_length>=max_comm_height,comm_height_length>max_height)),comm_height_length>max_height),FALSE,IF(IF(AND(comm_diam>=min_diam,comm_diam<=max_diam_std_size),(AND(comm_height_length>=min_comm_height,comm_height_length>=height)),comm_height_length>=height),TRUE,FALSE)),IF(tank_geom=2,IF(comm_height_length>max_length,FALSE,TRUE),FALSE)))) -> TRUE | D66: =IF(NOT(B55),"OK",IF(NOT(AND(C57:C60)),"",IF(tank_geom=1,IF(IF(AND(comm_diam>=min_diam,comm_diam<=max_diam_std_size),(OR(comm_height_length>=max_comm_height,comm_height_length>max_height)),comm_height_length>max_height),"Warning: vessel too high",IF(IF(AND(comm_diam>=min_diam,comm_diam<=max_diam_std_size),(AND(comm_height_length>=min_comm_height,comm_height_length>=height)),comm_height_length>=height),"Height OK","Warning: vessel not high enough")),IF(tank_geom=2,IF(comm_height_length>max_length,"Warning: vessel too long","Length OK"),"Invalid tank geometry input")))) -> Length OK | H66: =IF(NOT(B55),"",D66) -> Length OK | I66: Adjust vessel size constraints
C67: =IF(NOT(B55),TRUE,IF(ISERROR(final_num_tanks),FALSE,IF(tank_geom=1,IF(comm_diam>max_diam,FALSE,IF(comm_diam<diameter,FALSE,TRUE)),IF(tank_geom=2,IF(comm_diam>max_diam,FALSE,IF(comm_diam>max_height,FALSE,IF(comm_SA<SA,FALSE,IF(comm_diam<height,FALSE,TRUE)))),FALSE)))) -> TRUE | D67: =IF(NOT(B55),"OK",IF(ISERROR(final_num_tanks),"",IF(tank_geom=1,IF(comm_diam>max_diam,"Warning: vessel diameter too great",IF(comm_diam<diameter,"Warning: vessel diameter too small","Diameter OK")),IF(tank_geom=2,IF(comm_diam>max_diam,"Warning: vessel diameter too great",IF(comm_diam>max_height,"Warning: vessel diameter too great",IF(comm_SA<SA,"Warning: vessel surface area too small",IF(comm_diam<height,"Warning: vessel diameter too small","OK")))),"")))) -> OK | H67: =IF(NOT(B55),"",IF(C67,"Diameter OK",D67)) -> Diameter OK
C68: =IF(NOT(B55),TRUE,IF(NOT(AND(C57:C60)),FALSE,IF(input_vol_vess<media_volume_expanded,FALSE,TRUE))) -> TRUE | D68: =IF(NOT(B55),"OK",IF(D65="Input incomplete","",IF(input_vol_vess<media_volume_expanded,"Warning: vessel too small for this bed depth","OK"))) -> OK | H68: =IF(NOT(B55),"",IF(C68,"Volume OK",D68)) -> Volume OK
H69: =IF(H65="Input incomplete","",IF(input_vol_vess<media_volume_expanded,CHOOSE(tank_geom,"Hint: reduce bed depth or increase diameter or height","Hint: reduce bed depth or increase diameter"),"")) -> 
C70: =IF(NOT(B55),TRUE,IF(ISERROR(final_num_tanks),FALSE,IF(tank_geom=1,IF(comm_load_rate>load_max,FALSE,IF(comm_load_rate<load_min,FALSE,TRUE)),IF(comm_load_rate>load_max,FALSE,IF(comm_load_rate<load_min,FALSE,TRUE))))) -> TRUE | D70: =IF(NOT(B55),"OK",IF(ISERROR(final_num_tanks),"",IF(tank_geom=1,IF(comm_load_rate>load_max,"Warning: design exceeds maximum loading",IF(comm_load_rate<load_min,"Warning: design below minimum loading","OK")),IF(comm_load_rate>load_max,"Warning: design exceeds maximum loading",IF(comm_load_rate<load_min,"Warning: design below minimum loading","OK"))))) -> OK | H70: =IF(NOT(B55),"",IF(C70,"Loading OK",D70)) -> Loading OK | I70: Adjust loading constraints
H71: =IF(OR(NOT(B55),ISERROR(final_num_tanks)),"",IF(tank_geom=1,IF(comm_load_rate>load_max,"Hint: increase vessel diameter or decrease bed depth",IF(comm_load_rate<load_min,"Hint: reduce vessel diameter or increase bed depth","")),IF(comm_load_rate>load_max,"Hint: increase vessel length and diameter or decrease bed depth",IF(comm_load_rate<load_min,"Hint: reduce vessel length and diameter or increase bed depth","")))) -> 
B73: =IF(design_type=2,TRUE,FALSE) -> FALSE | E73: Gravity Contact Basins
E74: The next three inputs may be entered manually, or calculated with AutoSize button. All other gold inputs must be complete before AutoSizing.
C75: =IF(NOT(B73),TRUE,NOT(basin_width="")) -> TRUE | E75: Basin Width | F75: basin_width | H75: feet | I75: Guidance: GAC contactors typically are square.
C76: =IF(NOT(B73),TRUE,NOT(basin_length="")) -> TRUE | E76: Basin Length | F76: basin_length | H76: feet
C77: =IF(NOT(B73),TRUE,NOT(basin_op_depth="")) -> TRUE | E77: Bed depth | F77: basin_op_depth | H77: feet | I77: Guidance: Typical gravity GAC bed depths are 3-10 feet
C78: =IF(NOT(B73),TRUE,IF(NOT(AND(C75,C76,C77)),FALSE,IF(basin_op_depth>max_depth,FALSE,IF(basin_op_depth<min_depth,FALSE,TRUE)))) -> TRUE | D78: =IF(NOT(B73),"OK",IF(NOT(AND(C75,C76,C77)),"Input incomplete",IF(basin_op_depth>max_depth,"Warning: basin too deep",IF(basin_op_depth<min_depth,"Warning: basin too shallow","OK")))) -> OK | E78: For information: | H78: =IF(NOT(B73),"",IF(C78,"Bed Depth OK",D78)) ->  | I78: Adjust bed depth constraints
C79: =IF(NOT(B73),TRUE,IF(basin_width>max_width,FALSE,IF(basin_width<min_width,FALSE,TRUE))) -> TRUE | D79: =IF(NOT(B73),"OK",IF(NOT(AND(C75,C76,C77)),"",IF(basin_width>max_width,"Warning: basin too wide",IF(basin_width<min_width,"Warning: basin too narrow","OK")))) -> OK | E79: Total contactors (including redundancy from below) | G79: =IF(OR(NOT(B73),ISERROR(total_num_basins)),"",total_num_basins) ->  | H79: =IF(NOT(B73),"",IF(C79,"Width OK",D79)) ->  | I79: Adjust width constraints
C80: =IF(NOT(B73),TRUE,IF(basin_length>max_length_g,FALSE,IF(basin_length<min_length_g,FALSE,TRUE))) -> TRUE | D80: =IF(NOT(B73),"OK",IF(ISERROR(total_num_basins),"",IF(H59="input incomplete","",IF(basin_length>max_length_g,"Warning: basin too long",IF(OR(basin_length<min_length_g,basin_length<(min_basin_vol/op_num_basins/basin_op_depth/basin_width)),"Warning: basin too short","OK"))))) -> OK | H80: =IF(NOT(B73),"",IF(C80,"Length OK",D80)) ->  | I80: Adjust length constraints
C81: =IF(NOT(B73),TRUE,IF(ISERROR(total_num_basins),"",IF(H78="input incomplete",FALSE,IF(surface_loading_rate_g>load_max,FALSE,IF(surface_loading_rate_g<load_min,FALSE,TRUE))))) -> TRUE | D81: =IF(NOT(B73),"OK",IF(ISERROR(total_num_basins),"",IF(H78="input incomplete","",IF(surface_loading_rate_g>load_max,"Warning: design exceeds maximum loading",IF(surface_loading_rate_g<load_min,"Warning: design below minimum loading","OK"))))) -> OK | H81: =IF(NOT(B73),"",IF(ISERROR(total_num_basins),"",IF(C81,"Loading OK",D81))) ->  | I81: Adjust loading constraints
C83: =NOT(back_interval_I="") -> TRUE | E83: Interval Between backwashes | F83: back_interval_I | G83: 48 | H83: hours | I83: Interval between backwash occurrences depends on the loading rate, water quality, and size of carbon. 48 hours for surface water if loading rate 4-6 gpm/sf; 7+ days for ground water (Richard E. Hubel, Peter Keenan, American Water Works Service Company, Inc). 2 weeks or loss of head based on operational experience (Verna Arnette, Greater Cincinnati Water Works).
C84: =NOT(res_s2_opt_I="") -> TRUE | E84: Discharge option for spent backwash | F84: res_s2_opt_I | G84: POTW | H84: <-- pick one
B85: =OR(res_s2_opt=1,res_s2_opt=2) -> TRUE | C85: =IF(B85,NOT(res_s1_opt_I=""),TRUE) -> TRUE | E85: Holding tank for spent backwash | F85: res_s1_opt_I | G85: Holding tank | H85: =IF(res_s2_opt=3,"always included",IF(OR(res_s2_opt=4,res_s2_opt=5),"not required","<-- pick one")) -> <-- pick one | I85: =IF(OR(res_s2_opt=4,res_s2_opt=5),"",IF(res_s1_opt_I="Holding tank","Model selects between holding tank or basin based upon priority lookups on the Output sheet","")) -> Model selects between holding tank or basin based upon priority lookups on the Output sheet
C86: =NOT(regen_type_I="") -> TRUE | E86: Management option for spent carbon | F86: regen_type_I | G86: regeneration off-site (non-hazardous) | H86: <-- pick one
C87: =NOT(transfer_method_I="") -> TRUE | E87: GAC transfer method | F87: transfer_method_I | G87: eductors | H87: <-- pick one
B88: =OR(res_s2_opt=5,res_s1_opt=1) -> TRUE | C88: =IF(B88,NOT(solids_haz_I=""),TRUE) -> TRUE | E88: =IF(res_s2_opt=5,"Characteristics of evaporation pond solids","Characteristics of holding tank solids") -> Characteristics of holding tank solids | F88: solids_haz_I | G88: non-hazardous | H88: =IF(OR(res_s1_opt=1,res_s2_opt=5),"<-- pick one","not required") -> <-- pick one
C89: =IF(NOT(AND(C83:C88)),FALSE,TRUE) -> TRUE | D89: =IF(NOT(AND(C83:C88)),"Input incomplete","OK") -> OK | H89: =IF(C89,"Residuals Input OK",D89) -> Residuals Input OK
E91: Number of booster pumps | F91: lines_pump_I | H91: pumps | I91: Enter 0 to exclude booster pumps (e.g., use existing pumps). Clear cell to accept model defaults (contaminant and design type specific)
E92: For information: # of booster pumps | G92: =IF(ISERROR(booster_pumps),"",booster_pumps) -> 7 | H92: pumps
E93: Number of redundant contactors to be added | F93: NRD_I | H93: units | I93: Leave blank to accept redundancy frequency specified in critical design assumptions
E94: For information: Redundant contactors | G94: =IF(design_type=1,IF(ISERROR(NRD),"",NRD),IF(ISERROR(NRD_g),"",NRD_g)) -> 5 | H94: units
E95: Backwash pumping | F95: no_backwash_I | H95: <-- pick or leave blank | I95: Leave blank to accept model defaults (systems <1 MGD backwash using existing supply or treated water pumps, other systems add new backwash pumps)
E96: Backwash storage | F96: no_back_tank_I | H96: <-- pick or leave blank | I96: Leave blank to accept model defaults (only systems between 1 and 10 MGD require separate backwash tanks)
E97: For information: # of backwash pumps | G97: =IF(ISERROR(backwash_pumps),"",backwash_pumps) -> 2 | H97: units
E98: ="# of backwash "&IF(OUTPUT!L47=1,"basins","tanks") -> # of backwash tanks | G98: =IF(ISERROR(num_back_tanks),"",IF(OUTPUT!L47=1,back_basins,num_back_tanks)) -> 0 | H98: units
E99: Component level | F99: component_level_I | H99: <-- pick or leave blank | I99: Leave blank to use low cost components
E100: System automation | F100: manual_I | H100: <-- pick or leave blank | I100: Leave blank to allow model to pick based on component level
E101: For information: Component level | G101: =IF(component_level=2,"high cost",IF(component_level=1,"mid cost","low cost")) -> low cost
E102: Automation | G102: =IF(manual=1,"manual",IF(manual=2,"semi-automated",IF(manual=3,"fully automated"))) -> manual
E103: Add-on (pre- or post-treatment) | F103: addon_I | H103: <-- pick or leave blank | I103: Select to calculate costs for GAC as a pre- or post-treatment for another base technology (e.g., GAC polishing for UVAOP)
C104: =IF(ISERROR(pump_rating),FALSE,IF(pump_rating>max_pump_size,FALSE,TRUE)) -> TRUE | D104: =IF(ISERROR(pump_rating),"Input incomplete",IF(pump_rating>max_pump_size,"Warning: insufficent number of pumps.","OK")) -> OK | H104: =IF(C104,"Optional Inputs OK",D104) -> Optional Inputs OK
E106: Retrofit (operational modification) | F106: retrofit_I | H106: <-- pick or leave blank | I106: Select to calculate costs for modifying operational practices to allow a different carbon life than originally designed
B107: =IF(retrofit=1,TRUE,FALSE) -> FALSE | C107: =IF(B107,NOT(r_freund_type_I=""),TRUE) -> TRUE | E107: Select new carbon life input type | F107: r_freund_type_I | H107: =IF(retrofit=1,"<-- pick one","not required") -> not required | I107: Guidance: Carbon life is best determined by pilot or RSSCT tests. Use theoretical calculation methods (e.g., Freundlich isotherms) only in the absence of such data for initial assessment of carbon life and suitability of GAC for treatment.
B108: =IF(retrofit=1,TRUE,FALSE) -> FALSE | C108: =IF(B108,NOT(r_freund_1=""),TRUE) -> TRUE | E108: =CHOOSE(freund_type,"New carbon life","1st Freundlich constant (Kf)","Sorption capacity","New carbon life") -> New carbon life | F108: r_freund_1 | H108: =IF(retrofit=0,"not required",CHOOSE(r_freund_type,"months","(ug/g)(L/ug)^(1/n)","mg/g","bed volumes")) -> not required
B109: =AND(retrofit=1,OR(r_freund_type=2,r_freund_type=3)) -> FALSE | C109: =IF(B109,NOT(r_freund_2=""),TRUE) -> TRUE | E109: =CHOOSE(r_freund_type,"no additonal input required","2nd Freundlich constant (1/n)","Bohart and Adams quasi-chemical rate constant (k)","no additonal input required") -> no additonal input required | F109: r_freund_2 | H109: =CHOOSE(r_freund_type,"not required","dimensionless","L/mg-sec","not required") -> not required
B110: =AND(retrofit=1,OR(r_freund_type=2,r_freund_type=3)) -> FALSE | C110: =IF(B110,NOT(r_C_0=""),TRUE) -> TRUE | E110: =CHOOSE(r_freund_type,"no additonal input required","New influent concentration","New influent concentration","no additonal input required") -> no additonal input required | F110: r_C_0 | H110: =CHOOSE(r_freund_type,"not required","mg/L","mg/L","not required") -> not required
B111: =AND(retrofit=1,OR(r_freund_type=2,r_freund_type=3)) -> FALSE | C111: =IF(B111,NOT(r_C_b=""),TRUE) -> TRUE | E111: =CHOOSE(r_freund_type,"no additonal input required","New breakthrough concentration","New breakthrough concentration","no additonal input required") -> no additonal input required | F111: r_C_b | H111: =CHOOSE(r_freund_type,"not required","mg/L","mg/L","not required") -> not required
E112: For information:
E113: Retrofit Carbon Life | G113: =IF(AND(C114,retrofit=1),r_bed_life,"") ->  | H113: months
C114: =IF(NOT(AND(C107,C108,C109,C110,C111)),FALSE,TRUE) -> TRUE | D114: =IF(NOT(AND(C107,C108,C109,C110,C111)),"Retrofit input incomplete","OK") -> OK | H114: =IF(C114,"Retrofit input OK",D114) -> Retrofit input OK

Sheet OUTPUT
A1: OUTPUT SUMMARY
B2: Parameter | C2: Value | D2: Units
B3: Contaminant | C3: =IF(VLOOKUP(contam_type,contam_lookup,2,FALSE)="","",VLOOKUP(contam_type,contam_lookup,2,FALSE)) -> Atrazine
B4: System Size Category | C4: =IF(ss_cat2=1,"small","large") -> large
B5: Technology | C5: GAC
B6: Design Type | C6: =IF(design_type=1,"Pressure","Gravity") -> Pressure
B7: Design Flow | C7: =design_flow -> 75.072 | D7: MGD (excludes bypass flow)
B8: Average Flow | C8: =average_flow -> 37.536 | D8: MGD (excludes bypass flow)
B9: # of treatment trains | C9: =IF(design_type=1,num_treat_lines,op_num_basins) -> 20 | D9: trains
B10: # of contactors in series | C10: =Num_tanks -> 3 | D10: (i.e., parallel or series operation)
B11: # of contactors | C11: =IF(design_type=1,final_num_tanks,total_num_basins) -> 65 | D11: (including redundancy)
B12: Total EBCT | C12: =EBCT -> 15 | D12: minutes
B13: EBCT per contactor | C13: =IF(design_type=1,EBCT_tank,EBCT) -> 5 | D13: minutes
B14: Bed depth | C14: =IF(design_type=1,bed_depth,basin_op_depth) -> 6.6 | D14: feet
B15: Vessel geometry | C15: =IF(design_type=1,tank_geom_I,"basins") -> horizontal
B16: =IF(design_type=2,"Basin width",IF(tank_geom=1,"Height (straight)",IF(tank_geom=2,"Length (straight)",""))) -> Length (straight) | C16: =IF(design_type=1,comm_height_length,basin_width) -> 21 | D16: feet
B17: =IF(design_type=1,"Diameter","Basin length") -> Diameter | C17: =IF(design_type=1,comm_diam,basin_length) -> 14 | D17: feet
B18: ="Resulting Costs (in year "&TEXT(current_year_cl,0)&" dollars)" -> Resulting Costs (in year 2013 dollars)
B19: Direct Capital Cost | C19: =IF(input_status<>"input complete -- results ready","Input incomplete",IF(Missing_Cost,"Missing cost!",IF(cost_buildup_error,"Error in buildup!",direct_cost))) -> 20567817.35 | D19: Details
B20: Add-on Cost | C20: =IF(input_status<>"input complete -- results ready","Input incomplete",addon_cost) ->  | D20: Details
B21: Indirect Capital Cost | C21: =IF(input_status<>"input complete -- results ready","Input incomplete",indirect_cost) ->  | D21: Details
B22: Total Capital Cost | C22: =IF(input_status<>"input complete -- results ready","Input incomplete",IF(Missing_Cost,"Missing cost!",IF(cost_buildup_error,"Error in buildup!",system_cost))) ->  | D22: Details
B23: Annual O&M Cost | C23: =IF(input_status<>"input complete -- results ready","Input incomplete",OM_cost) -> 8884138.093 | D23: Details
B24: ="Annualized Cost "&IF(OR(input_status<>"input complete -- results ready",Missing_Cost,cost_buildup_error),"","("&useful_life&" years at "&Discount_rate*100&"%)") ->  | C24: =IF(input_status<>"input complete -- results ready","Input incomplete",IF(Missing_Cost,"Missing cost!",IF(cost_buildup_error,"Error in buildup!",Annualized_Cost))) ->  | D24: Details
B25: Annualized cost per 1,000 gallons average flow | C25: =IF(input_status<>"input complete -- results ready","Input incomplete",IF(Missing_Cost,"Missing cost!",IF(cost_buildup_error,"Error in buildup!",C395))) -> 
B26: Annualized cost per household per year | C26: =IF(input_status<>"input complete -- results ready","Input incomplete",IF(Missing_Cost,"Missing cost!",IF(cost_buildup_error,"Error in buildup!",C396))) -> 
A28: Direct Capital Cost Details (items in italics, without a 1 in the "Use?" column, represent alternate costs and are excluded from total)
A29: WBS # | B29: Item | C29: Design Quanitity | E29: Design Size | G29: Size used in estimate | I29: Unit Cost | J29: Total Cost | K29: Useful Life | L29: Use? | M29: Full Line Item Name | N29: Resulting priority selection (after considering whether this is a retrofit scenario) | W29: Include in Retrofit? | X29: Baseline priority selection | AG29: Useful Life
N30: Small (<1 mgd) | Q30: Medium (1-10 mgd) | T30: Large (>10 mgd) | X30: Small (<1 mgd) | AA30: Medium (1-10 mgd) | AD30: Large (>10 mgd)
N31: Low | O31: Mid | P31: High | Q31: Low | R31: Mid | S31: High | T31: Low | U31: Mid | V31: High | X31: Low | Y31: Mid | Z31: High | AA31: Low | AB31: Mid | AC31: High | AD31: Low | AE31: Mid | AF31: High | AG31: Count? | AH31: Depreciation
A32: 1. | B32: GAC Contactors
A33: 1.1 | B33: Pressure Vessels
A34: 1.1.1 | B34: Stainless Steel | C34: =final_num_tanks -> 65 | D34: units | E34: =comm_vol_gal -> 24180.58733 | F34: gal | G34: =IF(curve=1,comm_vol_gal,VLOOKUP(comm_vol_gal,ss_pv_cost_cl,2)) -> 24180.58733 | H34: gal | I34: =IF(C34=0,"NA",IF(curve=1,ss_pv_eq,VLOOKUP(comm_vol_gal,ss_pv_cost_cl,3))) -> 308052.7778 | J34: =IF(C34=0,"--",IF(I34="contact vendor","--",C34*I34)) -> 20023430.56 | K34: =IF(C34=0,"NA",VLOOKUP(comm_vol_gal,ss_pv_cost_cl,IF(ss_cat="large",4,5))) -> 35 | L34: 0 | M34: =$B$33&" - "&B34 -> Pressure Vessels - Stainless Steel | N34: =IF(retrofit=1,$W34*X34,IF(ISBLANK(X34),"",X34)) -> 4 | O34: 4 | P34: 1 | Q34: 4 | R34: 4 | S34: 1 | T34: 4 | U34: =IF(retrofit=1,$W34*AE34,IF(ISBLANK(AE34),"",AE34)) -> 4 | V34: 1 | W34: 0 | X34: 4 | Y34: 4 | Z34: 1 | AA34: 4 | AB34: 4 | AC34: 1 | AD34: 4 | AE34: 4 | AF34: 1 | AG34: =IF(ISERROR(K34*L34),0,IF(K34<1,0,L34)) -> 0 | AH34: =IF(AG34,J34/K34,0) -> 0
A35: 1.1.1 | B35: Carbon Steel - Stainless Internals | C35: =final_num_tanks -> 65 | D35: units | E35: =comm_vol_gal -> 24180.58733 | F35: gal | G35: =IF(curve=1,comm_vol_gal,VLOOKUP(comm_vol_gal,cs_pv_cost_cl,2)) -> 24180.58733 | H35: gal | I35: =IF(C35=0,"NA",IF(curve=1,cs_pv_eq,VLOOKUP(comm_vol_gal,cs_pv_cost_cl,3))) -> 212856.4988 | J35: =IF(C35=0,"--",IF(I35="contact vendor","--",C35*I35)) -> 13835672.42 | K35: =IF(C35=0,"NA",VLOOKUP(comm_vol_gal,cs_pv_cost_cl,IF(ss_cat="large",4,5))) -> 35 | L35: 0 | M35: =$B$33&" - "&B35 -> Pressure Vessels - Carbon Steel - Stainless Internals | N35: 3 | O35: 3 | P35: 2 | Q35: 3 | R35: 3 | S35: 2 | T35: 3 | U35: 3 | V35: 2 | W35: 0 | X35: 3 | Y35: 3 | Z35: 2 | AA35: 3 | AB35: 3 | AC35: 2 | AD35: 3 | AE35: 3 | AF35: 2 | AG35: 0 | AH35: 0
A36: 1.1.1 | B36: Carbon Steel - Plastic Internals | C36: =final_num_tanks -> 65 | D36: units | E36: =comm_vol_gal -> 24180.58733 | F36: gal | G36: =IF(curve=1,comm_vol_gal,VLOOKUP(comm_vol_gal,csp_pv_cost_cl,2)) -> 24180.58733 | H36: gal | I36: =IF(C36=0,"NA",IF(curve=1,csp_pv_eq,VLOOKUP(comm_vol_gal,csp_pv_cost_cl,3))) -> 111167.0076 | J36: =IF(C36=0,"--",IF(I36="contact vendor","--",C36*I36)) -> 7225855.492 | K36: =IF(C36=0,"NA",VLOOKUP(comm_vol_gal,csp_pv_cost_cl,IF(ss_cat="large",4,5))) -> 35 | L36: 1 | M36: =$B$33&" - "&B36 -> Pressure Vessels - Carbon Steel - Plastic Internals | N36: 2 | O36: 1 | P36: 3 | Q36: 2 | R36: 1 | S36: 3 | T36: 2 | U36: 1 | V36: 3 | W36: 0 | X36: 2 | Y36: 1 | Z36: 3 | AA36: 2 | AB36: 1 | AC36: 3 | AD36: 2 | AE36: 1 | AF36: 3 | AG36: 1 | AH36: 206453.0141
A37: 1.1.1 | B37: Fiberglass | C37: =final_num_tanks -> 65 | D37: units | E37: =comm_vol_gal -> 24180.58733 | F37: gal | G37: =IF(curve=1,comm_vol_gal,VLOOKUP(comm_vol_gal,fg_pv_cost_cl,2)) -> 24180.58733 | H37: gal | I37: =IF(C37=0,"NA",IF(curve=1,fg_pv_eq,VLOOKUP(comm_vol_gal,fg_pv_cost_cl,3))) -> contact vendor | J37: =IF(C37=0,"--",IF(I37="contact vendor","--",C37*I37)) -> -- | K37: =IF(C37=0,"NA",VLOOKUP(comm_vol_gal,fg_pv_cost_cl,IF(ss_cat="large",4,5))) -> 25 | L37: 0 | M37: =$B$33&" - "&B37 -> Pressure Vessels - Fiberglass | N37: 1 | O37: 2 | P37: 4 | Q37: 1 | R37: 2 | S37: 4 | T37: 1 | U37: 2 | V37: 4 | W37: 0 | X37: 1 | Y37: 2 | Z37: 4 | AA37: 1 | AB37: 2 | AC37: 4 | AD37: 1 | AE37: 2 | AF37: 4 | AG37: 0 | AH37: 0
A38: 1.2 | B38: GAC Contact Basins | AG38: 0 | AH38: 0
A39: 1.2.1 | B39: Concrete | C39: =total_num_basins -> 0 | D39: units | E39: =IF(C39=0,"NA",basin_vol) -> NA | F39: =IF(C39=0,"","gal") ->  | G39: =IF(C39=0,"NA",basin_vol) -> NA | H39: =IF(C39=0,"","gal") ->  | I39: =IF(C39=0,"NA",basin_conc_vol/total_num_basins*VLOOKUP(0,conc_basin_cost_cl,3)) -> NA | J39: =IF(C39=0,"--",IF(I39="contact vendor","--",C39*I39)) -> -- | K39: =IF(C39=0,"NA",VLOOKUP(0,conc_basin_cost_cl,IF(ss_cat="large",4,5))) -> NA | M39: =$B$38&" - "&B39 -> GAC Contact Basins - Concrete | N39: =IF(retrofit=1,$W39*X39,IF(ISBLANK(X39),"",X39)) -> 1 | O39: 1 | P39: 1 | Q39: 1 | R39: 1 | S39: 1 | T39: 1 | U39: =IF(retrofit=1,$W39*AE39,IF(ISBLANK(AE39),"",AE39)) -> 1 | V39: =IF(retrofit=1,$W39*AF39,IF(ISBLANK(AF39),"",AF39)) -> 1 | W39: 0 | X39: 1 | Y39: 1 | Z39: 1 | AA39: 1 | AB39: 1 | AC39: 1 | AD39: 1 | AE39: 1 | AF39: 1 | AG39: 0 | AH39: 0
A40: 1.2.2 | B40: Internals (Underdrain/Backwash System) | C40: =total_num_basins -> 0 | D40: units | E40: =IF(C40=0,"NA",basin_area) -> NA | F40: =IF(C40=0,"","sf") ->  | G40: =IF(C40=0,"NA",basin_area) -> NA | H40: =IF(C40=0,"","sf") ->  | I40: =IF(C40=0,"NA",IF(cont_int_eq="contact vendor","contact vendor",J40/total_num_basins)) -> NA | J40: =IF(C40=0,"--",IF(cont_int_eq="contact vendor","--",cont_int_eq)) -> -- | K40: =IF(C40=0,"NA",VLOOKUP(0,cont_top_cost_cl,IF(ss_cat="large",4,5))) -> NA | M40: GAC Contact Basins - Internals (Underdrain/Backwash System) | N40: 1 | O40: 1 | P40: 1 | Q40: 1 | R40: 1 | S40: 1 | T40: 1 | U40: 1 | V40: 1 | W40: 0 | X40: 1 | Y40: 1 | Z40: 1 | AA40: 1 | AB40: 1 | AC40: 1 | AD40: 1 | AE40: 1 | AF40: 1 | AG40: 0 | AH40: 0
A41: 1.2.3 | B41: Aluminum Railing | C41: =IF(design_type=1,0,railing) -> 0 | D41: lf | E41: NA | G41: NA | I41: =IF(C41=0,"NA",VLOOKUP(B41,metal_cost_cl,3)) -> NA | J41: -- | K41: =IF(C41=0,"NA",VLOOKUP(B41,metal_cost_cl,IF(ss_cat="large",4,5))) -> NA | M41: GAC Contact Basins - Aluminum Railing | N41: 1 | O41: 1 | P41: 1 | Q41: 1 | R41: 1 | S41: 1 | T41: 1 | U41: 1 | V41: 1 | W41: 0 | X41: 1 | Y41: 1 | Z41: 1 | AA41: 1 | AB41: 1 | AC41: 1 | AD41: 1 | AE41: 1 | AF41: 1 | AG41: 0 | AH41: 0
A42: 1.2.4 | B42: Aluminum Stairs | C42: =IF(design_type=1,0,risers) -> 0 | D42: risers | E42: NA | G42: NA | I42: =IF(C42=0,"NA",VLOOKUP(B42,metal_cost_cl,3)) -> NA | J42: -- | K42: =IF(C42=0,"NA",VLOOKUP(B42,metal_cost_cl,IF(ss_cat="large",4,5))) -> NA | M42: GAC Contact Basins - Aluminum Stairs | N42: 1 | O42: 1 | P42: 1 | Q42: 1 | R42: 1 | S42: 1 | T42: 1 | U42: 1 | V42: 1 | W42: 0 | X42: 1 | Y42: 1 | Z42: 1 | AA42: 1 | AB42: 1 | AC42: 1 | AD42: 1 | AE42: 1 | AF42: 1 | AG42: 0 | AH42: 0
A43: 1.2.5 | B43: Excavation | C43: =IF(design_type=1,0,excavation_vol) -> 0 | D43: cy | E43: NA | G43: NA | I43: =IF(C43=0,"NA",VLOOKUP(0,excavate_cost_cl,3)) -> NA | J43: -- | K43: =IF(C43=0,"NA",VLOOKUP(0,conc_basin_cost_cl,IF(ss_cat="large",4,5))) -> NA | M43: GAC Contact Basins - Excavation | N43: 1 | O43: 1 | P43: 1 | Q43: 1 | R43: 1 | S43: 1 | T43: 1 | U43: 1 | V43: 1 | W43: 0 | X43: 1 | Y43: 1 | Z43: 1 | AA43: 1 | AB43: 1 | AC43: 1 | AD43: 1 | AE43: 1 | AF43: 1 | AG43: 0 | AH43: 0
A44: 1.2.6 | B44: Backfill and Compaction | C44: =IF(design_type=1,0,backfill_vol) -> 0 | D44: cy | E44: NA | G44: NA | I44: =IF(C44=0,"NA",VLOOKUP(0,backfill_cost_cl,3)) -> NA | J44: -- | K44: =IF(C44=0,"NA",VLOOKUP(0,conc_basin_cost_cl,IF(ss_cat="large",4,5))) -> NA | M44: GAC Contact Basins - Backfill and Compaction | N44: 1 | O44: 1 | P44: 1 | Q44: 1 | R44: 1 | S44: 1 | T44: 1 | U44: 1 | V44: 1 | W44: 0 | X44: 1 | Y44: 1 | Z44: 1 | AA44: 1 | AB44: 1 | AC44: 1 | AD44: 1 | AE44: 1 | AF44: 1 | AG44: 0 | AH44: 0
A45: 2. | B45: Tanks | AG45: 0 | AH45: 0
A46: 2.1 | B46: Backwash Tanks/Basins | AG46: 0 | AH46: 0
A47: 2.1.1 | B47: Concrete Basins (includes Excavation, Backfill, and Compaction) | C47: =IF(num_back_tanks=0,0,back_basins) -> 0 | D47: units | E47: =IF(back_basins=0,"NA",back_basin_vol) -> NA | F47: =IF(C47=0,"","gal") ->  | G47: =IF(back_basins=0,"NA",back_basin_vol) -> NA | H47: =IF(C47=0,"","gal") ->  | I47: =IF(back_basins=0,"NA",J47/back_basins) -> NA | J47: =IF(back_basins=0,"--",back_conc_vol*VLOOKUP(0,conc_basin_cost_cl,3)+back_excavation_vol*VLOOKUP(0,excavate_cost_cl,3)+back_backfill_vol*VLOOKUP(0,backfill_cost_cl,3)+back_railing*VLOOKUP("aluminum railing",metal_cost_cl,3)) -> -- | K47: =IF(back_basins=0,"NA",VLOOKUP(0,conc_basin_cost_cl,IF(ss_cat="large",4,5))) -> NA | M47: =$B$46&" - "&B47 -> Backwash Tanks/Basins - Concrete Basins (includes Excavation, Backfill, and Compaction) | N47: =IF(retrofit=1,$W47*X47,IF(ISBLANK(X47),"",X47)) -> 3 | O47: 3 | P47: 2 | Q47: 3 | R47: 3 | S47: 2 | T47: 3 | U47: =IF(retrofit=1,$W47*AE47,IF(ISBLANK(AE47),"",AE47)) -> 3 | V47: 2 | W47: 0 | X47: 3 | Y47: 3 | Z47: 2 | AA47: 3 | AB47: 3 | AC47: 2 | AD47: 3 | AE47: 3 | AF47: 2 | AG47: 0 | AH47: 0
A48: 2.1.1 | B48: Steel | C48: =num_back_tanks -> 0 | D48: units | E48: =IF(C48=0,"NA",back_tank_vol) -> NA | F48: =IF(C48=0,"","gal") ->  | G48: =IF(C48=0,"NA",IF(curve=1,back_tank_vol,VLOOKUP(back_tank_vol,st_bwt_cost_cl,2))) -> NA | H48: =IF(C48=0,"","gal") ->  | I48: =IF(C48=0,"NA",IF(curve=1,st_bwt_eq,VLOOKUP(back_tank_vol,st_bwt_cost_cl,3))) -> NA | J48: =IF(OR(C48=0,I48="contact vendor"),"--",C48*I48) -> -- | K48: =IF(C48=0,"NA",VLOOKUP(back_tank_vol,st_bwt_cost_cl,IF(ss_cat="large",4,5))) -> NA | M48: =$B$46&" - "&B48 -> Backwash Tanks/Basins - Steel | N48: 4 | O48: 4 | P48: 1 | Q48: 4 | R48: 4 | S48: 1 | T48: 4 | U48: 4 | V48: 1 | W48: 0 | X48: 4 | Y48: 4 | Z48: 1 | AA48: 4 | AB48: 4 | AC48: 1 | AD48: 4 | AE48: 4 | AF48: 1 | AG48: 0 | AH48: 0
A49: 2.1.1 | B49: Fiberglass | C49: =num_back_tanks -> 0 | D49: units | E49: =IF(C49=0,"NA",back_tank_vol) -> NA | F49: =IF(C49=0,"","gal") ->  | G49: =IF(C49=0,"NA",IF(curve=1,back_tank_vol,VLOOKUP(back_tank_vol,fg_bwt_cost_cl,2))) -> NA | H49: =IF(C49=0,"","gal") ->  | I49: =IF(C49=0,"NA",IF(curve=1,fg_bwt_eq,VLOOKUP(back_tank_vol,fg_bwt_cost_cl,3))) -> NA | J49: =IF(OR(C49=0,I49="contact vendor"),"--",C49*I49) -> -- | K49: =IF(C49=0,"NA",VLOOKUP(back_tank_vol,fg_bwt_cost_cl,IF(ss_cat="large",4,5))) -> NA | M49: =$B$46&" - "&B49 -> Backwash Tanks/Basins - Fiberglass | N49: 2 | O49: 1 | P49: 3 | Q49: 2 | R49: 1 | S49: 3 | T49: 2 | U49: 1 | V49: 3 | W49: 0 | X49: 2 | Y49: 1 | Z49: 3 | AA49: 2 | AB49: 1 | AC49: 3 | AD49: 2 | AE49: 1 | AF49: 3 | AG49: 0 | AH49: 0
A50: 2.1.1 | B50: Plastic/HDPE | C50: =num_back_tanks -> 0 | D50: units | E50: =IF(C50=0,"NA",back_tank_vol) -> NA | F50: =IF(C50=0,"","gal") ->  | G50: =IF(C50=0,"NA",IF(curve=1,back_tank_vol,VLOOKUP(back_tank_vol,hdpe_bwt_cost_cl,2))) -> NA | H50: =IF(C50=0,"","gal") ->  | I50: =IF(C50=0,"NA",IF(curve=1,hdpe_bwt_eq,VLOOKUP(back_tank_vol,hdpe_bwt_cost_cl,3))) -> NA | J50: =IF(OR(C50=0,I50="contact vendor"),"--",C50*I50) -> -- | K50: =IF(C50=0,"NA",VLOOKUP(back_tank_vol,hdpe_bwt_cost_cl,IF(ss_cat="large",4,5))) -> NA | M50: =$B$46&" - "&B50 -> Backwash Tanks/Basins - Plastic/HDPE | N50: 1 | O50: 2 | P50: 4 | Q50: 1 | R50: 2 | S50: 4 | T50: 1 | U50: 2 | V50: 4 | W50: 0 | X50: 1 | Y50: 2 | Z50: 4 | AA50: 1 | AB50: 2 | AC50: 4 | AD50: 1 | AE50: 2 | AF50: 4 | AG50: 0 | AH50: 0
A51: 2.2 | B51: Residuals Holding Tanks/Basins | AG51: 0 | AH51: 0
A52: 2.2.1 | B52: Concrete Basins (includes Excavation, Backfill, and Compaction) | C52: =hbasins -> 1 | D52: units | E52: =IF(hbasins=0,"NA",hbasin_vol) -> 87247 | F52: =IF(C52=0,"","gal") -> gal | G52: =IF(hbasins=0,"NA",hbasin_vol) -> 87247 | H52: =IF(C52=0,"","gal") -> gal | I52: =IF(hbasins=0,"NA",J52/hbasins) -> 118045.5849 | J52: =IF(hbasins=0,"--",hconc_vol*VLOOKUP(0,conc_basin_cost_cl,3)+hexcavation_vol*VLOOKUP(0,excavate_cost_cl,3)+hbackfill_vol*VLOOKUP(0,backfill_cost_cl,3)+hrailing*VLOOKUP("aluminum railing",metal_cost_cl,3)) -> 118045.5849 | K52: =IF(hbasins=0,"NA",VLOOKUP(0,conc_basin_cost_cl,IF(ss_cat="large",4,5))) -> 40 | L52: 0 | M52: =$B$51&" - "&B52 -> Residuals Holding Tanks/Basins - Concrete Basins (includes Excavation, Backfill, and Compaction) | N52: =IF(retrofit=1,$W52*X52,IF(ISBLANK(X52),"",X52)) -> 4 | O52: =IF(retrofit=1,$W52*Y52,IF(ISBLANK(Y52),"",Y52)) -> 4 | P52: =IF(retrofit=1,$W52*Z52,IF(ISBLANK(Z52),"",Z52)) -> 2 | Q52: =IF(retrofit=1,$W52*AA52,IF(ISBLANK(AA52),"",AA52)) -> 4 | R52: =IF(retrofit=1,$W52*AB52,IF(ISBLANK(AB52),"",AB52)) -> 4 | S52: =IF(retrofit=1,$W52*AC52,IF(ISBLANK(AC52),"",AC52)) -> 2 | T52: =IF(retrofit=1,$W52*AD52,IF(ISBLANK(AD52),"",AD52)) -> 4 | U52: =IF(retrofit=1,$W52*AE52,IF(ISBLANK(AE52),"",AE52)) -> 4 | V52: =IF(retrofit=1,$W52*AF52,IF(ISBLANK(AF52),"",AF52)) -> 2 | W52: 0 | X52: 4 | Y52: 4 | Z52: 2 | AA52: 4 | AB52: 4 | AC52: 2 | AD52: 4 | AE52: 4 | AF52: 2 | AG52: 0 | AH52: 0
A53: 2.2.1 | B53: Steel Tanks | C53: =htanks -> 1 | D53: units | E53: =IF(C53=0,"NA",htank_vol) -> 70560 | F53: =IF(C53=0,"","gal") -> gal | G53: =IF(htanks=0,"NA",IF(curve=1,htank_vol,VLOOKUP(htank_vol,st_bwt_cost_cl,2))) -> 70560 | H53: =IF(C53=0,"","gal") -> gal | I53: =IF(htanks=0,"NA",IF(curve=1,st_ht_eq,VLOOKUP(htank_vol,st_bwt_cost_cl,3))) -> 54840.48126 | J53: =IF(OR(C53=0,I53="contact vendor"),"--",C53*I53) -> 54840.48126 | K53: =IF(htanks=0,"NA",VLOOKUP(htank_vol,st_bwt_cost_cl,IF(ss_cat="large",4,5))) -> 35 | L53: 1 | M53: =$B$51&" - "&B53 -> Residuals Holding Tanks/Basins - Steel Tanks | N53: 3 | O53: 3 | P53: 1 | Q53: 3 | R53: 3 | S53: 1 | T53: 3 | U53: 3 | V53: 1 | W53: 0 | X53: 3 | Y53: 3 | Z53: 1 | AA53: 3 | AB53: 3 | AC53: 1 | AD53: 3 | AE53: 3 | AF53: 1 | AG53: 1 | AH53: 1566.870893
A54: 2.2.1 | B54: Fiberglass Tanks | C54: =htanks -> 1 | D54: units | E54: =IF(C54=0,"NA",htank_vol) -> 70560 | F54: =IF(C54=0,"","gal") -> gal | G54: =IF(htanks=0,"NA",IF(curve=1,htank_vol,VLOOKUP(htank_vol,fg_bwt_cost_cl,2))) -> 70560 | H54: =IF(C54=0,"","gal") -> gal | I54: =IF(htanks=0,"NA",IF(curve=1,fg_ht_eq,VLOOKUP(htank_vol,fg_bwt_cost_cl,3))) -> contact vendor | J54: =IF(OR(C54=0,I54="contact vendor"),"--",C54*I54) -> -- | K54: =IF(htanks=0,"NA",VLOOKUP(htank_vol,fg_bwt_cost_cl,IF(ss_cat="large",4,5))) -> 25 | L54: 0 | M54: =$B$51&" - "&B54 -> Residuals Holding Tanks/Basins - Fiberglass Tanks | N54: =IF(retrofit=1,$W54*X54,IF(ISBLANK(X54),"",X54)) -> 2 | O54: 1 | P54: 3 | Q54: 2 | R54: 1 | S54: 3 | T54: 2 | U54: 1 | V54: 3 | W54: 0 | X54: 2 | Y54: 1 | Z54: 3 | AA54: 2 | AB54: 1 | AC54: 3 | AD54: 2 | AE54: 1 | AF54: 3 | AG54: 0 | AH54: 0
A55: 2.2.1 | B55: Plastic/HDPE Tanks | C55: =htanks -> 1 | D55: units | E55: =IF(C55=0,"NA",htank_vol) -> 70560 | F55: =IF(C55=0,"","gal") -> gal | G55: =IF(htanks=0,"NA",IF(curve=1,htank_vol,VLOOKUP(htank_vol,hdpe_bwt_cost_cl,2))) -> 70560 | H55: =IF(C55=0,"","gal") -> gal | I55: =IF(htanks=0,"NA",IF(curve=1,hdpe_ht_eq,VLOOKUP(htank_vol,hdpe_bwt_cost_cl,3))) -> contact vendor | J55: =IF(OR(C53=0,I55="contact vendor"),"--",C55*I55) -> -- | K55: =IF(htanks=0,"NA",VLOOKUP(htank_vol,hdpe_bwt_cost_cl,IF(ss_cat="large",4,5))) -> 25 | L55: 0 | M55: =$B$51&" - "&B55 -> Residuals Holding Tanks/Basins - Plastic/HDPE Tanks | N55: =IF(retrofit=1,$W55*X55,IF(ISBLANK(X55),"",X55)) -> 1 | O55: 2 | P55: 4 | Q55: 1 | R55: 2 | S55: 4 | T55: 1 | U55: 2 | V55: 4 | W55: 0 | X55: 1 | Y55: 2 | Z55: 4 | AA55: 1 | AB55: 2 | AC55: 4 | AD55: 1 | AE55: 2 | AF55: 4 | AG55: 0 | AH55: 0
A56: 2.3 | B56: Polymer Storage Tanks | AG56: 0 | AH56: 0
A57: 2.3.1 | B57: Plastic/HDPE | C57: =polymer_tanks -> 0 | D57: units | E57: =IF(C57=0,"NA",polymer_tank_vol) -> NA | F57: =IF(C57=0,"","gal") ->  | G57: =IF(C57=0,"NA",IF(curve=1,polymer_tank_vol,VLOOKUP(polymer_tank_vol,pl_cst_cost_cl,2))) -> NA | H57: =IF(C57=0,"","gal") ->  | I57: =IF(C57=0,"NA",IF(curve=1,pl_polymer_st_eq,VLOOKUP(polymer_tank_vol,pl_cst_cost_cl,3))) -> NA | J57: =IF(OR(C57=0,I57="contact vendor"),"--",C57*I57) -> -- | K57: =IF(C57=0,"NA",VLOOKUP(polymer_tank_vol,pl_cst_cost_cl,IF(ss_cat="large",4,5))) -> NA | M57: =$B$56&" - "&B57 -> Polymer Storage Tanks - Plastic/HDPE | N57: =IF(retrofit=1,$W57*X57,IF(ISBLANK(X57),"",X57)) -> 1 | O57: 2 | P57: 3 | Q57: 1 | R57: 2 | S57: 3 | T57: 1 | U57: 2 | V57: 3 | W57: 0 | X57: 1 | Y57: 2 | Z57: 3 | AA57: 1 | AB57: 2 | AC57: 3 | AD57: 1 | AE57: 2 | AF57: 3 | AG57: 0 | AH57: 0
A58: 2.3.1 | B58: Fiberglass | C58: =polymer_tanks -> 0 | D58: units | E58: =IF(C58=0,"NA",polymer_tank_vol) -> NA | F58: =IF(C58=0,"","gal") ->  | G58: =IF(C58=0,"NA",IF(curve=1,polymer_tank_vol,VLOOKUP(polymer_tank_vol,fg_cst_cost_cl,2))) -> NA | H58: =IF(C58=0,"","gal") ->  | I58: =IF(C58=0,"NA",IF(curve=1,fg_polymer_st_eq,VLOOKUP(polymer_tank_vol,fg_cst_cost_cl,3))) -> NA | J58: =IF(OR(C58=0,I58="contact vendor"),"--",C58*I58) -> -- | K58: =IF(C58=0,"NA",VLOOKUP(polymer_tank_vol,fg_cst_cost_cl,IF(ss_cat="large",4,5))) -> NA | M58: =$B$56&" - "&B58 -> Polymer Storage Tanks - Fiberglass | N58: 2 | O58: 1 | P58: 2 | Q58: 2 | R58: 1 | S58: 2 | T58: 2 | U58: 1 | V58: 2 | W58: 0 | X58: 2 | Y58: 1 | Z58: 2 | AA58: 2 | AB58: 1 | AC58: 2 | AD58: 2 | AE58: 1 | AF58: 2 | AG58: 0 | AH58: 0
A59: 2.3.1 | B59: Stainless Steel | C59: =polymer_tanks -> 0 | D59: units | E59: =IF(C59=0,"NA",polymer_tank_vol) -> NA | F59: =IF(C59=0,"","gal") ->  | G59: =IF(C59=0,"NA",IF(curve=1,polymer_tank_vol,VLOOKUP(polymer_tank_vol,ss_cst_cost_cl,2))) -> NA | H59: =IF(C59=0,"","gal") ->  | I59: =IF(C59=0,"NA",IF(curve=1,ss_polymer_st_eq,VLOOKUP(polymer_tank_vol,ss_cst_cost_cl,3))) -> NA | J59: =IF(OR(C59=0,I59="contact vendor"),"--",C59*I59) -> -- | K59: =IF(C59=0,"NA",VLOOKUP(polymer_tank_vol,ss_cst_cost_cl,IF(ss_cat="large",4,5))) -> NA | M59: =$B$56&" - "&B59 -> Polymer Storage Tanks - Stainless Steel | N59: =IF(retrofit=1,$W59*X59,IF(ISBLANK(X59),"",X59)) -> 3 | O59: 3 | P59: 1 | Q59: 3 | R59: 3 | S59: 1 | T59: 3 | U59: 3 | V59: 1 | W59: 0 | X59: 3 | Y59: 3 | Z59: 1 | AA59: 3 | AB59: 3 | AC59: 1 | AD59: 3 | AE59: 3 | AF59: 1 | AG59: 0 | AH59: 0
A60: 3. | B60: Piping | AG60: 0 | AH60: 0
A61: 3.1 | B61: Process Piping | AG61: 0 | AH61: 0
A62: 3.1.1 | B62: Ductile Iron | C62: =proc_pipe_length -> 440 | D62: lf | E62: =proc_pipe_diam -> 12 | F62: in. diam | G62: =IF(curve=1,proc_pipe_diam,VLOOKUP(proc_pipe_diam,di_pipe_cost_cl,2)) -> 12 | H62: in. diam | I62: =IF(curve=1,di_pipe_eq_proc,VLOOKUP(proc_pipe_diam,di_pipe_cost_cl,3)) -> 75.54093368 | J62: =IF(I62="contact vendor","--",C62*I62) -> 33238.01082 | K62: =VLOOKUP(proc_pipe_diam,di_pipe_cost_cl,IF(ss_cat="large",4,5)) -> 40 | L62: 0 | M62: =$B$61&" - "&B62 -> Process Piping - Ductile Iron | N62: =IF(retrofit=1,$W62*X62,IF(ISBLANK(X62),"",X62)) -> 3 | O62: 3 | P62: 3 | Q62: 3 | R62: 3 | S62: 3 | T62: 3 | U62: =IF(retrofit=1,$W62*AE62,IF(ISBLANK(AE62),"",AE62)) -> 3 | V62: 3 | W62: 0 | X62: 3 | Y62: 3 | Z62: 3 | AA62: 3 | AB62: 3 | AC62: 3 | AD62: 3 | AE62: 3 | AF62: 3 | AG62: 0 | AH62: 0
A63: 3.1.1 | B63: CPVC | C63: =proc_pipe_length -> 440 | D63: lf | E63: =proc_pipe_diam -> 12 | F63: in. diam | G63: =IF(curve=1,proc_pipe_diam,VLOOKUP(proc_pipe_diam,cpvc_pipe_cost_cl,2)) -> 12 | H63: in. diam | I63: =IF(curve=1,cpvc_pipe_eq_proc,VLOOKUP(proc_pipe_diam,cpvc_pipe_cost_cl,3)) -> 212.9930066 | J63: =IF(I63="contact vendor","--",C63*I63) -> 93716.92292 | K63: =VLOOKUP(proc_pipe_diam,cpvc_pipe_cost_cl,IF(ss_cat="large",4,5)) -> 22 | L63: 0 | M63: =$B$61&" - "&B63 -> Process Piping - CPVC | N63: 2 | O63: 1 | P63: 4 | Q63: 2 | R63: 1 | S63: 4 | T63: 2 | U63: 1 | V63: 4 | W63: 0 | X63: 2 | Y63: 1 | Z63: 4 | AA63: 2 | AB63: 1 | AC63: 4 | AD63: 2 | AE63: 1 | AF63: 4 | AG63: 0 | AH63: 0
A64: 3.1.1 | B64: PVC | C64: =proc_pipe_length -> 440 | D64: lf | E64: =proc_pipe_diam -> 12 | F64: in. diam | G64: =IF(curve=1,proc_pipe_diam,VLOOKUP(proc_pipe_diam,pvc_pipe_cost_cl,2)) -> 12 | H64: in. diam | I64: =IF(curve=1,pvc_pipe_eq_proc,VLOOKUP(proc_pipe_diam,pvc_pipe_cost_cl,3)) -> 24.4886317 | J64: =IF(I64="contact vendor","--",C64*I64) -> 10774.99795 | K64: =VLOOKUP(proc_pipe_diam,pvc_pipe_cost_cl,IF(ss_cat="large",4,5)) -> 22 | L64: 1 | M64: =$B$61&" - "&B64 -> Process Piping - PVC | N64: 1 | O64: 2 | P64: 5 | Q64: 1 | R64: 2 | S64: 5 | T64: 1 | U64: 2 | V64: 5 | W64: 0 | X64: 1 | Y64: 2 | Z64: 5 | AA64: 1 | AB64: 2 | AC64: 5 | AD64: 1 | AE64: 2 | AF64: 5 | AG64: 1 | AH64: 489.7726339
A65: 3.1.1 | B65: Stainless Steel | C65: =proc_pipe_length -> 440 | D65: lf | E65: =proc_pipe_diam -> 12 | F65: in. diam | G65: =IF(curve=1,proc_pipe_diam,VLOOKUP(proc_pipe_diam,ss_pipe_cost_cl,2)) -> 12 | H65: in. diam | I65: =IF(curve=1,ss_pipe_eq_proc,VLOOKUP(proc_pipe_diam,ss_pipe_cost_cl,3)) -> 395.3142761 | J65: =IF(I65="contact vendor","--",C65*I65) -> 173938.2815 | K65: =VLOOKUP(proc_pipe_diam,ss_pipe_cost_cl,IF(ss_cat="large",4,5)) -> 45 | L65: 0 | M65: =$B$61&" - "&B65 -> Process Piping - Stainless Steel | N65: 5 | O65: 5 | P65: 1 | Q65: 5 | R65: 5 | S65: 1 | T65: 5 | U65: 5 | V65: 1 | W65: 0 | X65: 5 | Y65: 5 | Z65: 1 | AA65: 5 | AB65: 5 | AC65: 1 | AD65: 5 | AE65: 5 | AF65: 1 | AG65: 0 | AH65: 0
A66: 3.1.1 | B66: Steel | C66: =proc_pipe_length -> 440 | D66: lf | E66: =proc_pipe_diam -> 12 | F66: in. diam | G66: =IF(curve=1,proc_pipe_diam,VLOOKUP(proc_pipe_diam,st_pipe_cost_cl,2)) -> 12 | H66: in. diam | I66: =IF(curve=1,st_pipe_eq_proc,VLOOKUP(proc_pipe_diam,st_pipe_cost_cl,3)) -> 198.7046241 | J66: =IF(I66="contact vendor","--",C66*I66) -> 87430.03463 | K66: =VLOOKUP(proc_pipe_diam,st_pipe_cost_cl,IF(ss_cat="large",4,5)) -> 35 | L66: 0 | M66: =$B$61&" - "&B66 -> Process Piping - Steel | N66: 4 | O66: 4 | P66: 2 | Q66: 4 | R66: 4 | S66: 2 | T66: 4 | U66: 4 | V66: 2 | W66: 0 | X66: 4 | Y66: 4 | Z66: 2 | AA66: 4 | AB66: 4 | AC66: 2 | AD66: 4 | AE66: 4 | AF66: 2 | AG66: 0 | AH66: 0
A67: 3.2 | B67: Backwash Piping | AG67: 0 | AH67: 0
A68: 3.2.1 | B68: CPVC | C68: =back_pipe_length -> 550 | D68: lf | E68: =back_pipe_diam -> 12 | F68: in. diam | G68: =IF(curve=1,back_pipe_diam,VLOOKUP(back_pipe_diam,cpvc_pipe_cost_cl,2)) -> 12 | H68: in. diam | I68: =IF(curve=1,cpvc_pipe_eq_back,VLOOKUP(back_pipe_diam,cpvc_pipe_cost_cl,3)) -> 212.9930066 | J68: =IF(I68="contact vendor","--",C68*I68) -> 117146.1537 | K68: =VLOOKUP(back_pipe_diam,cpvc_pipe_cost_cl,IF(ss_cat="large",4,5)) -> 22 | L68: 0 | M68: =$B$67&" - "&B68 -> Backwash Piping - CPVC | N68: =IF(retrofit=1,$W68*X68,IF(ISBLANK(X68),"",X68)) -> 2 | O68: 1 | P68: 3 | Q68: 2 | R68: 1 | S68: 3 | T68: 2 | U68: =IF(retrofit=1,$W68*AE68,IF(ISBLANK(AE68),"",AE68)) -> 1 | V68: 3 | W68: 0 | X68: 2 | Y68: 1 | Z68: 3 | AA68: 2 | AB68: 1 | AC68: 3 | AD68: 2 | AE68: 1 | AF68: 3 | AG68: 0 | AH68: 0
A69: 3.2.1 | B69: PVC | C69: =back_pipe_length -> 550 | D69: lf | E69: =back_pipe_diam -> 12 | F69: in. diam | G69: =IF(curve=1,back_pipe_diam,VLOOKUP(back_pipe_diam,pvc_pipe_cost_cl,2)) -> 12 | H69: in. diam | I69: =IF(curve=1,pvc_pipe_eq_back,VLOOKUP(back_pipe_diam,pvc_pipe_cost_cl,3)) -> 24.4886317 | J69: =IF(I69="contact vendor","--",C69*I69) -> 13468.74743 | K69: =VLOOKUP(back_pipe_diam,pvc_pipe_cost_cl,IF(ss_cat="large",4,5)) -> 22 | L69: 1 | M69: =$B$67&" - "&B69 -> Backwash Piping - PVC | N69: 1 | O69: 2 | P69: 4 | Q69: 1 | R69: 2 | S69: 4 | T69: 1 | U69: 2 | V69: 4 | W69: 0 | X69: 1 | Y69: 2 | Z69: 4 | AA69: 1 | AB69: 2 | AC69: 4 | AD69: 1 | AE69: 2 | AF69: 4 | AG69: 1 | AH69: 612.2157924
A70: 3.2.1 | B70: Stainless Steel | C70: =back_pipe_length -> 550 | D70: lf | E70: =back_pipe_diam -> 12 | F70: in. diam | G70: =IF(curve=1,back_pipe_diam,VLOOKUP(back_pipe_diam,ss_pipe_cost_cl,2)) -> 12 | H70: in. diam | I70: =IF(curve=1,ss_pipe_eq_back,VLOOKUP(back_pipe_diam,ss_pipe_cost_cl,3)) -> 395.3142761 | J70: =IF(I70="contact vendor","--",C70*I70) -> 217422.8519 | K70: =VLOOKUP(back_pipe_diam,ss_pipe_cost_cl,IF(ss_cat="large",4,5)) -> 45 | L70: 0 | M70: =$B$67&" - "&B70 -> Backwash Piping - Stainless Steel | N70: 4 | O70: 4 | P70: 1 | Q70: 4 | R70: 4 | S70: 1 | T70: 4 | U70: 4 | V70: 1 | W70: 0 | X70: 4 | Y70: 4 | Z70: 1 | AA70: 4 | AB70: 4 | AC70: 1 | AD70: 4 | AE70: 4 | AF70: 1 | AG70: 0 | AH70: 0
A71: 3.2.1 | B71: Steel | C71: =back_pipe_length -> 550 | D71: lf | E71: =back_pipe_diam -> 12 | F71: in. diam | G71: =IF(curve=1,back_pipe_diam,VLOOKUP(back_pipe_diam,st_pipe_cost_cl,2)) -> 12 | H71: in. diam | I71: =IF(curve=1,st_pipe_eq_back,VLOOKUP(back_pipe_diam,st_pipe_cost_cl,3)) -> 198.7046241 | J71: =IF(I71="contact vendor","--",C71*I71) -> 109287.5433 | K71: =VLOOKUP(back_pipe_diam,st_pipe_cost_cl,IF(ss_cat="large",4,5)) -> 35 | L71: 0 | M71: =$B$67&" - "&B71 -> Backwash Piping - Steel | N71: 3 | O71: 3 | P71: 2 | Q71: 3 | R71: 3 | S71: 2 | T71: 3 | U71: 3 | V71: 2 | W71: 0 | X71: 3 | Y71: 3 | Z71: 2 | AA71: 3 | AB71: 3 | AC71: 2 | AD71: 3 | AE71: 3 | AF71: 2 | AG71: 0 | AH71: 0
A72: 3.3 | B72: Inlet and Outlet Piping | AG72: 0 | AH72: 0
A73: 3.3.1 | B73: Ductile Iron | C73: =in_out_pipe_length -> 440 | D73: lf | E73: =IF(C73=0,"NA",in_out_pipe_diam) -> 36 | F73: =IF(C73=0,"","in. diam") -> in. diam | G73: =IF(C73=0,"NA",IF(curve=1,in_out_pipe_diam,VLOOKUP(in_out_pipe_diam,di_pipe_cost_cl,2))) -> 36 | H73: =IF(C73=0,"","in. diam") -> in. diam | I73: =IF(C73=0,"NA",IF(curve=1,di_pipe_eq_in_out,VLOOKUP(in_out_pipe_diam,di_pipe_cost_cl,3))) -> 1097.029501 | J73: =IF(OR(C73=0,I73="contact vendor"),"--",C73*I73) -> 482692.9807 | K73: =IF(C73=0,"NA",VLOOKUP(in_out_pipe_diam,di_pipe_cost_cl,IF(ss_cat="large",4,5))) -> 40 | L73: 0 | M73: =$B$72&" - "&B73 -> Inlet and Outlet Piping - Ductile Iron | N73: =IF(retrofit=1,$W73*X73,IF(ISBLANK(X73),"",X73)) -> 3 | O73: 3 | P73: 3 | Q73: 3 | R73: 3 | S73: 3 | T73: 3 | U73: =IF(retrofit=1,$W73*AE73,IF(ISBLANK(AE73),"",AE73)) -> 3 | V73: 3 | W73: 0 | X73: 3 | Y73: 3 | Z73: 3 | AA73: 3 | AB73: 3 | AC73: 3 | AD73: 3 | AE73: 3 | AF73: 3 | AG73: 0 | AH73: 0
A74: 3.3.1 | B74: CPVC | C74: =in_out_pipe_length -> 440 | D74: lf | E74: =IF(C74=0,"NA",in_out_pipe_diam) -> 36 | F74: =IF(C74=0,"","in. diam") -> in. diam | G74: =IF(C74=0,"NA",IF(curve=1,in_out_pipe_diam,VLOOKUP(in_out_pipe_diam,cpvc_pipe_cost_cl,2))) -> 36 | H74: =IF(C74=0,"","in. diam") -> in. diam | I74: =IF(C74=0,"NA",IF(curve=1,cpvc_pipe_eq_in_out,VLOOKUP(in_out_pipe_diam,cpvc_pipe_cost_cl,3))) -> contact vendor | J74: =IF(OR(C74=0,I74="contact vendor"),"--",C74*I74) -> -- | K74: =IF(C74=0,"NA",VLOOKUP(in_out_pipe_diam,cpvc_pipe_cost_cl,IF(ss_cat="large",4,5))) -> 22 | L74: 0 | M74: =$B$72&" - "&B74 -> Inlet and Outlet Piping - CPVC | N74: 2 | O74: 1 | P74: 4 | Q74: 2 | R74: 1 | S74: 4 | T74: 2 | U74: 1 | V74: 4 | W74: 0 | X74: 2 | Y74: 1 | Z74: 4 | AA74: 2 | AB74: 1 | AC74: 4 | AD74: 2 | AE74: 1 | AF74: 4 | AG74: 0 | AH74: 0
A75: 3.3.1 | B75: PVC | C75: =in_out_pipe_length -> 440 | D75: lf | E75: =IF(C75=0,"NA",in_out_pipe_diam) -> 36 | F75: =IF(C75=0,"","in. diam") -> in. diam | G75: =IF(C75=0,"NA",IF(curve=1,in_out_pipe_diam,VLOOKUP(in_out_pipe_diam,pvc_pipe_cost_cl,2))) -> 36 | H75: =IF(C75=0,"","in. diam") -> in. diam | I75: =IF(C75=0,"NA",IF(curve=1,pvc_pipe_eq_in_out,VLOOKUP(in_out_pipe_diam,pvc_pipe_cost_cl,3))) -> 156.3010039 | J75: =IF(OR(C75=0,I75="contact vendor"),"--",C75*I75) -> 68772.44174 | K75: =IF(C75=0,"NA",VLOOKUP(in_out_pipe_diam,pvc_pipe_cost_cl,IF(ss_cat="large",4,5))) -> 22 | L75: 1 | M75: =$B$72&" - "&B75 -> Inlet and Outlet Piping - PVC | N75: 1 | O75: 2 | P75: 5 | Q75: 1 | R75: 2 | S75: 5 | T75: 1 | U75: 2 | V75: 5 | W75: 0 | X75: 1 | Y75: 2 | Z75: 5 | AA75: 1 | AB75: 2 | AC75: 5 | AD75: 1 | AE75: 2 | AF75: 5 | AG75: 1 | AH75: 3126.020079
A76: 3.3.1 | B76: Stainless Steel | C76: =in_out_pipe_length -> 440 | D76: lf | E76: =IF(C76=0,"NA",in_out_pipe_diam) -> 36 | F76: =IF(C76=0,"","in. diam") -> in. diam | G76: =IF(C76=0,"NA",IF(curve=1,in_out_pipe_diam,VLOOKUP(in_out_pipe_diam,ss_pipe_cost_cl,2))) -> 36 | H76: =IF(C76=0,"","in. diam") -> in. diam | I76: =IF(C76=0,"NA",IF(curve=1,ss_pipe_eq_in_out,VLOOKUP(in_out_pipe_diam,ss_pipe_cost_cl,3))) -> 1228.2053 | J76: =IF(OR(C76=0,I76="contact vendor"),"--",C76*I76) -> 540410.332 | K76: =IF(C76=0,"NA",VLOOKUP(in_out_pipe_diam,ss_pipe_cost_cl,IF(ss_cat="large",4,5))) -> 45 | L76: 0 | M76: =$B$72&" - "&B76 -> Inlet and Outlet Piping - Stainless Steel | N76: 5 | O76: 5 | P76: 1 | Q76: 5 | R76: 5 | S76: 1 | T76: 5 | U76: 5 | V76: 1 | W76: 0 | X76: 5 | Y76: 5 | Z76: 1 | AA76: 5 | AB76: 5 | AC76: 1 | AD76: 5 | AE76: 5 | AF76: 1 | AG76: 0 | AH76: 0
A77: 3.3.1 | B77: Steel | C77: =in_out_pipe_length -> 440 | D77: lf | E77: =IF(C77=0,"NA",in_out_pipe_diam) -> 36 | F77: =IF(C77=0,"","in. diam") -> in. diam | G77: =IF(C77=0,"NA",IF(curve=1,in_out_pipe_diam,VLOOKUP(in_out_pipe_diam,st_pipe_cost_cl,2))) -> 36 | H77: =IF(C77=0,"","in. diam") -> in. diam | I77: =IF(C77=0,"NA",IF(curve=1,st_pipe_eq_in_out,VLOOKUP(in_out_pipe_diam,st_pipe_cost_cl,3))) -> 373.5523174 | J77: =IF(OR(C77=0,I77="contact vendor"),"--",C77*I77) -> 164363.0197 | K77: =IF(C77=0,"NA",VLOOKUP(in_out_pipe_diam,st_pipe_cost_cl,IF(ss_cat="large",4,5))) -> 35 | L77: 0 | M77: =$B$72&" - "&B77 -> Inlet and Outlet Piping - Steel | N77: 4 | O77: 4 | P77: 2 | Q77: 4 | R77: 4 | S77: 2 | T77: 4 | U77: 4 | V77: 2 | W77: 0 | X77: 4 | Y77: 4 | Z77: 2 | AA77: 4 | AB77: 4 | AC77: 2 | AD77: 4 | AE77: 4 | AF77: 2 | AG77: 0 | AH77: 0
A78: 3.4 | B78: Residuals Piping | AG78: 0 | AH78: 0
A79: 3.4.1 | B79: CPVC | C79: =res_pipe_length -> 260 | D79: lf | E79: =res_pipe_diam -> 10 | F79: in. diam | G79: =IF(curve=1,res_pipe_diam,VLOOKUP(res_pipe_diam,cpvc_pipe_cost_cl,2)) -> 10 | H79: in. diam | I79: =IF(curve=1,cpvc_pipe_eq_res,VLOOKUP(res_pipe_diam,cpvc_pipe_cost_cl,3)) -> 156.8104809 | J79: =IF(I79="contact vendor","--",C79*I79) -> 40770.72504 | K79: =VLOOKUP(res_pipe_diam,cpvc_pipe_cost_cl,IF(ss_cat="large",4,5)) -> 22 | L79: 0 | M79: =$B$78&" - "&B79 -> Residuals Piping - CPVC | N79: =IF(retrofit=1,$W79*X79,IF(ISBLANK(X79),"",X79)) -> 2 | O79: 1 | P79: 3 | Q79: 2 | R79: 1 | S79: 3 | T79: 2 | U79: =IF(retrofit=1,$W79*AE79,IF(ISBLANK(AE79),"",AE79)) -> 1 | V79: =IF(retrofit=1,$W79*AF79,IF(ISBLANK(AF79),"",AF79)) -> 3 | W79: 0 | X79: 2 | Y79: 1 | Z79: 3 | AA79: 2 | AB79: 1 | AC79: 3 | AD79: 2 | AE79: 1 | AF79: 3 | AG79: 0 | AH79: 0
A80: 3.4.1 | B80: PVC | C80: =res_pipe_length -> 260 | D80: lf | E80: =res_pipe_diam -> 10 | F80: in. diam | G80: =IF(curve=1,res_pipe_diam,VLOOKUP(res_pipe_diam,pvc_pipe_cost_cl,2)) -> 10 | H80: in. diam | I80: =IF(curve=1,pvc_pipe_eq_res,VLOOKUP(res_pipe_diam,pvc_pipe_cost_cl,3)) -> 18.88571827 | J80: =IF(I80="contact vendor","--",C80*I80) -> 4910.286751 | K80: =VLOOKUP(res_pipe_diam,pvc_pipe_cost_cl,IF(ss_cat="large",4,5)) -> 22 | L80: 1 | M80: Residuals Piping - PVC | N80: 1 | O80: 2 | P80: 4 | Q80: 1 | R80: 2 | S80: 4 | T80: 1 | U80: 2 | V80: 4 | W80: 0 | X80: 1 | Y80: 2 | Z80: 4 | AA80: 1 | AB80: 2 | AC80: 4 | AD80: 1 | AE80: 2 | AF80: 4 | AG80: 1 | AH80: 223.1948523
A81: 3.4.1 | B81: Stainless Steel | C81: =res_pipe_length -> 260 | D81: lf | E81: =res_pipe_diam -> 10 | F81: in. diam | G81: =IF(curve=1,res_pipe_diam,VLOOKUP(res_pipe_diam,ss_pipe_cost_cl,2)) -> 10 | H81: in. diam | I81: =IF(curve=1,ss_pipe_eq_res,VLOOKUP(res_pipe_diam,ss_pipe_cost_cl,3)) -> 329.2428715 | J81: =IF(I81="contact vendor","--",C81*I81) -> 85603.14659 | K81: =VLOOKUP(res_pipe_diam,ss_pipe_cost_cl,IF(ss_cat="large",4,5)) -> 45 | L81: 0 | M81: Residuals Piping - Stainless Steel | N81: 4 | O81: 4 | P81: 1 | Q81: 4 | R81: 4 | S81: 1 | T81: 4 | U81: 4 | V81: 1 | W81: 0 | X81: 4 | Y81: 4 | Z81: 1 | AA81: 4 | AB81: 4 | AC81: 1 | AD81: 4 | AE81: 4 | AF81: 1 | AG81: 0 | AH81: 0
A82: 3.4.1 | B82: Steel | C82: =res_pipe_length -> 260 | D82: lf | E82: =res_pipe_diam -> 10 | F82: in. diam | G82: =IF(curve=1,res_pipe_diam,VLOOKUP(res_pipe_diam,st_pipe_cost_cl,2)) -> 10 | H82: in. diam | I82: =IF(curve=1,st_pipe_eq_res,VLOOKUP(res_pipe_diam,st_pipe_cost_cl,3)) -> 171.5237376 | J82: =IF(I82="contact vendor","--",C82*I82) -> 44596.17176 | K82: =VLOOKUP(res_pipe_diam,st_pipe_cost_cl,IF(ss_cat="large",4,5)) -> 35 | L82: 0 | M82: Residuals Piping - Steel | N82: 3 | O82: 3 | P82: 2 | Q82: 3 | R82: 3 | S82: 2 | T82: 3 | U82: 3 | V82: 2 | W82: 0 | X82: 3 | Y82: 3 | Z82: 2 | AA82: 3 | AB82: 3 | AC82: 2 | AD82: 3 | AE82: 3 | AF82: 2 | AG82: 0 | AH82: 0
A83: 3.4.2 | B83: Excavation | C83: =res_trench_vol -> 55.1219188 | D83: cy | E83: NA | G83: NA | I83: =IF(C83=0,"NA",VLOOKUP(0,excavate_cost_cl,3)) -> 28.1275 | J83: =IF(OR(I83="contact vendor",C83=0),"--",C83*I83) -> 1550.441771 | K83: =IF(I83="NA","N/A",IF(L79=1,K79,IF(L80=1,K80,IF(L81=1,K81,IF(L82=1,K82,"N/A"))))) -> 22 | L83: 1 | M83: Residuals Piping - Excavation | N83: 1 | O83: 1 | P83: 1 | Q83: 1 | R83: 1 | S83: 1 | T83: 1 | U83: 1 | V83: 1 | W83: 0 | X83: 1 | Y83: 1 | Z83: 1 | AA83: 1 | AB83: 1 | AC83: 1 | AD83: 1 | AE83: 1 | AF83: 1 | AG83: 1 | AH83: 70.47462596
A84: 3.4.3 | B84: Bedding | C84: =res_pipe_bedding_vol -> 1.779297216 | D84: cy | E84: NA | G84: NA | I84: =IF(C84=0,"NA",VLOOKUP(0,bedding_cost_cl,3)) -> 49.8 | J84: =IF(OR(I84="contact vendor",C84=0),"--",C84*I84) -> 88.60900135 | K84: =IF(I84="NA","N/A",IF(L79=1,K79,IF(L80=1,K80,IF(L81=1,K81,IF(L82=1,K82,"N/A"))))) -> 22 | L84: 1 | M84: Residuals Piping - Bedding | N84: 1 | O84: 1 | P84: 1 | Q84: 1 | R84: 1 | S84: 1 | T84: 1 | U84: 1 | V84: 1 | W84: 0 | X84: 1 | Y84: 1 | Z84: 1 | AA84: 1 | AB84: 1 | AC84: 1 | AD84: 1 | AE84: 1 | AF84: 1 | AG84: 1 | AH84: 4.02768188
A85: 3.4.5 | B85: Backfill and Compaction | C85: =res_trench_vol -> 55.1219188 | D85: cy | E85: NA | G85: NA | I85: =IF(C85=0,"NA",VLOOKUP(0,backfill_cost_cl,3)) -> 13.04 | J85: =IF(OR(I85="contact vendor",C85=0),"--",C85*I85) -> 718.7898212 | K85: =IF(I85="NA","N/A",IF(L79=1,K79,IF(L80=1,K80,IF(L81=1,K81,IF(L82=1,K82,"N/A"))))) -> 22 | L85: 1 | M85: Residuals Piping - Backfill and Compaction | N85: 1 | O85: 1 | P85: 1 | Q85: 1 | R85: 1 | S85: 1 | T85: 1 | U85: 1 | V85: 1 | W85: 0 | X85: 1 | Y85: 1 | Z85: 1 | AA85: 1 | AB85: 1 | AC85: 1 | AD85: 1 | AE85: 1 | AF85: 1 | AG85: 1 | AH85: 32.6722646
A86: 3.4.6 | B86: Thrust Blocks | C86: =res_block_vol -> 6.233029913 | D86: cy | E86: NA | G86: NA | I86: =IF(C86=0,"NA",VLOOKUP(0,conc_basin_cost_cl,3)) -> 544.242375 | J86: =IF(OR(I86="contact vendor",C86=0),"--",C86*I86) -> 3392.279003 | K86: =IF(C86=0,"NA",VLOOKUP(0,conc_basin_cost_cl,IF(ss_cat="large",4,5))) -> 40 | L86: 1 | M86: Residuals Piping - Thrust Blocks | N86: 1 | O86: 1 | P86: 1 | Q86: 1 | R86: 1 | S86: 1 | T86: 1 | U86: 1 | V86: 1 | W86: 0 | X86: 1 | Y86: 1 | Z86: 1 | AA86: 1 | AB86: 1 | AC86: 1 | AD86: 1 | AE86: 1 | AF86: 1 | AG86: 1 | AH86: 84.80697509
A87: 3.5 | B87: Polymer Piping | AG87: 0 | AH87: 0
A88: 3.5.1 | B88: CPVC | C88: =polymer_pipe_length -> 0 | D88: lf | E88: =IF(C88=0,"NA",polymer_pipe_diam) -> NA | F88: =IF(C88=0,"","in diam") ->  | G88: =IF(C88=0,"NA",IF(curve=1,polymer_pipe_diam,VLOOKUP(polymer_pipe_diam,cpvc_pipe_cost_cl,2))) -> NA | H88: =IF(C88=0,"","in diam") ->  | I88: =IF(C88=0,"NA",IF(curve=1,cpvc_pipe_eq_polymer,VLOOKUP(polymer_pipe_diam,cpvc_pipe_cost_cl,3))) -> NA | J88: =IF(OR(C88=0,I88="contact vendor"),"--",C88*I88) -> -- | K88: =IF(C88=0,"NA",VLOOKUP(polymer_pipe_diam,cpvc_pipe_cost_cl,IF(ss_cat="large",4,5))) -> NA | M88: =$B$60&" - "&$B$87&" - "&B88 -> Piping - Polymer Piping - CPVC | N88: 2 | O88: 1 | P88: 3 | Q88: 2 | R88: 1 | S88: 3 | T88: 2 | U88: 1 | V88: 3 | W88: 0 | X88: 2 | Y88: 1 | Z88: 3 | AA88: 2 | AB88: 1 | AC88: 3 | AD88: 2 | AE88: 1 | AF88: 3 | AG88: 0 | AH88: 0
A89: 3.5.1 | B89: PVC | C89: =polymer_pipe_length -> 0 | D89: lf | E89: =IF(C89=0,"NA",polymer_pipe_diam) -> NA | F89: =IF(C89=0,"","in diam") ->  | G89: =IF(C89=0,"NA",IF(curve=1,polymer_pipe_diam,VLOOKUP(polymer_pipe_diam,pvc_pipe_cost_cl,2))) -> NA | H89: =IF(C89=0,"","in diam") ->  | I89: =IF(C89=0,"NA",IF(curve=1,pvc_pipe_eq_polymer,VLOOKUP(polymer_pipe_diam,pvc_pipe_cost_cl,3))) -> NA | J89: =IF(OR(C89=0,I89="contact vendor"),"--",C89*I89) -> -- | K89: =IF(C89=0,"NA",VLOOKUP(polymer_pipe_diam,pvc_pipe_cost_cl,IF(ss_cat="large",4,5))) -> NA | M89: =$B$60&" - "&$B$87&" - "&B89 -> Piping - Polymer Piping - PVC | N89: 1 | O89: 2 | P89: 4 | Q89: 1 | R89: 2 | S89: 4 | T89: 1 | U89: 2 | V89: 4 | W89: 0 | X89: 1 | Y89: 2 | Z89: 4 | AA89: 1 | AB89: 2 | AC89: 4 | AD89: 1 | AE89: 2 | AF89: 4 | AG89: 0 | AH89: 0
A90: 3.5.1 | B90: Stainless Steel | C90: =polymer_pipe_length -> 0 | D90: lf | E90: =IF(C90=0,"NA",polymer_pipe_diam) -> NA | F90: =IF(C90=0,"","in diam") ->  | G90: =IF(C90=0,"NA",IF(curve=1,polymer_pipe_diam,VLOOKUP(polymer_pipe_diam,ss_pipe_cost_cl,2))) -> NA | H90: =IF(C90=0,"","in diam") ->  | I90: =IF(C90=0,"NA",IF(curve=1,ss_pipe_eq_polymer,VLOOKUP(polymer_pipe_diam,ss_pipe_cost_cl,3))) -> NA | J90: =IF(OR(C90=0,I90="contact vendor"),"--",C90*I90) -> -- | K90: =IF(C90=0,"NA",VLOOKUP(polymer_pipe_diam,ss_pipe_cost_cl,IF(ss_cat="large",4,5))) -> NA | M90: =$B$60&" - "&$B$87&" - "&B90 -> Piping - Polymer Piping - Stainless Steel | N90: 4 | O90: 4 | P90: 1 | Q90: 4 | R90: 4 | S90: 1 | T90: 4 | U90: 4 | V90: 1 | W90: 0 | X90: 4 | Y90: 4 | Z90: 1 | AA90: 4 | AB90: 4 | AC90: 1 | AD90: 4 | AE90: 4 | AF90: 1 | AG90: 0 | AH90: 0
A91: 3.5.1 | B91: Steel | C91: =polymer_pipe_length -> 0 | D91: lf | E91: =IF(C91=0,"NA",polymer_pipe_diam) -> NA | F91: =IF(C91=0,"","in diam") ->  | G91: =IF(C91=0,"NA",IF(curve=1,polymer_pipe_diam,VLOOKUP(polymer_pipe_diam,st_pipe_cost_cl,2))) -> NA | H91: =IF(C91=0,"","in diam") ->  | I91: =IF(C91=0,"NA",IF(curve=1,st_pipe_eq_polymer,VLOOKUP(polymer_pipe_diam,st_pipe_cost_cl,3))) -> NA | J91: =IF(OR(C91=0,I91="contact vendor"),"--",C91*I91) -> -- | K91: =IF(C91=0,"NA",VLOOKUP(polymer_pipe_diam,st_pipe_cost_cl,IF(ss_cat="large",4,5))) -> NA | M91: =$B$60&" - "&$B$87&" - "&B91 -> Piping - Polymer Piping - Steel | N91: 3 | O91: 3 | P91: 2 | Q91: 3 | R91: 3 | S91: 2 | T91: 3 | U91: 3 | V91: 2 | W91: 0 | X91: 3 | Y91: 3 | Z91: 2 | AA91: 3 | AB91: 3 | AC91: 2 | AD91: 3 | AE91: 3 | AF91: 2 | AG91: 0 | AH91: 0
A92: 3.6 | B92: Bypass Piping | AG92: 0 | AH92: 0
A93: 3.6.1 | B93: CPVC | C93: =bp_pipe_length -> 0 | D93: lf | E93: =IF(bp_pct>0,bp_pipe_diam,"NA") -> NA | F93: =IF(bp_pct=0," ","in. diam") ->  | G93: =IF(bp_pct=0,"NA",IF(curve=1,bp_pipe_diam,VLOOKUP(bp_pipe_diam,cpvc_pipe_cost_cl,2))) -> NA | H93: =IF(bp_pct=0," ","in. diam") ->  | I93: =IF(bp_pct=0,"NA",IF(curve=1,cpvc_pipe_eq_bp,VLOOKUP(bp_pipe_diam,cpvc_pipe_cost_cl,3))) -> NA | J93: =IF(OR(C93=0,I93="contact vendor"),"--",C93*I93) -> -- | K93: =IF(C93=0,"NA",VLOOKUP(E93,cpvc_pipe_cost_cl,IF(ss_cat="large",4,5))) -> NA | M93: =$B$92&" - "&B93 -> Bypass Piping - CPVC | N93: =IF(retrofit=1,$W93*X93,IF(ISBLANK(X93),"",X93)) -> 2 | O93: 1 | P93: 3 | Q93: 2 | R93: 1 | S93: 3 | T93: 2 | U93: =IF(retrofit=1,$W93*AE93,IF(ISBLANK(AE93),"",AE93)) -> 1 | V93: 3 | W93: 0 | X93: 2 | Y93: 1 | Z93: 3 | AA93: 2 | AB93: 1 | AC93: 3 | AD93: 2 | AE93: 1 | AF93: 3 | AG93: 0 | AH93: 0
A94: 3.6.1 | B94: PVC | C94: =bp_pipe_length -> 0 | D94: lf | E94: =IF(bp_pct>0,bp_pipe_diam,"NA") -> NA | F94: =IF(bp_pct=0," ","in. diam") ->  | G94: =IF(bp_pct=0,"NA",IF(curve=1,bp_pipe_diam,VLOOKUP(bp_pipe_diam,pvc_pipe_cost_cl,2))) -> NA | H94: =IF(bp_pct=0," ","in. diam") ->  | I94: =IF(bp_pct=0,"NA",IF(curve=1,pvc_pipe_eq_bp,VLOOKUP(bp_pipe_diam,pvc_pipe_cost_cl,3))) -> NA | J94: -- | K94: =IF(C94=0,"NA",VLOOKUP(E94,pvc_pipe_cost_cl,IF(ss_cat="large",4,5))) -> NA | M94: =$B$92&" - "&B94 -> Bypass Piping - PVC | N94: 1 | O94: 2 | P94: 4 | Q94: 1 | R94: 2 | S94: 4 | T94: 1 | U94: 2 | V94: 4 | W94: 0 | X94: 1 | Y94: 2 | Z94: 4 | AA94: 1 | AB94: 2 | AC94: 4 | AD94: 1 | AE94: 2 | AF94: 4 | AG94: 0 | AH94: 0
A95: 3.6.1 | B95: Stainless Steel | C95: =bp_pipe_length -> 0 | D95: lf | E95: =IF(bp_pct>0,bp_pipe_diam,"NA") -> NA | F95: =IF(bp_pct=0," ","in. diam") ->  | G95: =IF(bp_pct=0,"NA",IF(curve=1,bp_pipe_diam,VLOOKUP(bp_pipe_diam,ss_pipe_cost_cl,2))) -> NA | H95: =IF(bp_pct=0," ","in. diam") ->  | I95: =IF(bp_pct=0,"NA",IF(curve=1,ss_pipe_eq_bp,VLOOKUP(bp_pipe_diam,ss_pipe_cost_cl,3))) -> NA | J95: -- | K95: =IF(C95=0,"NA",VLOOKUP(E95,ss_pipe_cost_cl,IF(ss_cat="large",4,5))) -> NA | M95: =$B$92&" - "&B95 -> Bypass Piping - Stainless Steel | N95: 4 | O95: 4 | P95: 1 | Q95: 4 | R95: 4 | S95: 1 | T95: 4 | U95: 4 | V95: 1 | W95: 0 | X95: 4 | Y95: 4 | Z95: 1 | AA95: 4 | AB95: 4 | AC95: 1 | AD95: 4 | AE95: 4 | AF95: 1 | AG95: 0 | AH95: 0
A96: 3.6.1 | B96: Steel | C96: =bp_pipe_length -> 0 | D96: lf | E96: =IF(bp_pct>0,bp_pipe_diam,"NA") -> NA | F96: =IF(bp_pct=0," ","in. diam") ->  | G96: =IF(bp_pct=0,"NA",IF(curve=1,bp_pipe_diam,VLOOKUP(bp_pipe_diam,st_pipe_cost_cl,2))) -> NA | H96: =IF(bp_pct=0," ","in. diam") ->  | I96: =IF(bp_pct=0,"NA",IF(curve=1,st_pipe_eq_bp,VLOOKUP(bp_pipe_diam,st_pipe_cost_cl,3))) -> NA | J96: -- | K96: =IF(C96=0,"NA",VLOOKUP(E96,st_pipe_cost_cl,IF(ss_cat="large",4,5))) -> NA | M96: =$B$92&" - "&B96 -> Bypass Piping - Steel | N96: 3 | O96: 3 | P96: 2 | Q96: 3 | R96: 3 | S96: 2 | T96: 3 | U96: 3 | V96: 2 | W96: 0 | X96: 3 | Y96: 3 | Z96: 2 | AA96: 3 | AB96: 3 | AC96: 2 | AD96: 3 | AE96: 3 | AF96: 2 | AG96: 0 | AH96: 0
A97: 4. | B97: Valves | AG97: 0 | AH97: 0
A98: 4.1 | B98: Motor/Air Operated (on/off) | AG98: =IF(ISERROR(K98*L98),0,IF(K98<1,0,L98)) -> 0 | AH98: =IF(AG98,J98/K98,0) -> 0
A99: 4.1.1 | B99: Process - Polypropylene/PVC | C99: =tot_proc_MOVs -> 0 | D99: units | E99: =tank_valve_size -> 12 | F99: in. diam | G99: =IF(curve=1,tank_valve_size,VLOOKUP(tank_valve_size,pp_mov_cost_cl,2)) -> 12 | H99: in. diam | I99: =IF(curve=1,pp_mov_eq_tank,VLOOKUP(tank_valve_size,pp_mov_cost_cl,3)) -> 3419.564375 | J99: =IF(I99="contact vendor","--",C99*I99) -> 0 | K99: =VLOOKUP(tank_valve_size,pp_mov_cost_cl,IF(ss_cat="large",4,5)) -> 25 | M99: =$B$98&" "&$B$97&" - "&B99 -> Motor/Air Operated (on/off) Valves - Process - Polypropylene/PVC | N99: =IF(retrofit=1,$W99*X99,IF(ISBLANK(X99),"",X99)) -> 1 | O99: =IF(retrofit=1,$W99*Y99,IF(ISBLANK(Y99),"",Y99)) -> 2 | P99: =IF(retrofit=1,$W99*Z99,IF(ISBLANK(Z99),"",Z99)) -> 3 | Q99: =IF(retrofit=1,$W99*AA99,IF(ISBLANK(AA99),"",AA99)) -> 1 | R99: =IF(retrofit=1,$W99*AB99,IF(ISBLANK(AB99),"",AB99)) -> 2 | S99: =IF(retrofit=1,$W99*AC99,IF(ISBLANK(AC99),"",AC99)) -> 3 | T99: =IF(retrofit=1,$W99*AD99,IF(ISBLANK(AD99),"",AD99)) -> 1 | U99: =IF(retrofit=1,$W99*AE99,IF(ISBLANK(AE99),"",AE99)) -> 2 | V99: =IF(retrofit=1,$W99*AF99,IF(ISBLANK(AF99),"",AF99)) -> 3 | W99: 0 | X99: 1 | Y99: 2 | Z99: 3 | AA99: 1 | AB99: 2 | AC99: 3 | AD99: 1 | AE99: 2 | AF99: 3 | AG99: 0 | AH99: 0
A100: 4.1.1 | B100: Process - Stainless Steel | C100: =tot_proc_MOVs -> 0 | D100: units | E100: =tank_valve_size -> 12 | F100: in. diam | G100: =IF(curve=1,tank_valve_size,VLOOKUP(tank_valve_size,ss_mov_cost_cl,2)) -> 12 | H100: in. diam | I100: =IF(curve=1,ss_mov_eq_tank,VLOOKUP(tank_valve_size,ss_mov_cost_cl,3)) -> 8138.947883 | J100: 0 | K100: =VLOOKUP(tank_valve_size,ss_mov_cost_cl,IF(ss_cat="large",4,5)) -> 25 | M100: Motor/Air Operated (on/off) Valves - Process - Stainless Steel | N100: 3 | O100: 3 | P100: 1 | Q100: 3 | R100: 3 | S100: 1 | T100: 3 | U100: 3 | V100: 1 | W100: 0 | X100: 3 | Y100: 3 | Z100: 1 | AA100: 3 | AB100: 3 | AC100: 1 | AD100: 3 | AE100: 3 | AF100: 1 | AG100: 0 | AH100: 0
A101: 4.1.1 | B101: Process - Cast Iron | C101: =tot_proc_MOVs -> 0 | D101: units | E101: =tank_valve_size -> 12 | F101: in. diam | G101: =IF(curve=1,tank_valve_size,VLOOKUP(tank_valve_size,ci_mov_cost_cl,2)) -> 12 | H101: in. diam | I101: =IF(curve=1,ci_mov_eq_tank,VLOOKUP(tank_valve_size,ci_mov_cost_cl,3)) -> 6082.551267 | J101: 0 | K101: =VLOOKUP(tank_valve_size,ci_mov_cost_cl,IF(ss_cat="large",4,5)) -> 25 | M101: Motor/Air Operated (on/off) Valves - Process - Cast Iron | N101: 2 | O101: 1 | P101: 2 | Q101: 2 | R101: 1 | S101: 2 | T101: 2 | U101: 1 | V101: 2 | W101: 0 | X101: 2 | Y101: 1 | Z101: 2 | AA101: 2 | AB101: 1 | AC101: 2 | AD101: 2 | AE101: 1 | AF101: 2 | AG101: 0 | AH101: 0
A102: 4.1.2 | B102: Backwash - Polypropylene/PVC | C102: =tot_back_MOVs -> 0 | D102: units | E102: =back_valve_size -> 12 | F102: in. diam | G102: =IF(curve=1,back_valve_size,VLOOKUP(back_valve_size,pp_mov_cost_cl,2)) -> 12 | H102: in. diam | I102: =IF(curve=1,pp_mov_eq_back,VLOOKUP(back_valve_size,pp_mov_cost_cl,3)) -> 3419.564375 | J102: 0 | K102: =VLOOKUP(back_valve_size,pp_mov_cost_cl,IF(ss_cat="large",4,5)) -> 25 | M102: Motor/Air Operated (on/off) Valves - Backwash - Polypropylene/PVC | N102: 1 | O102: 2 | P102: 3 | Q102: 1 | R102: 2 | S102: 3 | T102: 1 | U102: 2 | V102: 3 | W102: 0 | X102: 1 | Y102: 2 | Z102: 3 | AA102: 1 | AB102: 2 | AC102: 3 | AD102: 1 | AE102: 2 | AF102: 3 | AG102: 0 | AH102: 0
A103: 4.1.2 | B103: Backwash - Stainless Steel | C103: =tot_back_MOVs -> 0 | D103: units | E103: =back_valve_size -> 12 | F103: in. diam | G103: =IF(curve=1,back_valve_size,VLOOKUP(back_valve_size,ss_mov_cost_cl,2)) -> 12 | H103: in. diam | I103: =IF(curve=1,ss_mov_eq_back,VLOOKUP(back_valve_size,ss_mov_cost_cl,3)) -> 8138.947883 | J103: 0 | K103: =VLOOKUP(back_valve_size,ss_mov_cost_cl,IF(ss_cat="large",4,5)) -> 25 | M103: Motor/Air Operated (on/off) Valves - Backwash - Stainless Steel | N103: 3 | O103: 3 | P103: 1 | Q103: 3 | R103: 3 | S103: 1 | T103: 3 | U103: 3 | V103: 1 | W103: 0 | X103: 3 | Y103: 3 | Z103: 1 | AA103: 3 | AB103: 3 | AC103: 1 | AD103: 3 | AE103: 3 | AF103: 1 | AG103: 0 | AH103: 0
A104: 4.1.2 | B104: Backwash - Cast Iron | C104: =tot_back_MOVs -> 0 | D104: units | E104: =back_valve_size -> 12 | F104: in. diam | G104: =IF(curve=1,back_valve_size,VLOOKUP(back_valve_size,ci_mov_cost_cl,2)) -> 12 | H104: in. diam | I104: =IF(curve=1,ci_mov_eq_back,VLOOKUP(back_valve_size,ci_mov_cost_cl,3)) -> 6082.551267 | J104: 0 | K104: =VLOOKUP(back_valve_size,ci_mov_cost_cl,IF(ss_cat="large",4,5)) -> 25 | M104: Motor/Air Operated (on/off) Valves - Backwash - Cast Iron | N104: 2 | O104: 1 | P104: 2 | Q104: 2 | R104: 1 | S104: 2 | T104: 2 | U104: 1 | V104: 2 | W104: 0 | X104: 2 | Y104: 1 | Z104: 2 | AA104: 2 | AB104: 1 | AC104: 2 | AD104: 2 | AE104: 1 | AF104: 2 | AG104: 0 | AH104: 0
A105: 4.1.3 | B105: Residuals - Polypropylene/PVC | C105: =total_res_MOVs -> 0 | D105: units | E105: =IF(C105=0,"NA",res_valve_size) -> NA | F105: =IF(C105=0,"","in. diam") ->  | G105: =IF(C105=0,"NA",IF(curve=1,res_valve_size,VLOOKUP(res_valve_size,pp_mov_cost_cl,2))) -> NA | H105: =IF(C105=0,"","in. diam") ->  | I105: =IF(C105=0,"NA",IF(curve=1,pp_mov_eq_res,VLOOKUP(res_valve_size,pp_mov_cost_cl,3))) -> NA | J105: =IF(OR(C105=0,I105="contact vendor"),"--",C105*I105) -> -- | K105: =IF(C105=0,"NA",VLOOKUP(res_valve_size,pp_mov_cost_cl,IF(ss_cat="large",4,5))) -> NA | M105: Motor/Air Operated (on/off) Valves - Residuals - Polypropylene/PVC | N105: 1 | O105: 2 | P105: 3 | Q105: 1 | R105: 2 | S105: 3 | T105: 1 | U105: 2 | V105: 3 | W105: 0 | X105: 1 | Y105: 2 | Z105: 3 | AA105: 1 | AB105: 2 | AC105: 3 | AD105: 1 | AE105: 2 | AF105: 3 | AG105: 0 | AH105: 0
A106: 4.1.3 | B106: Residuals - Stainless Steel | C106: =total_res_MOVs -> 0 | D106: units | E106: =IF(C106=0,"NA",res_valve_size) -> NA | G106: =IF(C106=0,"NA",IF(curve=1,res_valve_size,VLOOKUP(res_valve_size,ss_mov_cost_cl,2))) -> NA | I106: =IF(C106=0,"NA",IF(curve=1,ss_mov_eq_res,VLOOKUP(res_valve_size,ss_mov_cost_cl,3))) -> NA | J106: -- | K106: =IF(C106=0,"NA",VLOOKUP(res_valve_size,ss_mov_cost_cl,IF(ss_cat="large",4,5))) -> NA | M106: Motor/Air Operated (on/off) Valves - Residuals - Stainless Steel | N106: 3 | O106: 3 | P106: 1 | Q106: 3 | R106: 3 | S106: 1 | T106: 3 | U106: 3 | V106: 1 | W106: 0 | X106: 3 | Y106: 3 | Z106: 1 | AA106: 3 | AB106: 3 | AC106: 1 | AD106: 3 | AE106: 3 | AF106: 1 | AG106: 0 | AH106: 0
A107: 4.1.3 | B107: Residuals - Cast Iron | C107: =total_res_MOVs -> 0 | D107: units | E107: =IF(C107=0,"NA",res_valve_size) -> NA | G107: =IF(C107=0,"NA",IF(curve=1,res_valve_size,VLOOKUP(res_valve_size,ci_mov_cost_cl,2))) -> NA | I107: =IF(C107=0,"NA",IF(curve=1,ci_mov_eq_res,VLOOKUP(res_valve_size,ci_mov_cost_cl,3))) -> NA | J107: -- | K107: =IF(C107=0,"NA",VLOOKUP(res_valve_size,ci_mov_cost_cl,IF(ss_cat="large",4,5))) -> NA | M107: Motor/Air Operated (on/off) Valves - Residuals - Cast Iron | N107: 2 | O107: 1 | P107: 2 | Q107: 2 | R107: 1 | S107: 2 | T107: 2 | U107: 1 | V107: 2 | W107: 0 | X107: 2 | Y107: 1 | Z107: 2 | AA107: 2 | AB107: 1 | AC107: 2 | AD107: 2 | AE107: 1 | AF107: 2 | AG107: 0 | AH107: 0
A108: 4.1.4 | B108: Polymer- Polypropylene/PVC | C108: =tot_polymer_MOVs -> 0 | D108: units | E108: =IF(C108=0,"NA",polymer_valve_size) -> NA | G108: =IF(C108=0,"NA",IF(curve=1,polymer_valve_size,VLOOKUP(polymer_valve_size,pp_mov_cost_cl,2))) -> NA | I108: =IF(C108=0,"NA",IF(curve=1,pp_mov_eq_polymer,VLOOKUP(polymer_valve_size,pp_mov_cost_cl,3))) -> NA | J108: -- | K108: =IF(C108=0,"NA",VLOOKUP(polymer_valve_size,pp_mov_cost_cl,IF(ss_cat="large",4,5))) -> NA | M108: Motor/Air Operated (on/off) Valves - Polymer- Polypropylene/PVC | N108: =IF(retrofit=1,$W108*X108,IF(ISBLANK(X108),"",X108)) -> 1 | O108: 2 | P108: 3 | Q108: 1 | R108: 2 | S108: 3 | T108: 1 | U108: 2 | V108: 3 | W108: 0 | X108: 1 | Y108: 2 | Z108: 3 | AA108: 1 | AB108: 2 | AC108: 3 | AD108: 1 | AE108: 2 | AF108: 3 | AG108: 0 | AH108: 0
A109: 4.1.4 | B109: Polymer- Stainless Steel | C109: =tot_polymer_MOVs -> 0 | D109: units | E109: =IF(C109=0,"NA",polymer_valve_size) -> NA | G109: =IF(C109=0,"NA",IF(curve=1,polymer_valve_size,VLOOKUP(polymer_valve_size,ss_mov_cost_cl,2))) -> NA | I109: =IF(C109=0,"NA",IF(curve=1,ss_mov_eq_polymer,VLOOKUP(polymer_valve_size,ss_mov_cost_cl,3))) -> NA | J109: -- | K109: =IF(C109=0,"NA",VLOOKUP(polymer_valve_size,ss_mov_cost_cl,IF(ss_cat="large",4,5))) -> NA | M109: Motor/Air Operated (on/off) Valves - Polymer- Stainless Steel | N109: 3 | O109: 3 | P109: 1 | Q109: 3 | R109: 3 | S109: 1 | T109: 3 | U109: 3 | V109: 1 | W109: 0 | X109: 3 | Y109: 3 | Z109: 1 | AA109: 3 | AB109: 3 | AC109: 1 | AD109: 3 | AE109: 3 | AF109: 1 | AG109: 0 | AH109: 0
A110: 4.1.4 | B110: Polymer- Cast Iron | C110: =tot_polymer_MOVs -> 0 | D110: units | E110: =IF(C110=0,"NA",polymer_valve_size) -> NA | G110: =IF(C110=0,"NA",IF(curve=1,polymer_valve_size,VLOOKUP(polymer_valve_size,ci_mov_cost_cl,2))) -> NA | I110: =IF(C110=0,"NA",IF(curve=1,ci_mov_eq_polymer,VLOOKUP(polymer_valve_size,ci_mov_cost_cl,3))) -> NA | J110: -- | K110: =IF(C110=0,"NA",VLOOKUP(polymer_valve_size,ci_mov_cost_cl,IF(ss_cat="large",4,5))) -> NA | M110: Motor/Air Operated (on/off) Valves - Polymer- Cast Iron | N110: 2 | O110: 1 | P110: 2 | Q110: 2 | R110: 1 | S110: 2 | T110: 2 | U110: 1 | V110: 2 | W110: 0 | X110: 2 | Y110: 1 | Z110: 2 | AA110: 2 | AB110: 1 | AC110: 2 | AD110: 2 | AE110: 1 | AF110: 2 | AG110: 0 | AH110: 0
A111: 4.1.5 | B111: Bypass - Polypropylene/PVC | C111: =IF(bp_pct>0,tot_bp_MOVs,0) -> 0 | D111: units | E111: =IF(bp_pct=0,"NA",bypass_valve_size) -> NA | F111: =IF(bp_pct=0," ","in. diam") ->  | G111: =IF(bp_pct=0,"NA",(IF(curve=1,bypass_valve_size,VLOOKUP(bypass_valve_size,pp_mov_cost_cl,2)))) -> NA | H111: =IF(bp_pct=0," ","in. diam") ->  | I111: =IF(bp_pct=0,"NA",(IF(curve=1,pp_mov_eq_bp,VLOOKUP(bypass_valve_size,pp_mov_cost_cl,3)))) -> NA | J111: -- | K111: =IF(C111=0,"NA",VLOOKUP(E111,pp_mov_cost_cl,IF(ss_cat="large",4,5))) -> NA | M111: Motor/Air Operated (on/off) Valves - Bypass - Polypropylene/PVC | N111: 1 | O111: 2 | P111: 3 | Q111: 1 | R111: 2 | S111: 3 | T111: 1 | U111: 2 | V111: 3 | W111: 0 | X111: 1 | Y111: 2 | Z111: 3 | AA111: 1 | AB111: 2 | AC111: 3 | AD111: 1 | AE111: 2 | AF111: 3 | AG111: 0 | AH111: 0
A112: 4.1.5 | B112: Bypass - Stainless Steel | C112: =IF(bp_pct>0,tot_bp_MOVs,0) -> 0 | D112: units | E112: =IF(bp_pct=0,"NA",bypass_valve_size) -> NA | F112: =IF(bp_pct=0," ","in. diam") ->  | G112: =IF(bp_pct=0,"NA",(IF(curve=1,bypass_valve_size,VLOOKUP(bypass_valve_size,ss_mov_cost_cl,2)))) -> NA | H112: =IF(bp_pct=0," ","in. diam") ->  | I112: =IF(bp_pct=0,"NA",(IF(curve=1,ss_mov_eq_bp,VLOOKUP(bypass_valve_size,ss_mov_cost_cl,3)))) -> NA | J112: -- | K112: =IF(C112=0,"NA",VLOOKUP(E112,ss_mov_cost_cl,IF(ss_cat="large",4,5))) -> NA | M112: Motor/Air Operated (on/off) Valves - Bypass - Stainless Steel | N112: 3 | O112: 3 | P112: 1 | Q112: 3 | R112: 3 | S112: 1 | T112: 3 | U112: 3 | V112: 1 | W112: 0 | X112: 3 | Y112: 3 | Z112: 1 | AA112: 3 | AB112: 3 | AC112: 1 | AD112: 3 | AE112: 3 | AF112: 1 | AG112: 0 | AH112: 0
A113: 4.1.5 | B113: Bypass - Cast Iron | C113: =IF(bp_pct>0,tot_bp_MOVs,0) -> 0 | D113: units | E113: =IF(bp_pct=0,"NA",bypass_valve_size) -> NA | F113: =IF(bp_pct=0," ","in. diam") ->  | G113: =IF(bp_pct=0,"NA",(IF(curve=1,bypass_valve_size,VLOOKUP(bypass_valve_size,ci_mov_cost_cl,2)))) -> NA | H113: =IF(bp_pct=0," ","in. diam") ->  | I113: =IF(bp_pct=0,"NA",(IF(curve=1,ci_mov_eq_bp,VLOOKUP(bypass_valve_size,ci_mov_cost_cl,3)))) -> NA | J113: -- | K113: =IF(C113=0,"NA",VLOOKUP(E113,ci_mov_cost_cl,IF(ss_cat="large",4,5))) -> NA | M113: Motor/Air Operated (on/off) Valves - Bypass - Cast Iron | N113: 2 | O113: 1 | P113: 2 | Q113: 2 | R113: 1 | S113: 2 | T113: 2 | U113: 1 | V113: 2 | W113: 0 | X113: 2 | Y113: 1 | Z113: 2 | AA113: 2 | AB113: 1 | AC113: 2 | AD113: 2 | AE113: 1 | AF113: 2 | AG113: 0 | AH113: 0
A114: 4.2 | B114: Manual | AG114: 0 | AH114: 0
A115: 4.2.1 | B115: Inlet and outlet - Polypropylene/PVC | C115: =tot_in_man -> 2 | D115: units | E115: =IF(C115=0,"NA",in_valve_size) -> 36 | F115: =IF(C115=0,"","in. diam") -> in. diam | G115: =IF(C115=0,"NA",IF(curve=1,in_valve_size,VLOOKUP(in_valve_size,pp_man_cost_cl,2))) -> 36 | H115: =IF(C115=0,"","in. diam") -> in. diam | I115: =IF(C115=0,"NA",IF(curve=1,pp_man_eq,VLOOKUP(in_valve_size,pp_man_cost_cl,3))) -> contact vendor | J115: =IF(OR(C115=0,I115="contact vendor"),"--",C115*I115) -> -- | K115: =IF(C115=0,"NA",VLOOKUP(in_valve_size,pp_man_cost_cl,IF(ss_cat="large",4,5))) -> 25 | L115: 0 | M115: =$B$114&" "&$B$97&" - "&B115 -> Manual Valves - Inlet and outlet - Polypropylene/PVC | N115: =IF(retrofit=1,$W115*X115,IF(ISBLANK(X115),"",X115)) -> 1 | O115: =IF(retrofit=1,$W115*Y115,IF(ISBLANK(Y115),"",Y115)) -> 2 | P115: =IF(retrofit=1,$W115*Z115,IF(ISBLANK(Z115),"",Z115)) -> 3 | Q115: =IF(retrofit=1,$W115*AA115,IF(ISBLANK(AA115),"",AA115)) -> 1 | R115: =IF(retrofit=1,$W115*AB115,IF(ISBLANK(AB115),"",AB115)) -> 2 | S115: =IF(retrofit=1,$W115*AC115,IF(ISBLANK(AC115),"",AC115)) -> 3 | T115: =IF(retrofit=1,$W115*AD115,IF(ISBLANK(AD115),"",AD115)) -> 1 | U115: =IF(retrofit=1,$W115*AE115,IF(ISBLANK(AE115),"",AE115)) -> 2 | V115: =IF(retrofit=1,$W115*AF115,IF(ISBLANK(AF115),"",AF115)) -> 3 | W115: 0 | X115: 1 | Y115: 2 | Z115: 3 | AA115: 1 | AB115: 2 | AC115: 3 | AD115: 1 | AE115: 2 | AF115: 3 | AG115: 0 | AH115: 0
A116: 4.2.1 | B116: Inlet and outlet - Stainless Steel | C116: =tot_in_man -> 2 | D116: units | E116: =IF(C116=0,"NA",in_valve_size) -> 36 | F116: =IF(C116=0,"","in. diam") -> in. diam | G116: =IF(C116=0,"NA",IF(curve=1,in_valve_size,VLOOKUP(in_valve_size,ss_man_cost_cl,2))) -> 36 | H116: =IF(C116=0,"","in. diam") -> in. diam | I116: =IF(C116=0,"NA",IF(curve=1,ss_man_eq,VLOOKUP(in_valve_size,ss_man_cost_cl,3))) -> 46252.76839 | J116: =IF(OR(C116=0,I116="contact vendor"),"--",C116*I116) -> 92505.53679 | K116: =IF(C116=0,"NA",VLOOKUP(in_valve_size,ss_man_cost_cl,IF(ss_cat="large",4,5))) -> 25 | L116: 0 | M116: Manual Valves - Inlet and outlet - Stainless Steel | N116: 3 | O116: 3 | P116: 1 | Q116: 3 | R116: 3 | S116: 1 | T116: 3 | U116: 3 | V116: 1 | W116: 0 | X116: 3 | Y116: 3 | Z116: 1 | AA116: 3 | AB116: 3 | AC116: 1 | AD116: 3 | AE116: 3 | AF116: 1 | AG116: 0 | AH116: 0
A117: 4.2.1 | B117: Inlet and outlet - Cast Iron | C117: =tot_in_man -> 2 | D117: units | E117: =IF(C117=0,"NA",in_valve_size) -> 36 | F117: =IF(C117=0,"","in. diam") -> in. diam | G117: =IF(C117=0,"NA",IF(curve=1,in_valve_size,VLOOKUP(in_valve_size,ci_bfv_cost_cl,2))) -> 36 | H117: =IF(C117=0,"","in. diam") -> in. diam | I117: =IF(C117=0,"NA",IF(curve=1,ci_bfv_eq,VLOOKUP(in_valve_size,ci_bfv_cost_cl,3))) -> 18403.02895 | J117: =IF(OR(C117=0,I117="contact vendor"),"--",C117*I117) -> 36806.0579 | K117: =IF(C117=0,"NA",VLOOKUP(in_valve_size,ci_bfv_cost_cl,IF(ss_cat="large",4,5))) -> 25 | L117: 1 | M117: Manual Valves - Inlet and outlet - Cast Iron | N117: 2 | O117: 1 | P117: 2 | Q117: 2 | R117: 1 | S117: 2 | T117: 2 | U117: 1 | V117: 2 | W117: 0 | X117: 2 | Y117: 1 | Z117: 2 | AA117: 2 | AB117: 1 | AC117: 2 | AD117: 2 | AE117: 1 | AF117: 2 | AG117: 1 | AH117: 1472.242316
A118: 4.2.2 | B118: Process - Polypropylene/PVC | C118: =tot_proc_man -> 274 | D118: units | E118: =tank_valve_size -> 12 | F118: in. diam | G118: =IF(curve=1,tank_valve_size,VLOOKUP(tank_valve_size,pp_man_cost_cl,2)) -> 12 | H118: in. diam | I118: =IF(curve=1,pp_man_eq_proc,VLOOKUP(tank_valve_size,pp_man_cost_cl,3)) -> 2283.389234 | J118: =IF(I118="contact vendor","--",C118*I118) -> 625648.6501 | K118: =VLOOKUP(tank_valve_size,pp_man_cost_cl,IF(ss_cat="large",4,5)) -> 25 | L118: 1 | M118: Manual Valves - Process - Polypropylene/PVC | N118: 1 | O118: 2 | P118: 3 | Q118: 1 | R118: 2 | S118: 3 | T118: 1 | U118: 2 | V118: 3 | W118: 0 | X118: 1 | Y118: 2 | Z118: 3 | AA118: 1 | AB118: 2 | AC118: 3 | AD118: 1 | AE118: 2 | AF118: 3 | AG118: 1 | AH118: 25025.946
A119: 4.2.2 | B119: Process - Stainless Steel | C119: =tot_proc_man -> 274 | D119: units | E119: =tank_valve_size -> 12 | F119: in. diam | G119: =IF(curve=1,tank_valve_size,VLOOKUP(tank_valve_size,ss_man_cost_cl,2)) -> 12 | H119: in. diam | I119: =IF(curve=1,ss_man_eq_proc,VLOOKUP(tank_valve_size,ss_man_cost_cl,3)) -> 7631.953207 | J119: =IF(I119="contact vendor","--",C119*I119) -> 2091155.179 | K119: =VLOOKUP(tank_valve_size,ss_man_cost_cl,IF(ss_cat="large",4,5)) -> 25 | L119: 0 | M119: Manual Valves - Process - Stainless Steel | N119: 3 | O119: 3 | P119: 1 | Q119: 3 | R119: 3 | S119: 1 | T119: 3 | U119: 3 | V119: 1 | W119: 0 | X119: 3 | Y119: 3 | Z119: 1 | AA119: 3 | AB119: 3 | AC119: 1 | AD119: 3 | AE119: 3 | AF119: 1 | AG119: 0 | AH119: 0
A120: 4.2.2 | B120: Process - Cast Iron | C120: =tot_proc_man -> 274 | D120: units | E120: =tank_valve_size -> 12 | F120: in. diam | G120: =IF(curve=1,tank_valve_size,VLOOKUP(tank_valve_size,ci_bfv_cost_cl,2)) -> 12 | H120: in. diam | I120: =IF(curve=1,ci_bfv_eq_proc,VLOOKUP(tank_valve_size,ci_bfv_cost_cl,3)) -> 2873.696445 | J120: =IF(I120="contact vendor","--",C120*I120) -> 787392.8259 | K120: =VLOOKUP(tank_valve_size,ci_bfv_cost_cl,IF(ss_cat="large",4,5)) -> 25 | L120: 0 | M120: Manual Valves - Process - Cast Iron | N120: 2 | O120: 1 | P120: 2 | Q120: 2 | R120: 1 | S120: 2 | T120: 2 | U120: 1 | V120: 2 | W120: 0 | X120: 2 | Y120: 1 | Z120: 2 | AA120: 2 | AB120: 1 | AC120: 2 | AD120: 2 | AE120: 1 | AF120: 2 | AG120: 0 | AH120: 0
A121: 4.2.3 | B121: Backwash - Polypropylene/PVC | C121: =tot_back_man -> 133 | D121: units | E121: =IF(C121=0,"NA",back_valve_size) -> 12 | F121: =IF(C121=0,"","in. diam") -> in. diam | G121: =IF(C121=0,"NA",IF(curve=1,back_valve_size,VLOOKUP(back_valve_size,pp_man_cost_cl,2))) -> 12 | H121: =IF(C121=0,"","in. diam") -> in. diam | I121: =IF(C121=0,"NA",IF(curve=1,pp_man_eq_back,VLOOKUP(back_valve_size,pp_man_cost_cl,3))) -> 2283.389234 | J121: =IF(OR(C121=0,I121="contact vendor"),"--",C121*I121) -> 303690.7681 | K121: =IF(C121=0,"NA",VLOOKUP(back_valve_size,pp_man_cost_cl,IF(ss_cat="large",4,5))) -> 25 | L121: 1 | M121: =$B$114&" "&$B$97&" - "&B121 -> Manual Valves - Backwash - Polypropylene/PVC | N121: 1 | O121: 2 | P121: 3 | Q121: 1 | R121: 2 | S121: 3 | T121: 1 | U121: 2 | V121: 3 | W121: 0 | X121: 1 | Y121: 2 | Z121: 3 | AA121: 1 | AB121: 2 | AC121: 3 | AD121: 1 | AE121: 2 | AF121: 3 | AG121: 1 | AH121: 12147.63072
A122: 4.2.3 | B122: Backwash - Stainless Steel | C122: =tot_back_man -> 133 | D122: units | E122: =IF(C122=0,"NA",back_valve_size) -> 12 | F122: in. diam | G122: =IF(C122=0,"NA",IF(curve=1,back_valve_size,VLOOKUP(back_valve_size,ss_man_cost_cl,2))) -> 12 | H122: in. diam | I122: =IF(C122=0,"NA",IF(curve=1,ss_man_eq_back,VLOOKUP(back_valve_size,ss_man_cost_cl,3))) -> 7631.953207 | J122: 1015049.777 | K122: =IF(C122=0,"NA",VLOOKUP(back_valve_size,ss_man_cost_cl,IF(ss_cat="large",4,5))) -> 25 | L122: 0 | M122: =$B$114&" "&$B$97&" - "&B122 -> Manual Valves - Backwash - Stainless Steel | N122: 3 | O122: 3 | P122: 1 | Q122: 3 | R122: 3 | S122: 1 | T122: 3 | U122: 3 | V122: 1 | W122: 0 | X122: 3 | Y122: 3 | Z122: 1 | AA122: 3 | AB122: 3 | AC122: 1 | AD122: 3 | AE122: 3 | AF122: 1 | AG122: 0 | AH122: 0
A123: 4.2.3 | B123: Backwash - Cast Iron | C123: =tot_back_man -> 133 | D123: units | E123: =IF(C123=0,"NA",back_valve_size) -> 12 | F123: in. diam | G123: =IF(C123=0,"NA",IF(curve=1,back_valve_size,VLOOKUP(back_valve_size,ci_bfv_cost_cl,2))) -> 12 | H123: in. diam | I123: =IF(C123=0,"NA",IF(curve=1,ci_man_eq_back,VLOOKUP(back_valve_size,ci_bfv_cost_cl,3))) -> 2873.696445 | J123: 382201.6272 | K123: =IF(C123=0,"NA",VLOOKUP(back_valve_size,ci_bfv_cost_cl,IF(ss_cat="large",4,5))) -> 25 | L123: 0 | M123: =$B$114&" "&$B$97&" - "&B123 -> Manual Valves - Backwash - Cast Iron | N123: 2 | O123: 1 | P123: 2 | Q123: 2 | R123: 1 | S123: 2 | T123: 2 | U123: 1 | V123: 2 | W123: 0 | X123: 2 | Y123: 1 | Z123: 2 | AA123: 2 | AB123: 1 | AC123: 2 | AD123: 2 | AE123: 1 | AF123: 2 | AG123: 0 | AH123: 0
A124: 4.2.4 | B124: Residuals - Polypropylene/PVC | C124: =total_res_man -> 3 | D124: units | E124: =IF(C124=0,"NA",res_valve_size) -> 10 | F124: in. diam | G124: =IF(C124=0,"NA",IF(curve=1,res_valve_size,VLOOKUP(back_valve_size,pp_man_cost_cl,2))) -> 10 | H124: in. diam | I124: =IF(C124=0,"NA",IF(curve=1,pp_man_eq_res,VLOOKUP(res_valve_size,pp_man_cost_cl,3))) -> 1449.127231 | J124: 4347.381692 | K124: =IF(C124=0,"NA",VLOOKUP(res_valve_size,pp_man_cost_cl,IF(ss_cat="large",4,5))) -> 25 | L124: 1 | M124: =$B$114&" "&$B$97&" - "&B124 -> Manual Valves - Residuals - Polypropylene/PVC | N124: 1 | O124: 2 | P124: 3 | Q124: 1 | R124: 2 | S124: 3 | T124: 1 | U124: 2 | V124: 3 | W124: 0 | X124: 1 | Y124: 2 | Z124: 3 | AA124: 1 | AB124: 2 | AC124: 3 | AD124: 1 | AE124: 2 | AF124: 3 | AG124: 1 | AH124: 173.8952677
A125: 4.2.4 | B125: Residuals - Stainless Steel | C125: =total_res_man -> 3 | D125: units | E125: =IF(C125=0,"NA",res_valve_size) -> 10 | F125: in. diam | G125: =IF(C125=0,"NA",IF(curve=1,res_valve_size,VLOOKUP(back_valve_size,ss_man_cost_cl,2))) -> 10 | H125: in. diam | I125: =IF(C125=0,"NA",IF(curve=1,ss_man_eq_res,VLOOKUP(res_valve_size,ss_man_cost_cl,3))) -> 5841.980626 | J125: 17525.94188 | K125: =IF(C125=0,"NA",VLOOKUP(res_valve_size,ss_man_cost_cl,IF(ss_cat="large",4,5))) -> 25 | L125: 0 | M125: =$B$114&" "&$B$97&" - "&B125 -> Manual Valves - Residuals - Stainless Steel | N125: 3 | O125: 3 | P125: 1 | Q125: 3 | R125: 3 | S125: 1 | T125: 3 | U125: 3 | V125: 1 | W125: 0 | X125: 3 | Y125: 3 | Z125: 1 | AA125: 3 | AB125: 3 | AC125: 1 | AD125: 3 | AE125: 3 | AF125: 1 | AG125: 0 | AH125: 0
A126: 4.2.4 | B126: Residuals - Cast Iron | C126: =total_res_man -> 3 | D126: units | E126: =IF(C126=0,"NA",res_valve_size) -> 10 | F126: in. diam | G126: =IF(C126=0,"NA",IF(curve=1,res_valve_size,VLOOKUP(back_valve_size,ci_bfv_cost_cl,2))) -> 10 | H126: in. diam | I126: =IF(C126=0,"NA",IF(curve=1,ci_man_eq_res,VLOOKUP(res_valve_size,ci_bfv_cost_cl,3))) -> 1985.778432 | J126: 5957.335295 | K126: =IF(C126=0,"NA",VLOOKUP(res_valve_size,ci_bfv_cost_cl,IF(ss_cat="large",4,5))) -> 25 | L126: 0 | M126: =$B$114&" "&$B$97&" - "&B126 -> Manual Valves - Residuals - Cast Iron | N126: 2 | O126: 1 | P126: 2 | Q126: 2 | R126: 1 | S126: 2 | T126: 2 | U126: 1 | V126: 2 | W126: 0 | X126: 2 | Y126: 1 | Z126: 2 | AA126: 2 | AB126: 1 | AC126: 2 | AD126: 2 | AE126: 1 | AF126: 2 | AG126: 0 | AH126: 0
A127: 4.2.5 | B127: Polymer- Polypropylene/PVC | C127: =tot_polymer_man -> 0 | D127: units | E127: =IF(C127=0,"NA",polymer_valve_size) -> NA | F127: =IF(C127=0,"","in. diam") ->  | G127: =IF(C127=0,"NA",IF(curve=1,polymer_valve_size,VLOOKUP(polymer_valve_size,pp_man_cost_cl,2))) -> NA | H127: =IF(C127=0,"","in. diam") ->  | I127: =IF(C127=0,"NA",IF(curve=1,pp_man_eq_polymer,VLOOKUP(polymer_valve_size,pp_man_cost_cl,3))) -> NA | J127: =IF(OR(C127=0,I127="contact vendor"),"--",C127*I127) -> -- | K127: =IF(C127=0,"NA",VLOOKUP(polymer_valve_size,pp_man_cost_cl,IF(ss_cat="large",4,5))) -> NA | M127: Manual Valves - Polymer- Polypropylene/PVC | N127: =IF(retrofit=1,$W127*X127,IF(ISBLANK(X127),"",X127)) -> 1 | O127: 2 | P127: 3 | Q127: 1 | R127: 2 | S127: 3 | T127: 1 | U127: 2 | V127: 3 | W127: 0 | X127: 1 | Y127: 2 | Z127: 3 | AA127: 1 | AB127: 2 | AC127: 3 | AD127: 1 | AE127: 2 | AF127: 3 | AG127: 0 | AH127: 0
A128: 4.2.5 | B128: Polymer- Stainless Steel | C128: =tot_polymer_man -> 0 | D128: units | E128: =IF(C128=0,"NA",polymer_valve_size) -> NA | F128: =IF(C128=0,"","in. diam") ->  | G128: =IF(C128=0,"NA",IF(curve=1,polymer_valve_size,VLOOKUP(polymer_valve_size,ss_man_cost_cl,2))) -> NA | H128: =IF(C128=0,"","in. diam") ->  | I128: =IF(C128=0,"NA",IF(curve=1,ss_man_eq_polymer,VLOOKUP(polymer_valve_size,ss_man_cost_cl,3))) -> NA | J128: -- | K128: =IF(C128=0,"NA",VLOOKUP(polymer_valve_size,ss_man_cost_cl,IF(ss_cat="large",4,5))) -> NA | M128: Manual Valves - Polymer- Stainless Steel | N128: 3 | O128: 3 | P128: 1 | Q128: 3 | R128: 3 | S128: 1 | T128: 3 | U128: 3 | V128: 1 | W128: 0 | X128: 3 | Y128: 3 | Z128: 1 | AA128: 3 | AB128: 3 | AC128: 1 | AD128: 3 | AE128: 3 | AF128: 1 | AG128: 0 | AH128: 0
A129: 4.2.5 | B129: Polymer- Cast Iron | C129: =tot_polymer_man -> 0 | D129: units | E129: =IF(C129=0,"NA",polymer_valve_size) -> NA | F129: =IF(C129=0,"","in. diam") ->  | G129: =IF(C129=0,"NA",IF(curve=1,polymer_valve_size,VLOOKUP(polymer_valve_size,ci_bfv_cost_cl,2))) -> NA | H129: =IF(C129=0,"","in. diam") ->  | I129: =IF(C129=0,"NA",IF(curve=1,ci_man_eq_polymer,VLOOKUP(polymer_valve_size,ci_bfv_cost_cl,3))) -> NA | J129: -- | K129: =IF(C129=0,"NA",VLOOKUP(polymer_valve_size,ci_bfv_cost_cl,IF(ss_cat="large",4,5))) -> NA | M129: Manual Valves - Polymer- Cast Iron | N129: 2 | O129: 1 | P129: 2 | Q129: 2 | R129: 1 | S129: 2 | T129: 2 | U129: 1 | V129: 2 | W129: 0 | X129: 2 | Y129: 1 | Z129: 2 | AA129: 2 | AB129: 1 | AC129: 2 | AD129: 2 | AE129: 1 | AF129: 2 | AG129: 0 | AH129: 0
A130: 4.2.6 | B130: Bypass - Polypropylene/PVC | C130: =IF(bp_pct>0,tot_bp_man,0) -> 0 | D130: units | E130: =IF(bp_pct=0,"NA",bypass_valve_size) -> NA | F130: =IF(bp_pct=0," ","in. diam") ->  | G130: =IF(bp_pct=0,"NA",(IF(curve=1,bypass_valve_size,VLOOKUP(bypass_valve_size,pp_man_cost_cl,2)))) -> NA | H130: =IF(bp_pct=0," ","in. diam") ->  | I130: =IF(bp_pct=0,"NA",(IF(curve=1,pp_man_eq_bp,VLOOKUP(bypass_valve_size,pp_man_cost_cl,3)))) -> NA | J130: -- | K130: =IF(C130=0,"NA",VLOOKUP(E130,pp_man_cost_cl,IF(ss_cat="large",4,5))) -> NA | M130: Manual Valves - Bypass - Polypropylene/PVC | N130: 1 | O130: 2 | P130: 3 | Q130: 1 | R130: 2 | S130: 3 | T130: 1 | U130: 2 | V130: 3 | W130: 0 | X130: 1 | Y130: 2 | Z130: 3 | AA130: 1 | AB130: 2 | AC130: 3 | AD130: 1 | AE130: 2 | AF130: 3 | AG130: 0 | AH130: 0
A131: 4.2.6 | B131: Bypass - Stainless Steel | C131: =IF(bp_pct>0,tot_bp_man,0) -> 0 | D131: units | E131: =IF(bp_pct=0,"NA",bypass_valve_size) -> NA | F131: =IF(bp_pct=0," ","in. diam") ->  | G131: =IF(bp_pct=0,"NA",(IF(curve=1,bypass_valve_size,VLOOKUP(bypass_valve_size,ss_man_cost_cl,2)))) -> NA | H131: =IF(bp_pct=0," ","in. diam") ->  | I131: =IF(bp_pct=0,"NA",(IF(curve=1,ss_man_eq_bp,VLOOKUP(bypass_valve_size,ss_man_cost_cl,3)))) -> NA | J131: -- | K131: =IF(C131=0,"NA",VLOOKUP(E131,ss_man_cost_cl,IF(ss_cat="large",4,5))) -> NA | M131: Manual Valves - Bypass - Stainless Steel | N131: 3 | O131: 3 | P131: 1 | Q131: 3 | R131: 3 | S131: 1 | T131: 3 | U131: 3 | V131: 1 | W131: 0 | X131: 3 | Y131: 3 | Z131: 1 | AA131: 3 | AB131: 3 | AC131: 1 | AD131: 3 | AE131: 3 | AF131: 1 | AG131: 0 | AH131: 0
A132: 4.2.6 | B132: Bypass - Cast Iron | C132: =IF(bp_pct>0,tot_bp_man,0) -> 0 | D132: units | E132: =IF(bp_pct=0,"NA",bypass_valve_size) -> NA | F132: =IF(bp_pct=0," ","in. diam") ->  | G132: =IF(bp_pct=0,"NA",(IF(curve=1,bypass_valve_size,VLOOKUP(bypass_valve_size,ci_bfv_cost_cl,2)))) -> NA | H132: =IF(bp_pct=0," ","in. diam") ->  | I132: =IF(bp_pct=0,"NA",(IF(curve=1,ci_man_eq_bp,VLOOKUP(bypass_valve_size,ci_bfv_cost_cl,3)))) -> NA | J132: -- | K132: =IF(C132=0,"NA",VLOOKUP(E132,ci_bfv_cost_cl,IF(ss_cat="large",4,5))) -> NA | M132: =$B$114&" "&$B$97&" - "&B132 -> Manual Valves - Bypass - Cast Iron | N132: 2 | O132: 1 | P132: 2 | Q132: 2 | R132: 1 | S132: 2 | T132: 2 | U132: 1 | V132: 2 | W132: 0 | X132: 2 | Y132: 1 | Z132: 2 | AA132: 2 | AB132: 1 | AC132: 2 | AD132: 2 | AE132: 1 | AF132: 2 | AG132: 0 | AH132: 0
A133: 4.3 | B133: Check Valves | AG133: 0 | AH133: 0
A134: 4.3.1 | B134: Backwash - Polypropylene/PVC | C134: =tot_back_chv -> 2 | D134: units | E134: =IF(C134=0,"NA",back_valve_size) -> 12 | F134: =IF(C134=0,"","in. diam") -> in. diam | G134: =IF(C134=0,"NA",IF(curve=1,back_valve_size,VLOOKUP(back_valve_size,pp_chv_cost_cl,2))) -> 12 | H134: =IF(C134=0,"","in. diam") -> in. diam | I134: =IF(C134=0,"NA",IF(curve=1,pp_chv_eq_back,VLOOKUP(back_valve_size,pp_chv_cost_cl,3))) -> 5187.602491 | J134: =IF(C134=0,0,IF(I134="contact vendor","--",C134*I134)) -> 10375.20498 | K134: =IF(C134=0,"NA",VLOOKUP(back_valve_size,pp_chv_cost_cl,IF(ss_cat="large",4,5))) -> 25 | L134: 1 | M134: =$B$133&" - "&B134 -> Check Valves - Backwash - Polypropylene/PVC | N134: =IF(retrofit=1,$W134*X134,IF(ISBLANK(X134),"",X134)) -> 1 | O134: =IF(retrofit=1,$W134*Y134,IF(ISBLANK(Y134),"",Y134)) -> 2 | P134: =IF(retrofit=1,$W134*Z134,IF(ISBLANK(Z134),"",Z134)) -> 3 | Q134: =IF(retrofit=1,$W134*AA134,IF(ISBLANK(AA134),"",AA134)) -> 1 | R134: =IF(retrofit=1,$W134*AB134,IF(ISBLANK(AB134),"",AB134)) -> 2 | S134: =IF(retrofit=1,$W134*AC134,IF(ISBLANK(AC134),"",AC134)) -> 3 | T134: =IF(retrofit=1,$W134*AD134,IF(ISBLANK(AD134),"",AD134)) -> 1 | U134: =IF(retrofit=1,$W134*AE134,IF(ISBLANK(AE134),"",AE134)) -> 2 | V134: =IF(retrofit=1,$W134*AF134,IF(ISBLANK(AF134),"",AF134)) -> 3 | W134: 0 | X134: 1 | Y134: 2 | Z134: 3 | AA134: 1 | AB134: 2 | AC134: 3 | AD134: 1 | AE134: 2 | AF134: 3 | AG134: 1 | AH134: 415.0081993
A135: 4.3.1 | B135: Backwash - Stainless Steel | C135: =tot_back_chv -> 2 | D135: units | E135: =IF(C135=0,"NA",back_valve_size) -> 12 | F135: in. diam | G135: =IF(C135=0,"NA",IF(curve=1,back_valve_size,VLOOKUP(back_valve_size,ss_chv_cost_cl,2))) -> 12 | H135: in. diam | I135: =IF(C135=0,"NA",IF(curve=1,ss_chv_eq_back,VLOOKUP(back_valve_size,ss_chv_cost_cl,3))) -> 8775.391548 | J135: =IF(C135=0,0,IF(I135="contact vendor","--",C135*I135)) -> 17550.7831 | K135: =IF(C135=0,"NA",VLOOKUP(back_valve_size,ss_chv_cost_cl,IF(ss_cat="large",4,5))) -> 25 | L135: 0 | M135: Check Valves - Backwash - Stainless Steel | N135: 3 | O135: 3 | P135: 1 | Q135: 3 | R135: 3 | S135: 1 | T135: 3 | U135: 3 | V135: 1 | W135: 0 | X135: 3 | Y135: 3 | Z135: 1 | AA135: 3 | AB135: 3 | AC135: 1 | AD135: 3 | AE135: 3 | AF135: 1 | AG135: 0 | AH135: 0
A136: 4.3.1 | B136: Backwash - Cast Iron | C136: =tot_back_chv -> 2 | D136: units | E136: =IF(C136=0,"NA",back_valve_size) -> 12 | F136: in. diam | G136: =IF(C136=0,"NA",IF(curve=1,back_valve_size,VLOOKUP(back_valve_size,ci_bfv_cost_cl,2))) -> 12 | H136: in. diam | I136: =IF(C136=0,"NA",IF(curve=1,ci_chv_eq_back,VLOOKUP(back_valve_size,ci_bfv_cost_cl,3))) -> 4892.304365 | J136: =IF(C136=0,0,IF(I136="contact vendor","--",C136*I136)) -> 9784.608729 | K136: =IF(C136=0,"NA",VLOOKUP(back_valve_size,ci_bfv_cost_cl,IF(ss_cat="large",4,5))) -> 25 | L136: 0 | M136: Check Valves - Backwash - Cast Iron | N136: 2 | O136: 1 | P136: 2 | Q136: 2 | R136: 1 | S136: 2 | T136: 2 | U136: 1 | V136: 2 | W136: 0 | X136: 2 | Y136: 1 | Z136: 2 | AA136: 2 | AB136: 1 | AC136: 2 | AD136: 2 | AE136: 1 | AF136: 2 | AG136: 0 | AH136: 0
A137: 4.3.2 | B137: Residuals - Polypropylene/PVC | C137: =tot_res_chv -> 2 | D137: units | E137: =IF(C137=0,"NA",res_valve_size) -> 10 | F137: in. diam | G137: =IF(C137=0,"NA",IF(curve=1,res_valve_size,VLOOKUP(res_valve_size,pp_chv_cost_cl,2))) -> 10 | H137: in. diam | I137: =IF(C137=0,0,IF(curve=1,pp_chv_eq_res,VLOOKUP(res_valve_size,pp_chv_cost_cl,3))) -> 3660.066741 | J137: =IF(I137=0,0,IF(I137="contact vendor","--",C137*I137)) -> 7320.133483 | K137: =IF(C137=0,"NA",VLOOKUP(res_valve_size,pp_chv_cost_cl,IF(ss_cat="large",4,5))) -> 25 | L137: 1 | M137: =$B$133&" - "&B137 -> Check Valves - Residuals - Polypropylene/PVC | N137: 1 | O137: 2 | P137: 3 | Q137: 1 | R137: 2 | S137: 3 | T137: 1 | U137: 2 | V137: 3 | W137: 0 | X137: 1 | Y137: 2 | Z137: 3 | AA137: 1 | AB137: 2 | AC137: 3 | AD137: 1 | AE137: 2 | AF137: 3 | AG137: 1 | AH137: 292.8053393
A138: 4.3.2 | B138: Residuals - Stainless Steel | C138: =tot_res_chv -> 2 | D138: units | E138: =IF(C138=0,"NA",res_valve_size) -> 10 | F138: in. diam | G138: =IF(C138=0,"NA",IF(curve=1,res_valve_size,VLOOKUP(res_valve_size,ss_chv_cost_cl,2))) -> 10 | H138: in. diam | I138: =IF(C138=0,0,IF(curve=1,ss_chv_eq_res,VLOOKUP(res_valve_size,ss_chv_cost_cl,3))) -> 6645.282029 | J138: =IF(I138=0,0,IF(I138="contact vendor","--",C138*I138)) -> 13290.56406 | K138: =IF(C138=0,"NA",VLOOKUP(res_valve_size,ss_chv_cost_cl,IF(ss_cat="large",4,5))) -> 25 | L138: 0 | M138: Check Valves - Residuals - Stainless Steel | N138: 3 | O138: 3 | P138: 1 | Q138: 3 | R138: 3 | S138: 1 | T138: 3 | U138: 3 | V138: 1 | W138: 0 | X138: 3 | Y138: 3 | Z138: 1 | AA138: 3 | AB138: 3 | AC138: 1 | AD138: 3 | AE138: 3 | AF138: 1 | AG138: 0 | AH138: 0
A139: 4.3.2 | B139: Residuals - Cast Iron | C139: =tot_res_chv -> 2 | D139: units | E139: =IF(C139=0,"NA",res_valve_size) -> 10 | F139: in. diam | G139: =IF(C139=0,"NA",IF(curve=1,res_valve_size,VLOOKUP(res_valve_size,ci_chv_cost_cl,2))) -> 10 | H139: in. diam | I139: =IF(C139=0,0,IF(curve=1,ci_chv_eq_res,VLOOKUP(res_valve_size,ci_chv_cost_cl,3))) -> 3611.882231 | J139: =IF(I139=0,0,IF(I139="contact vendor","--",C139*I139)) -> 7223.764462 | K139: =IF(C139=0,"NA",VLOOKUP(res_valve_size,ci_chv_cost_cl,IF(ss_cat="large",4,5))) -> 25 | L139: 0 | M139: Check Valves - Residuals - Cast Iron | N139: 2 | O139: 1 | P139: 2 | Q139: 2 | R139: 1 | S139: 2 | T139: 2 | U139: 1 | V139: 2 | W139: 0 | X139: 2 | Y139: 1 | Z139: 2 | AA139: 2 | AB139: 1 | AC139: 2 | AD139: 2 | AE139: 1 | AF139: 2 | AG139: 0 | AH139: 0
A140: 4.3.3 | B140: Polymer - Polypropylene/PVC | C140: =tot_polymer_chv -> 0 | D140: units | E140: =IF(C140=0,"NA",polymer_valve_size) -> NA | F140: =IF(C140=0,"","in. diam") ->  | G140: =IF(C140=0,"NA",IF(curve=1,polymer_valve_size,VLOOKUP(polymer_valve_size,pp_chv_cost_cl,2))) -> NA | H140: =IF(C140=0,"","in. diam") ->  | I140: =IF(C140=0,"NA",IF(curve=1,pp_chv_eq_polymer,VLOOKUP(polymer_valve_size,pp_chv_cost_cl,3))) -> NA | J140: =IF(OR(C140=0,I140="contact vendor"),"--",C140*I140) -> -- | K140: =IF(C140=0,"NA",VLOOKUP(polymer_valve_size,pp_chv_cost_cl,IF(ss_cat="large",4,5))) -> NA | M140: Check Valves - Polymer - Polypropylene/PVC | N140: =IF(retrofit=1,$W140*X140,IF(ISBLANK(X140),"",X140)) -> 1 | O140: 2 | P140: 3 | Q140: 1 | R140: 2 | S140: 3 | T140: 1 | U140: 2 | V140: 3 | W140: 0 | X140: 1 | Y140: 2 | Z140: 3 | AA140: 1 | AB140: 2 | AC140: 3 | AD140: 1 | AE140: 2 | AF140: 3 | AG140: 0 | AH140: 0
A141: 4.3.3 | B141: Polymer - Stainless Steel | C141: =tot_polymer_chv -> 0 | D141: units | E141: =IF(C141=0,"NA",polymer_valve_size) -> NA | F141: =IF(C141=0,"","in. diam") ->  | G141: =IF(C141=0,"NA",IF(curve=1,polymer_valve_size,VLOOKUP(polymer_valve_size,ss_chv_cost_cl,2))) -> NA | H141: =IF(C141=0,"","in. diam") ->  | I141: =IF(C141=0,"NA",IF(curve=1,ss_chv_eq_polymer,VLOOKUP(polymer_valve_size,ss_chv_cost_cl,3))) -> NA | J141: -- | K141: =IF(C141=0,"NA",VLOOKUP(polymer_valve_size,ss_chv_cost_cl,IF(ss_cat="large",4,5))) -> NA | M141: Check Valves - Polymer - Stainless Steel | N141: 3 | O141: 3 | P141: 1 | Q141: 3 | R141: 3 | S141: 1 | T141: 3 | U141: 3 | V141: 1 | W141: 0 | X141: 3 | Y141: 3 | Z141: 1 | AA141: 3 | AB141: 3 | AC141: 1 | AD141: 3 | AE141: 3 | AF141: 1 | AG141: 0 | AH141: 0
A142: 4.3.3 | B142: Polymer - Cast Iron | C142: =tot_polymer_chv -> 0 | D142: units | E142: =IF(C142=0,"NA",polymer_valve_size) -> NA | F142: =IF(C142=0,"","in. diam") ->  | G142: =IF(C142=0,"NA",IF(curve=1,polymer_valve_size,VLOOKUP(polymer_valve_size,ci_chv_cost_cl,2))) -> NA | H142: =IF(C142=0,"","in. diam") ->  | I142: =IF(C142=0,"NA",IF(curve=1,ci_chv_eq_polymer,VLOOKUP(polymer_valve_size,ci_chv_cost_cl,3))) -> NA | J142: -- | K142: =IF(C142=0,"NA",VLOOKUP(polymer_valve_size,ci_chv_cost_cl,IF(ss_cat="large",4,5))) -> NA | M142: Check Valves - Polymer - Cast Iron | N142: 2 | O142: 1 | P142: 2 | Q142: 2 | R142: 1 | S142: 2 | T142: 2 | U142: 1 | V142: 2 | W142: 0 | X142: 2 | Y142: 1 | Z142: 2 | AA142: 2 | AB142: 1 | AC142: 2 | AD142: 2 | AE142: 1 | AF142: 2 | AG142: 0 | AH142: 0
A143: 4.3.4 | B143: Inlet - Polypropylene/PVC | C143: =tot_in_chv -> 1 | D143: units | E143: =IF(C143=0,"NA",in_valve_size) -> 36 | F143: in. diam | G143: =IF(C143=0,"NA",IF(curve=1,in_valve_size,VLOOKUP(in_valve_size,pp_chv_cost_cl,2))) -> 36 | H143: in. diam | I143: =IF(C143=0,"NA",IF(curve=1,pp_chv_eq_in,VLOOKUP(in_valve_size,pp_chv_cost_cl,3))) -> contact vendor | J143: -- | K143: =IF(C143=0,"NA",VLOOKUP(in_valve_size,pp_chv_cost_cl,IF(ss_cat="large",4,5))) -> 25 | L143: 0 | M143: Check Valves - Inlet - Polypropylene/PVC | N143: 1 | O143: 2 | P143: 3 | Q143: 1 | R143: 2 | S143: 3 | T143: 1 | U143: 2 | V143: 3 | W143: 0 | X143: 1 | Y143: 2 | Z143: 3 | AA143: 1 | AB143: 2 | AC143: 3 | AD143: 1 | AE143: 2 | AF143: 3 | AG143: 0 | AH143: 0
A144: 4.3.4 | B144: Inlet - Stainless Steel | C144: =tot_in_chv -> 1 | D144: units | E144: =IF(C144=0,"NA",in_valve_size) -> 36 | F144: in. diam | G144: =IF(C144=0,"NA",IF(curve=1,in_valve_size,VLOOKUP(in_valve_size,ss_chv_cost_cl,2))) -> 36 | H144: in. diam | I144: =IF(C144=0,"NA",IF(curve=1,ss_chv_eq_in,VLOOKUP(in_valve_size,ss_chv_cost_cl,3))) -> 50000.20691 | J144: 50000.20691 | K144: =IF(C144=0,"NA",VLOOKUP(in_valve_size,ss_chv_cost_cl,IF(ss_cat="large",4,5))) -> 25 | L144: 1 | M144: Check Valves - Inlet - Stainless Steel | N144: 3 | O144: 3 | P144: 1 | Q144: 3 | R144: 3 | S144: 1 | T144: 3 | U144: 3 | V144: 1 | W144: 0 | X144: 3 | Y144: 3 | Z144: 1 | AA144: 3 | AB144: 3 | AC144: 1 | AD144: 3 | AE144: 3 | AF144: 1 | AG144: 1 | AH144: 2000.008277
A145: 4.3.4 | B145: Inlet - Cast Iron | C145: =tot_in_chv -> 1 | D145: units | E145: =IF(C145=0,"NA",in_valve_size) -> 36 | F145: in. diam | G145: =IF(C145=0,"NA",IF(curve=1,in_valve_size,VLOOKUP(in_valve_size,ci_chv_cost_cl,2))) -> 36 | H145: in. diam | I145: =IF(C145=0,"NA",IF(curve=1,ci_chv_eq_in,VLOOKUP(in_valve_size,ci_chv_cost_cl,3))) -> contact vendor | J145: -- | K145: =IF(C145=0,"NA",VLOOKUP(in_valve_size,ci_chv_cost_cl,IF(ss_cat="large",4,5))) -> 25 | L145: 0 | M145: Check Valves - Inlet - Cast Iron | N145: 2 | O145: 1 | P145: 2 | Q145: 2 | R145: 1 | S145: 2 | T145: 2 | U145: 1 | V145: 2 | W145: 0 | X145: 2 | Y145: 1 | Z145: 2 | AA145: 2 | AB145: 1 | AC145: 2 | AD145: 2 | AE145: 1 | AF145: 2 | AG145: 0 | AH145: 0
A146: 4.3.5 | B146: Bypass - Polypropylene/PVC | C146: =IF(bp_pct>0,tot_bp_chv,0) -> 0 | D146: units | E146: =IF(bp_pct=0,"NA",bypass_valve_size) -> NA | F146: =IF(bp_pct=0," ","in. diam") ->  | G146: =IF(bp_pct=0,"NA",(IF(curve=1,bypass_valve_size,VLOOKUP(bypass_valve_size,pp_chv_cost_cl,2)))) -> NA | H146: =IF(bp_pct=0," ","in. diam") ->  | I146: =IF(bp_pct=0,"NA",(IF(curve=1,pp_chv_eq_bp,VLOOKUP(bypass_valve_size,pp_chv_cost_cl,3)))) -> NA | J146: =IF(bp_pct=0,"--",IF(I146="contact vendor","--",C146*I146)) -> -- | K146: =IF(C146=0,"NA",VLOOKUP(E146,pp_chv_cost_cl,IF(ss_cat="large",4,5))) -> NA | M146: Check Valves - Bypass - Polypropylene/PVC | N146: 1 | O146: 2 | P146: 3 | Q146: 1 | R146: 2 | S146: 3 | T146: 1 | U146: 2 | V146: 3 | W146: 0 | X146: 1 | Y146: 2 | Z146: 3 | AA146: 1 | AB146: 2 | AC146: 3 | AD146: 1 | AE146: 2 | AF146: 3 | AG146: 0 | AH146: 0
A147: 4.3.5 | B147: Bypass - Stainless Steel | C147: =IF(bp_pct>0,tot_bp_chv,0) -> 0 | D147: units | E147: =IF(bp_pct=0,"NA",bypass_valve_size) -> NA | F147: =IF(bp_pct=0," ","in. diam") ->  | G147: =IF(bp_pct=0,"NA",(IF(curve=1,bypass_valve_size,VLOOKUP(bypass_valve_size,ss_chv_cost_cl,2)))) -> NA | H147: =IF(bp_pct=0," ","in. diam") ->  | I147: =IF(bp_pct=0,"NA",(IF(curve=1,ss_chv_eq_bp,VLOOKUP(bypass_valve_size,ss_chv_cost_cl,3)))) -> NA | J147: =IF(bp_pct=0,"--",IF(I147="contact vendor","--",C147*I147)) -> -- | K147: =IF(C147=0,"NA",VLOOKUP(E147,ss_chv_cost_cl,IF(ss_cat="large",4,5))) -> NA | M147: Check Valves - Bypass - Stainless Steel | N147: 3 | O147: 3 | P147: 1 | Q147: 3 | R147: 3 | S147: 1 | T147: 3 | U147: 3 | V147: 1 | W147: 0 | X147: 3 | Y147: 3 | Z147: 1 | AA147: 3 | AB147: 3 | AC147: 1 | AD147: 3 | AE147: 3 | AF147: 1 | AG147: 0 | AH147: 0
A148: 4.3.5 | B148: Bypass - Cast Iron | C148: =IF(bp_pct>0,tot_bp_chv,0) -> 0 | D148: units | E148: =IF(bp_pct=0,"NA",bypass_valve_size) -> NA | F148: =IF(bp_pct=0," ","in. diam") ->  | G148: =IF(bp_pct=0,"NA",(IF(curve=1,bypass_valve_size,VLOOKUP(bypass_valve_size,ci_chv_cost_cl,2)))) -> NA | H148: =IF(bp_pct=0," ","in. diam") ->  | I148: =IF(bp_pct=0,"NA",(IF(curve=1,ci_chv_eq_bp,VLOOKUP(bypass_valve_size,ci_chv_cost_cl,3)))) -> NA | J148: =IF(bp_pct=0,"--",IF(I148="contact vendor","--",C148*I148)) -> -- | K148: =IF(C148=0,"NA",VLOOKUP(E148,ci_chv_cost_cl,IF(ss_cat="large",4,5))) -> NA | M148: Check Valves - Bypass - Cast Iron | N148: 2 | O148: 1 | P148: 2 | Q148: 2 | R148: 1 | S148: 2 | T148: 2 | U148: 1 | V148: 2 | W148: 0 | X148: 2 | Y148: 1 | Z148: 2 | AA148: 2 | AB148: 1 | AC148: 2 | AD148: 2 | AE148: 1 | AF148: 2 | AG148: 0 | AH148: 0
A149: 5. | B149: Pumps | AG149: 0 | AH149: 0
A150: 5.1 | B150: Booster | C150: =total_booster_pumps -> 7 | D150: units | E150: =IF(C150=0,"NA",pump_rating) -> 10000 | F150: =IF(C150=0,"","gpm") -> gpm | G150: =IF(C150=0,"NA",IF(curve=1,pump_rating,VLOOKUP(pump_rating,pump_cost_cl,2))) -> 10000 | H150: =IF(C150=0,"","gpm") -> gpm | I150: =IF(C150=0,"NA",IF(curve=1,pump_eq,VLOOKUP(pump_rating,pump_cost_cl,3))) -> 77281.42017 | J150: =IF(C150=0,"--",IF(I150="contact vendor","--",C150*I150)) -> 540969.9412 | K150: =IF(C150=0,"NA",VLOOKUP(pump_rating,pump_cost_cl,IF(ss_cat="large",4,5))) -> 20 | L150: 1 | M150: =$B$149&" - "&B150 -> Pumps - Booster | N150: =IF(retrofit=1,$W150*X150,IF(ISBLANK(X150),"",X150)) -> 1 | O150: 1 | P150: 1 | Q150: 1 | R150: 1 | S150: 1 | T150: 1 | U150: =IF(retrofit=1,$W150*AE150,IF(ISBLANK(AE150),"",AE150)) -> 1 | V150: 1 | W150: 0 | X150: 1 | Y150: 1 | Z150: 1 | AA150: 1 | AB150: 1 | AC150: 1 | AD150: 1 | AE150: 1 | AF150: 1 | AG150: 1 | AH150: 27048.49706
A151: 5.2 | B151: Backwash | C151: =backwash_pumps -> 2 | D151: units | E151: =IF(C151=0,"NA",back_pump_rating) -> 4410 | F151: =IF(C151=0,"","gpm") -> gpm | G151: =IF(C151=0,"NA",IF(curve=1,back_pump_rating,VLOOKUP(back_pump_rating,back_pump_cost_cl,2))) -> 4410 | H151: =IF(C151=0,"","gpm") -> gpm | I151: =IF(C151=0,"NA",IF(curve=1,pump_eq_back,VLOOKUP(back_pump_rating,back_pump_cost_cl,3))) -> 48066.95044 | J151: =IF(C151=0,"--",(IF(I151="contact vendor","--",C151*I151))) -> 96133.90088 | K151: =IF(C151=0,"NA",VLOOKUP(back_pump_rating,back_pump_cost_cl,IF(ss_cat="large",4,5))) -> 20 | L151: 1 | M151: =$B$149&" - "&B151 -> Pumps - Backwash | N151: 1 | O151: 1 | P151: 1 | Q151: 1 | R151: 1 | S151: 1 | T151: 1 | U151: 1 | V151: 1 | W151: 0 | X151: 1 | Y151: 1 | Z151: 1 | AA151: 1 | AB151: 1 | AC151: 1 | AD151: 1 | AE151: 1 | AF151: 1 | AG151: 1 | AH151: 4806.695044
A152: 5.3 | B152: Residuals | C152: =res_pumps -> 2 | D152: units | E152: =IF(res_pumps=0,"NA",res_pump_rating) -> 1990.625 | F152: =IF(C152=0,"","gpm") -> gpm | G152: =IF(res_pumps=0,"NA",IF(curve=1,res_pump_rating,VLOOKUP(res_pump_rating,pump_cost_cl,2))) -> 1990.625 | H152: =IF(C152=0,"","gpm") -> gpm | I152: =IF(res_pumps=0,"NA",IF(curve=1,res_pump_eq,VLOOKUP(res_pump_rating,pump_cost_cl,3))) -> 26982.43219 | J152: =IF(OR(C152=0,I152="contact vendor"),"--",C152*I152) -> 53964.86437 | K152: =IF(res_pumps=0,"NA",VLOOKUP(res_pump_rating,pump_cost_cl,IF(ss_cat="large",4,5))) -> 20 | L152: 1 | M152: =$B$149&" - "&B152 -> Pumps - Residuals | N152: 1 | O152: 1 | P152: 1 | Q152: 1 | R152: 1 | S152: 1 | T152: 1 | U152: 1 | V152: 1 | W152: 0 | X152: 1 | Y152: 1 | Z152: 1 | AA152: 1 | AB152: 1 | AC152: 1 | AD152: 1 | AE152: 1 | AF152: 1 | AG152: 1 | AH152: 2698.243219
A153: 5.4 | B153: Polymer Metering | AG153: 0 | AH153: 0
A154: 5.4.1 | B154: PVC - Motor Driven | C154: =cm_pumps_polymer -> 0 | D154: units | E154: =IF(C154=0,"NA",IF(C154=0,"NA",cm_pump_rating_polymer)) -> NA | F154: =IF(C154=0,"","gph") ->  | G154: =IF(C154=0,"NA",IF(curve=1,cm_pump_rating_polymer,VLOOKUP(cm_pump_rating_polymer,pvc_mmpump_cost_cl,2))) -> NA | H154: =IF(C154=0,"","gph") ->  | I154: =IF(C154=0,"NA",IF(curve=1,pvc_polymer_mmpump_eq,VLOOKUP(cm_pump_rating_polymer,pvc_mmpump_cost_cl,3))) -> NA | J154: =IF(C154=0,"--",(IF(I154="contact vendor","--",C154*I154))) -> -- | K154: =IF(C154=0,"NA",VLOOKUP(cm_pump_rating_polymer,pvc_mmpump_cost_cl,IF(ss_cat="large",4,5))) -> NA | M154: =$B$149&" - "&$B$153&" - "&B154 -> Pumps - Polymer Metering - PVC - Motor Driven | N154: =IF(retrofit=1,$W154*X154,IF(ISBLANK(X154),"",X154)) -> 3 | O154: 3 | P154: 2 | Q154: 4 | R154: 4 | S154: 1 | T154: 4 | U154: 4 | V154: 1 | W154: 0 | X154: 3 | Y154: 3 | Z154: 2 | AA154: 4 | AB154: 4 | AC154: 1 | AD154: 4 | AE154: 4 | AF154: 1 | AG154: 0 | AH154: 0
A155: 5.4.1 | B155: Stainless Steel - Motor Driven | C155: =cm_pumps_polymer -> 0 | D155: units | E155: =IF(C155=0,"NA",IF(C155=0,"NA",cm_pump_rating_polymer)) -> NA | F155: =IF(C155=0,"","gph") ->  | G155: =IF(C155=0,"NA",IF(curve=1,cm_pump_rating_polymer,VLOOKUP(cm_pump_rating_polymer,ss_mmpump_cost_cl,2))) -> NA | H155: =IF(C155=0,"","gph") ->  | I155: =IF(C155=0,"NA",IF(curve=1,ss_polymer_mmpump_eq,VLOOKUP(cm_pump_rating_polymer,ss_mmpump_cost_cl,3))) -> NA | J155: =IF(C155=0,"--",(IF(I155="contact vendor","--",C155*I155))) -> -- | K155: =IF(C155=0,"NA",VLOOKUP(cm_pump_rating_polymer,ss_mmpump_cost_cl,IF(ss_cat="large",4,5))) -> NA | M155: =$B$149&" - "&$B$153&" - "&B155 -> Pumps - Polymer Metering - Stainless Steel - Motor Driven | N155: 4 | O155: 4 | P155: 1 | Q155: 3 | R155: 3 | S155: 2 | T155: 3 | U155: 3 | V155: 2 | W155: 0 | X155: 4 | Y155: 4 | Z155: 1 | AA155: 3 | AB155: 3 | AC155: 2 | AD155: 3 | AE155: 3 | AF155: 2 | AG155: 0 | AH155: 0
A156: 5.4.1 | B156: PVC - Electric | C156: =cm_pumps_polymer -> 0 | D156: units | E156: =IF(C156=0,"NA",IF(C156=0,"NA",cm_pump_rating_polymer)) -> NA | F156: =IF(C156=0,"","gph") ->  | G156: =IF(C156=0,"NA",IF(curve=1,cm_pump_rating_polymer,VLOOKUP(cm_pump_rating_polymer,pvc_empump_cost_cl,2))) -> NA | H156: =IF(C156=0,"","gph") ->  | I156: =IF(C156=0,"NA",IF(curve=1,pvc_polymer_empump_eq,VLOOKUP(cm_pump_rating_polymer,pvc_empump_cost_cl,3))) -> NA | J156: =IF(C156=0,"--",(IF(I156="contact vendor","--",C156*I156))) -> -- | K156: =IF(C156=0,"NA",VLOOKUP(cm_pump_rating_polymer,pvc_empump_cost_cl,IF(ss_cat="large",4,5))) -> NA | M156: =$B$149&" - "&$B$153&" - "&B156 -> Pumps - Polymer Metering - PVC - Electric | N156: 1 | O156: 2 | P156: 4 | Q156: 1 | R156: 2 | S156: 4 | T156: 1 | U156: 2 | V156: 4 | W156: 0 | X156: 1 | Y156: 2 | Z156: 4 | AA156: 1 | AB156: 2 | AC156: 4 | AD156: 1 | AE156: 2 | AF156: 4 | AG156: 0 | AH156: 0
A157: 5.4.1 | B157: Stainless Steel - Electric | C157: =cm_pumps_polymer -> 0 | D157: units | E157: =IF(C157=0,"NA",IF(C157=0,"NA",cm_pump_rating_polymer)) -> NA | F157: =IF(C157=0,"","gph") ->  | G157: =IF(C157=0,"NA",IF(curve=1,cm_pump_rating_polymer,VLOOKUP(cm_pump_rating_polymer,ss_empump_cost_cl,2))) -> NA | H157: =IF(C157=0,"","gph") ->  | I157: =IF(C157=0,"NA",IF(curve=1,ss_polymer_empump_eq,VLOOKUP(cm_pump_rating_polymer,ss_empump_cost_cl,3))) -> NA | J157: =IF(C157=0,"--",(IF(I157="contact vendor","--",C157*I157))) -> -- | K157: =IF(C157=0,"NA",VLOOKUP(cm_pump_rating_polymer,ss_empump_cost_cl,IF(ss_cat="large",4,5))) -> NA | M157: =$B$149&" - "&$B$153&" - "&B157 -> Pumps - Polymer Metering - Stainless Steel - Electric | N157: 2 | O157: 1 | P157: 3 | Q157: 2 | R157: 1 | S157: 3 | T157: 2 | U157: 1 | V157: 3 | W157: 0 | X157: 2 | Y157: 1 | Z157: 3 | AA157: 2 | AB157: 1 | AC157: 3 | AD157: 2 | AE157: 1 | AF157: 3 | AG157: 0 | AH157: 0
A158: 6. | B158: Instrumentation | AG158: 0 | AH158: 0
A159: 6.1 | B159: Flow Meters - Inlet and Outlet | AG159: 0 | AH159: 0
A160: 6.1.1 | B160: Orifice Plate | C160: =tot_fm_in -> 1 | D160: units | E160: =IF(C160=0,"NA",in_meter_size) -> 36 | F160: =IF(C160=0,"","in. diam") -> in. diam | G160: =IF(C160=0,"NA",IF(curve=1,in_meter_size,VLOOKUP(in_meter_size,op_fm_cost_cl,2))) -> 36 | H160: =IF(C160=0,"","in. diam") -> in. diam | I160: =IF(C160=0,"NA",IF(curve=1,op_fm_eq_in,VLOOKUP(in_meter_size,op_fm_cost_cl,3))) -> 13737.04437 | J160: =IF(OR(C160=0,I160="contact vendor"),"--",C160*I160) -> 13737.04437 | K160: =IF(C160=0,"NA",VLOOKUP(in_meter_size,op_fm_cost_cl,IF(ss_cat="large",4,5))) -> 15 | L160: 1 | M160: =$B$158&" - "&$B$159&" - "&B160 -> Instrumentation - Flow Meters - Inlet and Outlet - Orifice Plate | N160: =IF(retrofit=1,$W160*X160,IF(ISBLANK(X160),"",X160)) -> 3 | O160: 4 | P160: 4 | Q160: 3 | R160: 4 | S160: 4 | T160: 3 | U160: =IF(retrofit=1,$W160*AE160,IF(ISBLANK(AE160),"",AE160)) -> 3 | V160: 4 | W160: 0 | X160: 3 | Y160: 4 | Z160: 4 | AA160: 3 | AB160: 4 | AC160: 4 | AD160: 3 | AE160: 3 | AF160: 4 | AG160: 1 | AH160: 915.8029582
A161: 6.1.1 | B161: Propeller | C161: =tot_fm_in -> 1 | D161: units | E161: =IF(C161=0,"NA",in_meter_size) -> 36 | F161: =IF(C161=0,"","in. diam") -> in. diam | G161: =IF(C161=0,"NA",IF(curve=1,in_meter_size,VLOOKUP(in_meter_size,prop_fm_cost_cl,2))) -> 36 | H161: =IF(C161=0,"","in. diam") -> in. diam | I161: =IF(C161=0,"NA",IF(curve=1,prop_fm_eq_in,VLOOKUP(in_meter_size,prop_fm_cost_cl,3))) -> contact vendor | J161: =IF(OR(C161=0,I161="contact vendor"),"--",C161*I161) -> -- | K161: =IF(C161=0,"NA",VLOOKUP(in_meter_size,prop_fm_cost_cl,IF(ss_cat="large",4,5))) -> 15 | L161: 0 | M161: =$B$158&" - "&$B$159&" - "&B161 -> Instrumentation - Flow Meters - Inlet and Outlet - Propeller | N161: 1 | O161: 2 | P161: 3 | Q161: 1 | R161: 2 | S161: 3 | T161: 4 | U161: 4 | V161: 2 | W161: 0 | X161: 1 | Y161: 2 | Z161: 3 | AA161: 1 | AB161: 2 | AC161: 3 | AD161: 4 | AE161: 4 | AF161: 2 | AG161: 0 | AH161: 0
A162: 6.1.1 | B162: Venturi | C162: =tot_fm_in -> 1 | D162: units | E162: =IF(C162=0,"NA",in_meter_size) -> 36 | F162: =IF(C162=0,"","in. diam") -> in. diam | G162: =IF(C162=0,"NA",IF(curve=1,in_meter_size,VLOOKUP(in_meter_size,ven_fm_cost_cl,2))) -> 36 | H162: =IF(C162=0,"","in. diam") -> in. diam | I162: =IF(C162=0,"NA",IF(curve=1,ven_fm_eq_in,VLOOKUP(in_meter_size,ven_fm_cost_cl,3))) -> contact vendor | J162: =IF(OR(C162=0,I162="contact vendor"),"--",C162*I162) -> -- | K162: =IF(C162=0,"NA",VLOOKUP(in_meter_size,ven_fm_cost_cl,IF(ss_cat="large",4,5))) -> 15 | L162: 0 | M162: =$B$158&" - "&$B$159&" - "&B162 -> Instrumentation - Flow Meters - Inlet and Outlet - Venturi | N162: 2 | O162: 1 | P162: 2 | Q162: 2 | R162: 1 | S162: 2 | T162: 1 | U162: 2 | V162: 3 | W162: 0 | X162: 2 | Y162: 1 | Z162: 2 | AA162: 2 | AB162: 1 | AC162: 2 | AD162: 1 | AE162: 2 | AF162: 3 | AG162: =IF(ISERROR(K162*L162),0,IF(K162<1,0,L162)) -> 0 | AH162: =IF(AG162,J162/K162,0) -> 0
A163: 6.1.1 | B163: Magnetic | C163: =tot_fm_in -> 1 | D163: units | E163: =IF(C163=0,"NA",in_meter_size) -> 36 | F163: =IF(C163=0,"","in. diam") -> in. diam | G163: =IF(C163=0,"NA",IF(curve=1,in_meter_size,VLOOKUP(in_meter_size,mag_fm_cost_cl,2))) -> 36 | H163: =IF(C163=0,"","in. diam") -> in. diam | I163: =IF(C163=0,"NA",IF(curve=1,mag_fm_eq_in,VLOOKUP(in_meter_size,mag_fm_cost_cl,3))) -> contact vendor | J163: =IF(OR(C163=0,I163="contact vendor"),"--",C163*I163) -> -- | K163: =IF(C163=0,"NA",VLOOKUP(in_meter_size,mag_fm_cost_cl,IF(ss_cat="large",4,5))) -> 15 | L163: 0 | M163: =$B$158&" - "&$B$159&" - "&B163 -> Instrumentation - Flow Meters - Inlet and Outlet - Magnetic | N163: 4 | O163: 3 | P163: 1 | Q163: 4 | R163: 3 | S163: 1 | T163: 2 | U163: 1 | V163: 1 | W163: 0 | X163: 4 | Y163: 3 | Z163: 1 | AA163: 4 | AB163: 3 | AC163: 1 | AD163: 2 | AE163: 1 | AF163: 1 | AG163: 0 | AH163: 0
A164: 6.2 | B164: Flow Meters - Process | AG164: 0 | AH164: 0
A165: 6.2.1 | B165: Orifice Plate | C165: =tot_fm_proc -> 0 | D165: units | E165: =IF(C165=0,"NA",proc_meter_size) -> NA | F165: =IF(C165=0,"","in. diam") ->  | G165: =IF(C165=0,"NA",IF(curve=1,proc_meter_size,VLOOKUP(proc_meter_size,op_fm_cost_cl,2))) -> NA | H165: =IF(C165=0,"","in. diam") ->  | I165: =IF(C165=0,"NA",IF(curve=1,op_fm_eq_proc,VLOOKUP(proc_meter_size,op_fm_cost_cl,3))) -> NA | J165: =IF(OR(C165=0,I165="contact vendor"),"--",C165*I165) -> -- | K165: =IF(C165=0,"NA",VLOOKUP(proc_meter_size,op_fm_cost_cl,IF(ss_cat="large",4,5))) -> NA | M165: =$B$158&" - "&$B$164&" - "&B165 -> Instrumentation - Flow Meters - Process - Orifice Plate | N165: =IF(retrofit=1,$W165*X165,IF(ISBLANK(X165),"",X165)) -> 3 | O165: 4 | P165: 4 | Q165: 3 | R165: 4 | S165: 4 | T165: 3 | U165: =IF(retrofit=1,$W165*AE165,IF(ISBLANK(AE165),"",AE165)) -> 3 | V165: 4 | W165: 0 | X165: 3 | Y165: 4 | Z165: 4 | AA165: 3 | AB165: 4 | AC165: 4 | AD165: 3 | AE165: 3 | AF165: 4 | AG165: 0 | AH165: 0
A166: 6.2.1 | B166: Propeller | C166: =tot_fm_proc -> 0 | D166: units | E166: =IF(C166=0,"NA",proc_meter_size) -> NA | F166: =IF(C166=0,"","in. diam") ->  | G166: =IF(C166=0,"NA",IF(curve=1,proc_meter_size,VLOOKUP(proc_meter_size,prop_fm_cost_cl,2))) -> NA | H166: =IF(C166=0,"","in. diam") ->  | I166: =IF(C166=0,"NA",IF(curve=1,prop_fm_eq_proc,VLOOKUP(proc_meter_size,prop_fm_cost_cl,3))) -> NA | J166: =IF(OR(C166=0,I166="contact vendor"),"--",C166*I166) -> -- | K166: =IF(C166=0,"NA",VLOOKUP(proc_meter_size,prop_fm_cost_cl,IF(ss_cat="large",4,5))) -> NA | M166: =$B$158&" - "&$B$164&" - "&B166 -> Instrumentation - Flow Meters - Process - Propeller | N166: 1 | O166: 2 | P166: 3 | Q166: 1 | R166: 2 | S166: 3 | T166: 4 | U166: 4 | V166: 2 | W166: 0 | X166: 1 | Y166: 2 | Z166: 3 | AA166: 1 | AB166: 2 | AC166: 3 | AD166: 4 | AE166: 4 | AF166: 2 | AG166: 0 | AH166: 0
A167: 6.2.1 | B167: Venturi | C167: =tot_fm_proc -> 0 | D167: units | E167: =IF(C167=0,"NA",proc_meter_size) -> NA | F167: =IF(C167=0,"","in. diam") ->  | G167: =IF(C167=0,"NA",IF(curve=1,proc_meter_size,VLOOKUP(proc_meter_size,ven_fm_cost_cl,2))) -> NA | H167: =IF(C167=0,"","in. diam") ->  | I167: =IF(C167=0,"NA",IF(curve=1,ven_fm_eq_proc,VLOOKUP(proc_meter_size,ven_fm_cost_cl,3))) -> NA | J167: =IF(OR(C167=0,I167="contact vendor"),"--",C167*I167) -> -- | K167: =IF(C167=0,"NA",VLOOKUP(proc_meter_size,ven_fm_cost_cl,IF(ss_cat="large",4,5))) -> NA | M167: =$B$158&" - "&$B$164&" - "&B167 -> Instrumentation - Flow Meters - Process - Venturi | N167: 2 | O167: 1 | P167: 2 | Q167: 2 | R167: 1 | S167: 2 | T167: 1 | U167: 2 | V167: 3 | W167: 0 | X167: 2 | Y167: 1 | Z167: 2 | AA167: 2 | AB167: 1 | AC167: 2 | AD167: 1 | AE167: 2 | AF167: 3 | AG167: 0 | AH167: 0
A168: 6.2.1 | B168: Magnetic | C168: =tot_fm_proc -> 0 | D168: units | E168: =IF(C168=0,"NA",proc_meter_size) -> NA | F168: =IF(C168=0,"","in. diam") ->  | G168: =IF(C168=0,"NA",IF(curve=1,proc_meter_size,VLOOKUP(proc_meter_size,mag_fm_cost_cl,2))) -> NA | H168: =IF(C168=0,"","in. diam") ->  | I168: =IF(C168=0,"NA",IF(curve=1,mag_fm_eq_proc,VLOOKUP(proc_meter_size,mag_fm_cost_cl,3))) -> NA | J168: =IF(OR(C168=0,I168="contact vendor"),"--",C168*I168) -> -- | K168: =IF(C168=0,"NA",VLOOKUP(proc_meter_size,mag_fm_cost_cl,IF(ss_cat="large",4,5))) -> NA | M168: =$B$158&" - "&$B$164&" - "&B168 -> Instrumentation - Flow Meters - Process - Magnetic | N168: 4 | O168: 3 | P168: 1 | Q168: 4 | R168: 3 | S168: 1 | T168: 2 | U168: 1 | V168: 1 | W168: 0 | X168: 4 | Y168: 3 | Z168: 1 | AA168: 4 | AB168: 3 | AC168: 1 | AD168: 2 | AE168: 1 | AF168: 1 | AG168: 0 | AH168: 0
A169: 6.3 | B169: Flow Meters - Backwash | AG169: 0 | AH169: 0
A170: 6.3.1 | B170: Orifice Plate | C170: =tot_fm_back -> 1 | D170: units | E170: =back_meter_size -> 12 | F170: in. diam | G170: =IF(curve=1,back_meter_size,VLOOKUP(back_meter_size,op_fm_cost_cl,2)) -> 12 | H170: in. diam | I170: =IF(curve=1,op_fm_eq_back,VLOOKUP(back_meter_size,op_fm_cost_cl,3)) -> 6065.619797 | J170: =IF(I170="contact vendor","--",C170*I170) -> 6065.619797 | K170: =VLOOKUP(back_meter_size,op_fm_cost_cl,IF(ss_cat="large",4,5)) -> 15 | L170: 0 | M170: =$B$158&" - "&$B$169&" - "&B170 -> Instrumentation - Flow Meters - Backwash - Orifice Plate | N170: =IF(retrofit=1,$W170*X170,IF(ISBLANK(X170),"",X170)) -> 3 | O170: 4 | P170: 4 | Q170: 3 | R170: 4 | S170: 4 | T170: 3 | U170: =IF(retrofit=1,$W170*AE170,IF(ISBLANK(AE170),"",AE170)) -> 3 | V170: 4 | W170: 0 | X170: 3 | Y170: 4 | Z170: 4 | AA170: 3 | AB170: 4 | AC170: 4 | AD170: 3 | AE170: 3 | AF170: 4 | AG170: 0 | AH170: 0
A171: 6.3.1 | B171: Propeller | C171: =tot_fm_back -> 1 | D171: units | E171: =back_meter_size -> 12 | F171: in. diam | G171: =IF(curve=1,back_meter_size,VLOOKUP(back_meter_size,prop_fm_cost_cl,2)) -> 12 | H171: in. diam | I171: =IF(curve=1,prop_fm_eq_back,VLOOKUP(back_meter_size,prop_fm_cost_cl,3)) -> 4961.910515 | J171: =IF(I171="contact vendor","--",C171*I171) -> 4961.910515 | K171: =VLOOKUP(back_meter_size,prop_fm_cost_cl,IF(ss_cat="large",4,5)) -> 15 | L171: 0 | M171: =$B$158&" - "&$B$169&" - "&B171 -> Instrumentation - Flow Meters - Backwash - Propeller | N171: 1 | O171: 2 | P171: 3 | Q171: 1 | R171: 2 | S171: 3 | T171: 4 | U171: 4 | V171: 2 | W171: 0 | X171: 1 | Y171: 2 | Z171: 3 | AA171: 1 | AB171: 2 | AC171: 3 | AD171: 4 | AE171: 4 | AF171: 2 | AG171: 0 | AH171: 0
A172: 6.3.1 | B172: Venturi | C172: =tot_fm_back -> 1 | D172: units | E172: =back_meter_size -> 12 | F172: in. diam | G172: =IF(curve=1,back_meter_size,VLOOKUP(back_meter_size,ven_fm_cost_cl,2)) -> 12 | H172: in. diam | I172: =IF(curve=1,ven_fm_eq_back,VLOOKUP(back_meter_size,ven_fm_cost_cl,3)) -> 15645.90072 | J172: =IF(I172="contact vendor","--",C172*I172) -> 15645.90072 | K172: =VLOOKUP(back_meter_size,ven_fm_cost_cl,IF(ss_cat="large",4,5)) -> 15 | L172: 1 | M172: =$B$158&" - "&$B$169&" - "&B172 -> Instrumentation - Flow Meters - Backwash - Venturi | N172: 2 | O172: 1 | P172: 2 | Q172: 2 | R172: 1 | S172: 2 | T172: 1 | U172: 2 | V172: 3 | W172: 0 | X172: 2 | Y172: 1 | Z172: 2 | AA172: 2 | AB172: 1 | AC172: 2 | AD172: 1 | AE172: 2 | AF172: 3 | AG172: 1 | AH172: 1043.060048
A173: 6.3.1 | B173: Magnetic | C173: =tot_fm_back -> 1 | D173: units | E173: =back_meter_size -> 12 | F173: in. diam | G173: =IF(curve=1,back_meter_size,VLOOKUP(back_meter_size,mag_fm_cost_cl,2)) -> 12 | H173: in. diam | I173: =IF(curve=1,mag_fm_eq_back,VLOOKUP(back_meter_size,mag_fm_cost_cl,3)) -> 14217.63077 | J173: =IF(I173="contact vendor","--",C173*I173) -> 14217.63077 | K173: =VLOOKUP(back_meter_size,mag_fm_cost_cl,IF(ss_cat="large",4,5)) -> 15 | L173: 0 | M173: =$B$158&" - "&$B$169&" - "&B173 -> Instrumentation - Flow Meters - Backwash - Magnetic | N173: 4 | O173: 3 | P173: 1 | Q173: 4 | R173: 3 | S173: 1 | T173: 2 | U173: 1 | V173: 1 | W173: 0 | X173: 4 | Y173: 3 | Z173: 1 | AA173: 4 | AB173: 3 | AC173: 1 | AD173: 2 | AE173: 1 | AF173: 1 | AG173: 0 | AH173: 0
A174: 6.4 | B174: Flow Meters - Residuals | AG174: 0 | AH174: 0
A175: 6.4.1 | B175: Orifice Plate | C175: =tot_fm_res -> 1 | D175: units | E175: =res_meter_size -> 10 | F175: in. diam | G175: =IF(curve=1,res_meter_size,VLOOKUP(res_meter_size,op_fm_cost_cl,2)) -> 10 | H175: in. diam | I175: =IF(curve=1,op_fm_eq_res,VLOOKUP(res_meter_size,op_fm_cost_cl,3)) -> 5491.558315 | J175: =IF(I175="contact vendor","--",C175*I175) -> 5491.558315 | K175: =VLOOKUP(res_meter_size,op_fm_cost_cl,IF(ss_cat="large",4,5)) -> 15 | L175: 0 | M175: =$B$158&" - "&$B$174&" - "&B175 -> Instrumentation - Flow Meters - Residuals - Orifice Plate | N175: =IF(retrofit=1,$W175*X175,IF(ISBLANK(X175),"",X175)) -> 3 | O175: =IF(retrofit=1,$W175*Y175,IF(ISBLANK(Y175),"",Y175)) -> 4 | P175: =IF(retrofit=1,$W175*Z175,IF(ISBLANK(Z175),"",Z175)) -> 4 | Q175: =IF(retrofit=1,$W175*AA175,IF(ISBLANK(AA175),"",AA175)) -> 3 | R175: =IF(retrofit=1,$W175*AB175,IF(ISBLANK(AB175),"",AB175)) -> 4 | S175: =IF(retrofit=1,$W175*AC175,IF(ISBLANK(AC175),"",AC175)) -> 4 | T175: =IF(retrofit=1,$W175*AD175,IF(ISBLANK(AD175),"",AD175)) -> 3 | U175: =IF(retrofit=1,$W175*AE175,IF(ISBLANK(AE175),"",AE175)) -> 3 | V175: =IF(retrofit=1,$W175*AF175,IF(ISBLANK(AF175),"",AF175)) -> 4 | W175: 0 | X175: 3 | Y175: 4 | Z175: 4 | AA175: 3 | AB175: 4 | AC175: 4 | AD175: 3 | AE175: 3 | AF175: 4 | AG175: 0 | AH175: 0
A176: 6.4.1 | B176: Propeller | C176: =tot_fm_res -> 1 | D176: units | E176: =res_meter_size -> 10 | F176: in. diam | G176: =IF(curve=1,res_meter_size,VLOOKUP(res_meter_size,prop_fm_cost_cl,2)) -> 10 | H176: in. diam | I176: =IF(curve=1,prop_fm_eq_res,VLOOKUP(res_meter_size,prop_fm_cost_cl,3)) -> 4289.511819 | J176: =IF(I176="contact vendor","--",C176*I176) -> 4289.511819 | K176: =VLOOKUP(res_meter_size,prop_fm_cost_cl,IF(ss_cat="large",4,5)) -> 15 | L176: 0 | M176: =$B$158&" - "&$B$174&" - "&B176 -> Instrumentation - Flow Meters - Residuals - Propeller | N176: 1 | O176: 2 | P176: 3 | Q176: 1 | R176: 2 | S176: 3 | T176: 4 | U176: 4 | V176: 2 | W176: 0 | X176: 1 | Y176: 2 | Z176: 3 | AA176: 1 | AB176: 2 | AC176: 3 | AD176: 4 | AE176: 4 | AF176: 2 | AG176: 0 | AH176: 0
A177: 6.4.1 | B177: Venturi | C177: =tot_fm_res -> 1 | D177: units | E177: =res_meter_size -> 10 | F177: in. diam | G177: =IF(curve=1,res_meter_size,VLOOKUP(res_meter_size,ven_fm_cost_cl,2)) -> 10 | H177: in. diam | I177: =IF(curve=1,ven_fm_eq_res,VLOOKUP(res_meter_size,ven_fm_cost_cl,3)) -> 14096.51935 | J177: =IF(I177="contact vendor","--",C177*I177) -> 14096.51935 | K177: =VLOOKUP(res_meter_size,ven_fm_cost_cl,IF(ss_cat="large",4,5)) -> 15 | L177: 1 | M177: =$B$158&" - "&$B$174&" - "&B177 -> Instrumentation - Flow Meters - Residuals - Venturi | N177: 2 | O177: 1 | P177: 2 | Q177: 2 | R177: 1 | S177: 2 | T177: 1 | U177: 2 | V177: 3 | W177: 0 | X177: 2 | Y177: 1 | Z177: 2 | AA177: 2 | AB177: 1 | AC177: 2 | AD177: 1 | AE177: 2 | AF177: 3 | AG177: 1 | AH177: 939.7679568
A178: 6.4.1 | B178: Magnetic | C178: =tot_fm_res -> 1 | D178: units | E178: =res_meter_size -> 10 | F178: in. diam | G178: =IF(curve=1,res_meter_size,VLOOKUP(res_meter_size,mag_fm_cost_cl,2)) -> 10 | H178: in. diam | I178: =IF(curve=1,mag_fm_eq_res,VLOOKUP(res_meter_size,mag_fm_cost_cl,3)) -> 12257.7864 | J178: =IF(I178="contact vendor","--",C178*I178) -> 12257.7864 | K178: =VLOOKUP(res_meter_size,mag_fm_cost_cl,IF(ss_cat="large",4,5)) -> 15 | L178: 0 | M178: =$B$158&" - "&$B$174&" - "&B178 -> Instrumentation - Flow Meters - Residuals - Magnetic | N178: 4 | O178: 3 | P178: 1 | Q178: 4 | R178: 3 | S178: 1 | T178: 2 | U178: 1 | V178: 1 | W178: 0 | X178: 4 | Y178: 3 | Z178: 1 | AA178: 4 | AB178: 3 | AC178: 1 | AD178: 2 | AE178: 1 | AF178: 1 | AG178: 0 | AH178: 0
A179: 6.5 | B179: Level Switches/Alarms (for vessels) | C179: =tot_level_switch -> 0 | D179: units | E179: NA | G179: NA | I179: =IF(C179=0,"NA",VLOOKUP(0,alarm_cost_cl,3)) -> NA | J179: =IF(C179=0,"--",IF(I179="contact vendor","--",C179*I179)) -> -- | K179: =IF(C179=0,"NA",VLOOKUP(0,alarm_cost_cl,IF(ss_cat="large",4,5))) -> NA | M179: =B179 -> Level Switches/Alarms (for vessels) | N179: 1 | O179: 1 | P179: 1 | Q179: 1 | R179: 1 | S179: 1 | T179: 1 | U179: 1 | V179: 1 | W179: 0 | X179: 1 | Y179: 1 | Z179: 1 | AA179: 1 | AB179: 1 | AC179: 1 | AD179: 1 | AE179: 1 | AF179: 1 | AG179: 0 | AH179: 0
A180: 6.6 | B180: High/Low Alarms (for backwash tanks) | C180: =tot_back_alarm -> 0 | D180: units | E180: NA | G180: NA | I180: =IF(C180=0,"NA",VLOOKUP(0,alarm_cost_cl,3)) -> NA | J180: =IF(OR(I180="contact vendor",I180="NA"),"--",C180*I180) -> -- | K180: =IF(C180=0,"NA",VLOOKUP(0,alarm_cost_cl,IF(ss_cat="large",4,5))) -> NA | M180: High/Low Alarms (for backwash tanks) | N180: 1 | O180: 1 | P180: 1 | Q180: 1 | R180: 1 | S180: 1 | T180: 1 | U180: 1 | V180: 1 | W180: 0 | X180: 1 | Y180: 1 | Z180: 1 | AA180: 1 | AB180: 1 | AC180: 1 | AD180: 1 | AE180: 1 | AF180: 1 | AG180: 0 | AH180: 0
A181: 6.7 | B181: High/Low Alarm (for holding tanks) | C181: =tot_res_alarm -> 1 | D181: units | E181: NA | G181: NA | I181: =IF(C181=0,"NA",VLOOKUP(0,alarm_cost_cl,3)) -> 644.2902804 | J181: =IF(OR(I181="contact vendor",I181="NA"),"--",C181*I181) -> 644.2902804 | K181: =IF(C181=0,"NA",VLOOKUP(0,alarm_cost_cl,IF(ss_cat="large",4,5))) -> 15 | L181: 1 | M181: =B181 -> High/Low Alarm (for holding tanks) | N181: 1 | O181: 1 | P181: 1 | Q181: 1 | R181: 1 | S181: 1 | T181: 1 | U181: 1 | V181: 1 | W181: 0 | X181: 1 | Y181: 1 | Z181: 1 | AA181: 1 | AB181: 1 | AC181: 1 | AD181: 1 | AE181: 1 | AF181: 1 | AG181: 1 | AH181: 42.95268536
A182: 6.8 | B182: pH Meters | C182: =pH_controls -> 2 | D182: units | E182: NA | G182: NA | I182: =IF(C182=0,"NA",VLOOKUP(0,pH_meter_cost_cl,3)) -> 2185.472656 | J182: =IF(OR(C182=0,I182="contact vendor"),"--",C182*I182) -> 4370.945311 | K182: =IF(C182=0,"NA",VLOOKUP(0,pH_meter_cost_cl,IF(ss_cat="large",4,5))) -> 15 | L182: 1 | M182: pH Meters | N182: 1 | O182: 1 | P182: 1 | Q182: 1 | R182: 1 | S182: 1 | T182: 1 | U182: 1 | V182: 1 | W182: 0 | X182: 1 | Y182: 1 | Z182: 1 | AA182: 1 | AB182: 1 | AC182: 1 | AD182: 1 | AE182: 1 | AF182: 1 | AG182: 1 | AH182: 291.3963541
A183: 6.9 | B183: Temperature meters | C183: =tot_temp_meters -> 2 | D183: units | E183: NA | G183: NA | I183: =IF(C183=0,"NA",VLOOKUP(0,temp_meter_cost_cl,3)) -> 522.6209402 | J183: =IF(OR(C183=0,I183="contact vendor"),"--",C183*I183) -> 1045.24188 | K183: =IF(C183=0,"NA",VLOOKUP(0,temp_meter_cost_cl,IF(ss_cat="large",4,5))) -> 15 | L183: 1 | M183: Temperature meters | N183: 1 | O183: 1 | P183: 1 | Q183: 1 | R183: 1 | S183: 1 | T183: 1 | U183: 1 | V183: 1 | W183: 0 | X183: 1 | Y183: 1 | Z183: 1 | AA183: 1 | AB183: 1 | AC183: 1 | AD183: 1 | AE183: 1 | AF183: 1 | AG183: 1 | AH183: 69.68279203
A184: 6.10 | B184: Turbidity meters | C184: =tot_turb_meters -> 3 | D184: units | E184: NA | G184: NA | I184: =IF(C184=0,"NA",VLOOKUP(0,turbidimeter_cost_cl,3)) -> 4929.067134 | J184: =IF(OR(C184=0,I184="contact vendor"),"--",C184*I184) -> 14787.2014 | K184: =IF(C184=0,"NA",VLOOKUP(0,turbidimeter_cost_cl,IF(ss_cat="large",4,5))) -> 15 | L184: 1 | M184: Turbidity meters | N184: 1 | O184: 1 | P184: 1 | Q184: 1 | R184: 1 | S184: 1 | T184: 1 | U184: 1 | V184: 1 | W184: 0 | X184: 1 | Y184: 1 | Z184: 1 | AA184: 1 | AB184: 1 | AC184: 1 | AD184: 1 | AE184: 1 | AF184: 1 | AG184: 1 | AH184: 985.8134267
A185: 6.11 | B185: Head loss sensors | C185: =tot_head_sens -> 65 | D185: units | E185: NA | G185: NA | I185: =IF(C185=0,"NA",VLOOKUP(0,headloss_cost_cl,3)) -> 2699.17367 | J185: =IF(OR(C185=0,I185="contact vendor"),"--",C185*I185) -> 175446.2885 | K185: =IF(C185=0,"NA",VLOOKUP(0,headloss_cost_cl,IF(ss_cat="large",4,5))) -> 15 | L185: 1 | M185: Head loss sensors | N185: 1 | O185: 1 | P185: 1 | Q185: 1 | R185: 1 | S185: 1 | T185: 1 | U185: 1 | V185: 1 | W185: 0 | X185: 1 | Y185: 1 | Z185: 1 | AA185: 1 | AB185: 1 | AC185: 1 | AD185: 1 | AE185: 1 | AF185: 1 | AG185: 1 | AH185: 11696.41924
A186: 6.12 | B186: Sampling Ports | AG186: 0 | AH186: 0
A187: 6.12.1 | B187: Stainless Steel | C187: =ports -> 68 | D187: units | E187: NA | G187: NA | I187: 50 | J187: =IF(I187="contact vendor","--",C187*I187) -> 3400 | K187: =IF(ss_cat="large",35,30) -> 35 | L187: 0 | M187: =$B$186&" - "&B187 -> Sampling Ports - Stainless Steel | N187: =IF(retrofit=1,$W187*X187,IF(ISBLANK(X187),"",X187)) -> 2 | O187: 1 | P187: 1 | Q187: 2 | R187: 1 | S187: 1 | T187: 2 | U187: =IF(retrofit=1,$W187*AE187,IF(ISBLANK(AE187),"",AE187)) -> 1 | V187: 1 | W187: 0 | X187: 2 | Y187: 1 | Z187: 1 | AA187: 2 | AB187: 1 | AC187: 1 | AD187: 2 | AE187: 1 | AF187: 1 | AG187: 0 | AH187: 0
A188: 6.12.1 | B188: Carbon Steel | C188: =ports -> 68 | D188: units | E188: NA | G188: NA | I188: 50 | J188: =IF(I188="contact vendor","--",C188*I188) -> 3400 | K188: =IF(ss_cat="large",25,22) -> 25 | L188: 1 | M188: =$B$186&" - "&B188 -> Sampling Ports - Carbon Steel | N188: 1 | O188: 2 | P188: 2 | Q188: 1 | R188: 2 | S188: 2 | T188: 1 | U188: 2 | V188: 2 | W188: 0 | X188: 1 | Y188: 2 | Z188: 2 | AA188: 1 | AB188: 2 | AC188: 2 | AD188: 1 | AE188: 2 | AF188: 2 | AG188: 1 | AH188: 136
A189: 6.13 | B189: Electrical enclosure | C189: =elec_encl -> 0 | D189: units | E189: NA | G189: NA | I189: =IF(C189=0,"NA",VLOOKUP(0,elec_encl_cost_cl,3)) -> NA | J189: =IF(OR(C189=0,I189="contact vendor"),"--",C189*I189) -> -- | K189: =IF(C189=0,"NA",VLOOKUP(0,elec_encl_cost_cl,IF(ss_cat="large",4,5))) -> NA | M189: =B189 -> Electrical enclosure | N189: 1 | O189: 1 | P189: 1 | Q189: 1 | R189: 1 | S189: 1 | T189: 1 | U189: 1 | V189: 1 | W189: 0 | X189: 1 | Y189: 1 | Z189: 1 | AA189: 1 | AB189: 1 | AC189: 1 | AD189: 1 | AE189: 1 | AF189: 1 | AG189: 0 | AH189: 0
A190: 7. | B190: System Controls | AG190: 0 | AH190: 0
A191: 7.1 | B191: PLC Units | AG191: 0 | AH191: 0
A192: 7.1.1 | B192: PLC racks/power supplies | C192: =IF(manual=1,0,plc_rack) -> 0 | D192: units | E192: NA | G192: NA | I192: =IF(C192=0,"NA",VLOOKUP(0,plc_rack_cost_cl,3)) -> NA | J192: =IF(OR(C192=0,I192="contact vendor"),"--",C192*I192) -> -- | K192: =IF(C192=0,"NA",VLOOKUP(0,plc_rack_cost_cl,IF(ss_cat="large",4,5))) -> NA | M192: =$B$190&" - "&$B$191&" - "&B192 -> System Controls - PLC Units - PLC racks/power supplies | N192: =IF(retrofit=1,$W192*X192,IF(ISBLANK(X192),"",X192)) -> 1 | O192: =IF(retrofit=1,$W192*Y192,IF(ISBLANK(Y192),"",Y192)) -> 1 | P192: =IF(retrofit=1,$W192*Z192,IF(ISBLANK(Z192),"",Z192)) -> 1 | Q192: =IF(retrofit=1,$W192*AA192,IF(ISBLANK(AA192),"",AA192)) -> 1 | R192: =IF(retrofit=1,$W192*AB192,IF(ISBLANK(AB192),"",AB192)) -> 1 | S192: =IF(retrofit=1,$W192*AC192,IF(ISBLANK(AC192),"",AC192)) -> 1 | T192: =IF(retrofit=1,$W192*AD192,IF(ISBLANK(AD192),"",AD192)) -> 1 | U192: =IF(retrofit=1,$W192*AE192,IF(ISBLANK(AE192),"",AE192)) -> 1 | V192: =IF(retrofit=1,$W192*AF192,IF(ISBLANK(AF192),"",AF192)) -> 1 | W192: 0 | X192: 1 | Y192: 1 | Z192: 1 | AA192: 1 | AB192: 1 | AC192: 1 | AD192: 1 | AE192: 1 | AF192: 1 | AG192: 0 | AH192: 0
A193: 7.1.2 | B193: CPUs | C193: =IF(manual=1,0,plc_cpu) -> 0 | D193: units | E193: NA | G193: NA | I193: =IF(C193=0,"NA",VLOOKUP(0,plc_cpu_cost_cl,3)) -> NA | J193: =IF(OR(C193=0,I193="contact vendor"),"--",C193*I193) -> -- | K193: =IF(C193=0,"NA",VLOOKUP(0,plc_cpu_cost_cl,IF(ss_cat="large",4,5))) -> NA | M193: System Controls - PLC Units - CPUs | N193: 1 | O193: 1 | P193: 1 | Q193: 1 | R193: 1 | S193: 1 | T193: 1 | U193: 1 | V193: 1 | W193: 0 | X193: 1 | Y193: 1 | Z193: 1 | AA193: 1 | AB193: 1 | AC193: 1 | AD193: 1 | AE193: 1 | AF193: 1 | AG193: 0 | AH193: 0
A194: 7.1.3 | B194: I/O discrete input modules | C194: =IF(manual=1,0,plc_discrete_input) -> 0 | D194: units | E194: NA | G194: NA | I194: =IF(C194=0,"NA",VLOOKUP(0,plc_discrete_input_cost_cl,3)) -> NA | J194: -- | K194: =IF(C194=0,"NA",VLOOKUP(0,plc_discrete_input_cost_cl,IF(ss_cat="large",4,5))) -> NA | M194: System Controls - PLC Units - I/O discrete input modules | N194: 1 | O194: 1 | P194: 1 | Q194: 1 | R194: 1 | S194: 1 | T194: 1 | U194: 1 | V194: 1 | W194: 0 | X194: 1 | Y194: 1 | Z194: 1 | AA194: 1 | AB194: 1 | AC194: 1 | AD194: 1 | AE194: 1 | AF194: 1 | AG194: 0 | AH194: 0
A195: 7.1.4 | B195: I/O discrete output modules | C195: =IF(manual=1,0,plc_discrete_output) -> 0 | D195: units | E195: NA | G195: NA | I195: =IF(C195=0,"NA",VLOOKUP(0,plc_discrete_output_cost_cl,3)) -> NA | J195: -- | K195: =IF(C195=0,"NA",VLOOKUP(0,plc_discrete_output_cost_cl,IF(ss_cat="large",4,5))) -> NA | M195: System Controls - PLC Units - I/O discrete output modules | N195: 1 | O195: 1 | P195: 1 | Q195: 1 | R195: 1 | S195: 1 | T195: 1 | U195: 1 | V195: 1 | W195: 0 | X195: 1 | Y195: 1 | Z195: 1 | AA195: 1 | AB195: 1 | AC195: 1 | AD195: 1 | AE195: 1 | AF195: 1 | AG195: 0 | AH195: 0
A196: 7.1.5 | B196: I/O combination analog modules | C196: =IF(manual=1,0,plc_combination_analog) -> 0 | D196: units | E196: NA | G196: NA | I196: =IF(C196=0,"NA",VLOOKUP(0,plc_combination_analog_cost_cl,3)) -> NA | J196: -- | K196: =IF(C196=0,"NA",VLOOKUP(0,plc_combination_analog_cost_cl,IF(ss_cat="large",4,5))) -> NA | M196: System Controls - PLC Units - I/O combination analog modules | N196: 1 | O196: 1 | P196: 1 | Q196: 1 | R196: 1 | S196: 1 | T196: 1 | U196: 1 | V196: 1 | W196: 0 | X196: 1 | Y196: 1 | Z196: 1 | AA196: 1 | AB196: 1 | AC196: 1 | AD196: 1 | AE196: 1 | AF196: 1 | AG196: 0 | AH196: 0
A197: 7.1.6 | B197: Ethernet modules | C197: =IF(manual=1,0,plc_ethernet) -> 0 | D197: units | E197: NA | G197: NA | I197: =IF(C197=0,"NA",VLOOKUP(0,plc_ethernet_cost_cl,3)) -> NA | J197: -- | K197: =IF(C197=0,"NA",VLOOKUP(0,plc_ethernet_cost_cl,IF(ss_cat="large",4,5))) -> NA | M197: System Controls - PLC Units - Ethernet modules | N197: 1 | O197: 1 | P197: 1 | Q197: 1 | R197: 1 | S197: 1 | T197: 1 | U197: 1 | V197: 1 | W197: 0 | X197: 1 | Y197: 1 | Z197: 1 | AA197: 1 | AB197: 1 | AC197: 1 | AD197: 1 | AE197: 1 | AF197: 1 | AG197: 0 | AH197: 0
A198: 7.1.7 | B198: Base expansion modules | C198: =IF(manual=1,0,plc_base_expansion) -> 0 | D198: units | E198: NA | G198: NA | I198: =IF(C198=0,"NA",VLOOKUP(0,plc_base_expansion_cost_cl,3)) -> NA | J198: -- | K198: =IF(C198=0,"NA",VLOOKUP(0,plc_base_expansion_cost_cl,IF(ss_cat="large",4,5))) -> NA | M198: System Controls - PLC Units - Base expansion modules | N198: 1 | O198: 1 | P198: 1 | Q198: 1 | R198: 1 | S198: 1 | T198: 1 | U198: 1 | V198: 1 | W198: 0 | X198: 1 | Y198: 1 | Z198: 1 | AA198: 1 | AB198: 1 | AC198: 1 | AD198: 1 | AE198: 1 | AF198: 1 | AG198: 0 | AH198: 0
A199: 7.1.8 | B199: Base expansion controller modules | C199: =IF(manual=1,0,plc_base_expansion_controller) -> 0 | D199: units | E199: NA | G199: NA | I199: =IF(C199=0,"NA",VLOOKUP(0,plc_base_expansion_controller_cost_cl,3)) -> NA | J199: -- | K199: =IF(C199=0,"NA",VLOOKUP(0,plc_base_expansion_controller_cost_cl,IF(ss_cat="large",4,5))) -> NA | M199: System Controls - PLC Units - Base expansion controller modules | N199: 1 | O199: 1 | P199: 1 | Q199: 1 | R199: 1 | S199: 1 | T199: 1 | U199: 1 | V199: 1 | W199: 0 | X199: 1 | Y199: 1 | Z199: 1 | AA199: 1 | AB199: 1 | AC199: 1 | AD199: 1 | AE199: 1 | AF199: 1 | AG199: 0 | AH199: 0
A200: 7.1.9 | B200: UPSs | C200: =IF(manual=1,0,ups) -> 0 | D200: units | E200: NA | G200: NA | I200: =IF(C200=0,"NA",VLOOKUP(0,ups_cost_cl,3)) -> NA | J200: -- | K200: =IF(C200=0,"NA",VLOOKUP(0,ups_cost_cl,IF(ss_cat="large",4,5))) -> NA | M200: System Controls - PLC Units - UPSs | N200: 1 | O200: 1 | P200: 1 | Q200: 1 | R200: 1 | S200: 1 | T200: 1 | U200: 1 | V200: 1 | W200: 0 | X200: 1 | Y200: 1 | Z200: 1 | AA200: 1 | AB200: 1 | AC200: 1 | AD200: 1 | AE200: 1 | AF200: 1 | AG200: 0 | AH200: 0
A201: 7.2 | B201: Operator Equipment | AG201: 0 | AH201: 0
... 210 more rows

Sheet Critical Design Assumptions
A1: Default Critical Design Assumptions
A2: Users may change any of the cells in the Value column; cells in gold are most important and may vary based on contaminant treated and site-specific conditions
A4: Assumption | B4: Range Name | C4: Value | D4: Units | E4: Guidance
A5: Cost estimating method | B5: curve | C5: 1 | D5: <-- enter 1 to use cost equations, leave blank to use lookup tables for component costs | E5: Keeping this assumption with a value of 1 is strongly recommended; the cost equations method is more appropriate for national cost estimating and will be more accurate for nearly all user-specified designs
A6: Minimum average flow as percentage of design | B6: min_avg_flow | C6: 0.1 | E6: The minimum ratio of average flow to design flow. If the ratio falls below this value, it will trigger a warning on the INPUT sheet. If this value is zero, no minimum is enforced.
A8: GAC Contactor Design (both system types)
A9: Number of redundant vessels for small systems with only one vessel | B9: NRD_small_1 | C9: 1 | D9: units | E9: If a design includes only one operating vessel, there should be at least one additional vessel
A10: Number of redundant vessels for small systems with multiple vessels | B10: NRD_small | C10: 0 | D10: units | E10: Small systems can operate at reduced capacity while one vessel is down for backwash, if there are multiple vessels
A11: Carbon expansion during backwash | B11: bed_expansion | C11: 0.5 | E11: Suppliers may provide specific data for individual GAC media
A12: Loading rate minimum | B12: load_min | C12: 0.5 | D12: gpm/square ft | E12: Hydraulic surface loading rate determines headloss and is usually kept between 2 -10 gpm/sf. Higher loading rates OK if hydraulics and tests allow. Typical hydraulic design criteria are a surface loading rate of 2-10 gpm/ft2 (Montgomery, James M. Water Treatment Principles and Design. New York: John Wiley and Sons, 1985. Pp. 553.) Most regulatory agencies will not approve rates in excess of 2 gpm/ft2 without successful pilot-scale testing (American Water Works Association and American Society of Civil Engineers. Water Treatment Plant Design. Third Edition. New York: McGraw Hill, 1998. Pp. 158.).
A13: Loading rate maximum | B13: load_max | C13: 10 | D13: gpm/square ft | E13: Many systems can operate to 0.5 gpm/sf (Richard E. Hubel, Peter Keenan, American Water Works Service Company, Inc.).
A15: Pressure Vessel Design
A16: Add a redundant pressure vessel per x parallel lines | B16: redund_freq | C16: 4 | D16: number of parallel lines per redundant unit | E16: Guidance: redundant unit every 1-5 parallel lines
A17: Maximum vessel height (circular vessels) | B17: max_height | C17: 14 | D17: feet | E17: Systems have used vessels up to 14' diam and height in practice (AWWA Inorganic Contaminants Workshop 2006)
A18: Maximum vessel diameter | B18: max_diam_override | D18: feet | E18: Maximum vessel diameter will be chosen from a table of conventional sizes for commercial vessels, unless entered here. Systems have used vessels up to 14' diam and height in practice (AWWA Inorganic Contaminants Workshop 2006)
A19: Maximum vessel length (longitudinal vessels) | B19: max_length | C19: 53 | D19: feet | E19: Limitation on transportation is 53 feet in length
A20: Pressure vessel freeboard above media at full expansion | B20: free_board | C20: 0.5 | D20: feet
A21: Underdrain space for horizontal vessels | B21: horiz_underdrain | C21: 1.5 | D21: feet | E21: 1.5 feet is a conservative value for a 10' tank. Bob Dvorin, 5/16/05.
A22: Ratio of length to diameter for horizontal vessels for autosize | B22: length_diam_ratio | C22: 2.5 | E22: Used only for autosize procedure
A23: Minimum bed depth (pressure) | B23: min_bed_depth | C23: 2 | D23: feet | E23: Guidance: Typical pressure GAC bed depths are 2 to 8.5 ft
A24: Maximum bed depth (pressure) | B24: max_bed_depth | C24: 8.5 | D24: feet
A25: Target Bed Depth (Pressure Designs < 1MGD) | B25: target_bed_depth_under | C25: 4 | D25: feet | E25: Used only for autosize procedure flow less than 1 MGD
A26: Target Bed Depth (Pressure Vertical Designs > 1 MGD) | B26: target_bed_depth_over | C26: 7 | D26: feet | E26: Used only for autosize procedure
A27: Target Bed Depth (Pressure Horizontal Designs) | B27: target_bed_depth_horiz | C27: 8 | D27: feet | E27: Used only for autosize procedure
A28: Thickness of vessel walls | B28: Vessel_thickness | C28: 0 | D28: feet | E28: Set to zero because vendor designs and quotes are usually expressed in inside diameter. Increase if user desires to input outside diameter.
A30: Gravity Basin Design
A31: Number of redundant contact basins for medium systems | B31: NRD_basins_medium | C31: 1 | D31: units
A32: Number of redundant contact basins for large systems | B32: NRD_basins_large | C32: 2 | D32: units
A33: Basin freeboard above filter media at full expansion | B33: basin_freeboard | C33: 2 | D33: ft
A34: Maximum bed depth (gravity) | B34: max_depth | C34: 10 | D34: ft | E34: Guidance: Typical gravity GAC bed depths are 3-10 feet
A35: Minimum bed depth (gravity) | B35: min_depth | C35: 3 | D35: ft | E35: Guidance: Typical gravity GAC bed depths are 3-10 feet
A36: Maximum basin width | B36: max_width | C36: 30 | D36: ft
A37: Minimum basin width | B37: min_width | C37: 6 | D37: ft
A38: Maximum basin length | B38: max_length_g | C38: 30 | D38: ft
A39: Minimum basin length | B39: min_length_g | C39: 6 | D39: ft
A40: Target Bed Depth (Gravity Designs < 1MGD) | B40: target_bed_depth_under_g | C40: 6 | D40: feet | E40: Used only for autosize procedure
A41: Target Bed Depth (Gravity Designs < 1MGD, UVAOP add-on) | B41: target_bed_depth_under_g_UVAOP | C41: 5.5 | D41: feet | E41: Used only for autosize procedure
A42: Target Bed Depth (Gravity Designs > 1 MGD) | B42: target_bed_depth_over_g | C42: 8 | D42: feet | E42: Used only for autosize procedure
A43: Target Bed Depth (Gravity Designs > 1 MGD, UVAOP add-on) | B43: target_bed_depth_over_g_UVAOP | C43: 5.5 | D43: feet | E43: Used only for autosize procedure
A45: General for all basins
A46: Number of stair risers for basins | B46: risers | C46: 15 | D46: risers | E46: This assumption used only if concrete basins are used
A47: Overexcavation for basins | B47: overexcavate | C47: 4 | D47: ft | E47: 2 feet each side in each dimension. This assumption used only if concrete basins are used.
A48: Concrete thickness for basins | B48: conc_thick | C48: 1 | D48: ft | E48: This assumption used only if concrete basins are used
A50: Pumping
A51: Safety factor for pumps | B51: pump_safety_factor | C51: 0.25
A52: Redundant booster pumps | B52: NRD_pumps | C52: 0 | D52: pump | E52: Multiple pump approach eliminates need for redundant pumps
A53: Redundant backwash pumps | B53: NRD_back_pumps | C53: 1 | D53: pump
A54: Number of redundant chemical metering pumps | B54: NRD_cm_pump | C54: 1 | D54: pumps
A56: Bypass Flow
A57: Percent of Total Flow that is Bypassed | B57: bp_pct | C57: 0 | E57: 0% is default consistent with the type of cost curves that EPA will need for its national cost simulation model
A59: Backwash
A60: Water backwash rate | B60: h2oflush_backwash_rate | C60: 12 | D60: gpm/square ft | E60: Fluidization occurs at 2-4 gpm/sf; 12-15 gpm/sf is needed to "expand" GAC and wash out particulates [Calgon Carbon] (Richard E. Hubel, Peter Keenan, American Water Works Service Company, Inc)
A61: Backwash time | B61: backwash_time | C61: 10 | D61: minutes | E61: Backwash duration is time allowed for backwash of filter. Use highest expected duration. Typically 5-10 minutes. Default is 10 minutes.
A62: Backwash storage volume | B62: back_multiplier | C62: 1 | D62: volume | E62: The number of backwash cycles to provide a storage volume for clean water. Backwash from elevated storage requires minimum 2 backwash volumes (Randal Braker, General Manager, Duck River Utility Commisssion, TN); WBS models use pumps, however.
A63: Default number of backwash basins | B63: back_basins_default | C63: 1 | E63: This assumption applies if concrete basins are used. If tanks are used, number calculated on design sheet.
A64: Backwash basin depth to volume ratio | B64: back_ratio | C64: =3/5 -> 0.6 | E64: This assumption used only if concrete basins are used
A65: Backwash freeboard | B65: back_freeboard | C65: 3 | D65: feet | E65: This assumption used only if concrete basins are used
A67: GAC Regeneration and Transfer
A68: GAC bulk density | B68: GAC_density | C68: 30 | D68: lbs/cubic ft | E68: Bulk density, not particle density. GAC density range of 22-30 lb/cubic ft; lignite GAC approximately 22 and bituminous GAC approximately 28 lb/cubic ft (Randal J. Braker, General Manager, Duck River Utility Commission)
A69: Regeneration runtime (on-site only) | B69: regen_runtime | C69: 0.85 | E69: Percent of time that regeneration facility operates. Less than full time (100%) to allow for routine maintenance.
A70: Regeneration redundancy (on-site only) | B70: regen_redund | C70: 1 | E70: 100% means no redundancy (i.e., no additional capacity beyond that needed to account for runtime). Use a value greater than 100% to add capacity and provide redundancy.
A71: Makeup carbon for on-site regeneration | B71: makeup_rate | C71: 0.1 | E71: Makeup carbon 10% for on-site regeneration (Richard E. Hubel, Peter Keenan, American Water Works Service Company).
A72: Makeup carbon for off-site regeneration | B72: makeup_rate_off | C72: 0.3 | E72: Makeup carbon needs are higher for transport and regeneration off-site -- 30% (Richard E. Hubel, Peter Keenan, American Water Works Service Company).
A73: Time to empty GAC bed | B73: transfer_time | C73: 4 | D73: hrs | E73: Target for systems using mechanical transfer. For systems with manual transfer, calcuated based on media volume.
A74: Time to empty holding tank/basin soilds | B74: htransfer_time | C74: 4 | D74: hrs | E74: Target for systems using mechanical transfer. For systems with manual transfer, calcuated based on media volume.
A75: Number of redundant eductors | B75: NRD_eductors | C75: 1 | D75: eductors
A76: Virgin GAC storage (on-site only) | B76: virgin_storage_bv | C76: 1.33 | D76: bed volumes | E76: 1.33 BV from operational experience (Arnett Verna, Engineer, Greater Cincinnati Water Works).
A77: Spent GAC storage (on-site only) | B77: spent_storage_bv | C77: 1.33 | D77: bed volumes | E77: 1.33 BV from operational experience (Arnett Verna, Engineer, Greater Cincinnati Water Works).
A78: Regenerated GAC storage (on-site only) | B78: regen_storage_bv | C78: 1.33 | D78: bed volumes | E78: 1.33 BV from operational experience (Arnett Verna, Engineer, Greater Cincinnati Water Works).
A79: Number of storage basins for each of the above | B79: storage_basins | C79: 1 | D79: units | E79: Default: one each for virgin, spent, and regenerated GAC. This assumption applies if concrete basins are used. If steel tanks are used, number calculated on regeneration sheet.
A80: Storage basin depth to volume ratio | B80: storage_ratio | C80: =3/5 -> 0.6 | E80: This assumption used only if concrete basins are used
A81: Storage basin freeboard | B81: storage_freeboard | C81: 3 | D81: feet | E81: This assumption used only if concrete basins are used
A83: Valves and Instrumentation
A84: See the Valve Table at the bottom of this page for additional assumptions relating to valves
A85: Number of manual valves on influent and treated water line | B85: in_man | C85: 2 | D85: valves
A86: Number of manual valves on influent and treated water line in add-on scenario | B86: in_man_addon | C86: 0 | D86: valves
A87: Number of manual valves on process line per vessel | B87: proc_man_vessel | C87: 1 | D87: valve/contactor | E87: For filter to waste in pressure systems
A88: Number of check valves on backwash line if no backwash pumps | B88: back_chv_no_back | C88: 1 | D88: valves
A89: Number of check valves on backwash line per backwash pump | B89: back_chv_pump | C89: 1 | D89: valves/pump
A90: Number of check valves on influent line | B90: in_chv | C90: 1 | D90: valves
A91: Number of check valves on influent line in add-on scenario | B91: in_chv_addon | C91: 0 | D91: valves
A92: Number of check valves on bypass line | B92: tot_bp_chv | C92: 1 | D92: valves
A93: Number of check valves on polymer line per metering pump | B93: polymer_chv_pump | C93: 1 | D93: valves/pump | E93: Applies only with polymer addition to residuals
A95: Flow meters for influent and treated water line | B95: fm_in | C95: 1 | D95: units
A96: Flow meters for influent and treated water line in add-on scenario | B96: fm_in_addon | C96: 0 | D96: units
A97: Flow meters for process line per vessel | B97: fm_proc | C97: 0 | D97: units/contactor | E97: No proces flow meters in P&ID for this technology
A98: Flow meters for backwash line | B98: tot_fm_back | C98: 1 | D98: units | E98: At backwash discharge outlet
A99: Level switch/alarms per pressure vessel | B99: level_switch | C99: 0 | D99: units/vessel
A100: For small systems | B100: level_switch_small | C100: 0 | D100: units/vessel
A101: Level switch/alarms per GAC basin | B101: level_switch_g | C101: 1 | D101: units/basin
A102: For small systems | B102: level_switch_small_g | C102: 0 | D102: units/basin
A103: High/Low alarms per backwash tank | B103: alarm_back | C103: 1 | D103: units/tank
A104: pH meters per gravity contactor | B104: pH_controls_g | C104: 1 | D104: units/basin
A105: For small systems | B105: pH_controls_small_g | C105: 0 | D105: units/basin
A106: Additional pH meters (pressure systems) | B106: add_pH_controls | C106: 2 | D106: units | E106: One for influent line, one for treated water line
A107: For small systems | B107: add_pH_controls_small | C107: 0 | D107: units
A108: Temperature meters | B108: temp_meters | C108: 2 | D108: units | E108: One for influent line, one for treated water line
A109: For small systems | B109: temp_meters_small | C109: 0 | D109: units
A110: Turbitity meters per pressure vessel | B110: turb_tank | C110: 0 | D110: units/vessel
A111: Turbitity meters per gravity contactor | B111: turb_tank_g | C111: 1 | D111: units/basin
A112: Additional turbitidy meters | B112: add_turb | C112: 2 | D112: units | E112: One for treated water line, one on residual side of backwash line
A113: For small systems | B113: add_turb_small | C113: 0 | D113: units
A114: Additional turbitidy meters (pressure systems) | B114: add_turb_p | C114: 1 | D114: units | E114: Pressure systems also include one on influent line
A115: For small systems | B115: add_turb_small_p | C115: 0 | D115: units
A116: Head loss sensors per contactor | B116: head_tank | C116: 1 | D116: units/contactor
A117: For small systems | B117: head_tank_small | C117: 0 | D117: units/contactor
A118: Sampling ports per contactor | B118: ports_tank | C118: 1 | D118: units/contactor
A119: Sampling ports for blended treated water | B119: ports_bp | C119: 1 | D119: units | E119: Not used if system chooses not to bypass
A120: Additional sampling ports | B120: add_ports | C120: 3 | D120: units | E120: One for influent line, one for treated water line, one on residual side of backwash line
A121: Number of electrical enclosures | B121: elec_encl | C121: 0 | D121: units | E121: Required only for technologies with significant electric-powered equipment outside a building
A123: System Controls
A124: See the I/O Port Table at the bottom of this page for additional assumptions relating to system controls
A125: Controllers are used only under full automation
A126: To change the degree of automation, change the number of controllers to zero for the appropriate items.
A127: Drive controllers per booster pump | B127: S_booster_pump | C127: 1
A128: Drive controllers per backwash pump | B128: S_back_pump | C128: 1
A129: Drive controllers per eductor | B129: S_eductor | C129: 1
A130: Drive controllers per slurry pump system | B130: S_slurry | C130: 1
A132: Number of CPUs | B132: plc_cpu_standalone | C132: 2 | D132: units | E132: One CPU is needed to run the local and expansion bases and modules (max 8192 I/O); using two to provide redundancy
A133: Number of CPUs in add-on scenario | B133: plc_cpu_addon | C133: 0 | D133: units
A134: Ethernet modules | B134: plc_ethernet_standalone | C134: 2 | D134: units | E134: One ethernet module is needed; using two to provide redundancy
A135: Ethernet modules in add-on scenario | B135: plc_ethernet_addon | C135: 0 | D135: units
A136: Operator interfaces | B136: plc_interface_standalone | C136: 2 | D136: units | E136: Two to provide redundancy in the event of SCADA node failure
A137: Operator interfaces in add-on scenario | B137: plc_interface_addon | C137: 0 | D137: units
A138: UPSs | B138: ups_standalone | C138: 1 | D138: unit | E138: UPS protects the PLC system from undesired outages and surges that can adversely affect the performance of the PLC unit
A139: UPSs in add-on scenario | B139: ups_addon | C139: 0 | D139: unit
A140: Computer workstations per x operators | B140: workstation_ratio | C140: 1 | D140: operator/workstation | E140: Minimum will always be one, but larger systems will have multiple workstations to control the system
A141: Number of shifts | B141: shifts_day | C141: 3 | D141: shifts/day | E141: Used to determine number of workstations
A142: Printers per x computer workstations | B142: printer_ratio | C142: 4 | D142: workstations/printer | E142: Minimum will always be one, but larger systems will have multiple printers
A144: Structure/Floorplan
A145: Maximum access space per vessel or tank for custom designed systems | B145: max_space_vessels_cust | C145: 6 | D145: feet | E145: This is the MAXIMUM; space between vessels and tanks defaults to vessel or tank diameter, up to this maximum. Maximum provides space for sandblasting and painting for large vessels (5-8 feet per Richard E. Hubel, Peter Keenan, American Water Works Service Company).
A146: Maximum access space per vessel or tank for pre-engineered systems | B146: max_space_vessels_pre | C146: 1 | D146: feet | E146: Pre-engineered packages are skid-mounted with minimal access space
A147: Access space per pump for custom designed systems | B147: space_pumps_cust | C147: 4 | D147: feet | E147: Provide a minimum of 3 ft (1 m) of clear space around each item of equipment (American Water Works Association and American Society of Civil Engineers. Water Treatment Plant Design. Third Edition. New York: McGraw Hill, 1998. Pp. 695).
A148: Access space per pump for pre-engineered packages | B148: space_pumps_pre | C148: 0 | D148: feet | E148: Pumps on skid for pre-engineered packages, no additional access space
A149: Non fire Buffer for buildings | B149: non_fire_buffer | C149: 10 | D149: feet
A150: Fire Buffer for Buildings | B150: fire_buffer | C150: 40 | D150: feet
A151: Top and bottom dished vessel sections height and access space | B151: Top_bottom_Vessel_space | C151: 6 | D151: feet | E151: This is used to determine the building height for purposes of heating and cooling cost
A152: Building height (gravity systems) | B152: Building_height_g | C152: 20 | D152: feet
A153: Office space per employee | B153: space_office | C153: 100 | D153: square ft
A154: Office space per employee for small systems | B154: space_office_small | C154: 0 | D154: square ft | E154: Small systems do not require office space
A155: Concrete pad thickness | B155: pad_thick | C155: =6/12 -> 0.5 | D155: feet
A156: Concrete pad thickness for small systems | B156: pad_thick_small | C156: =4/12 -> 0.3333333333 | D156: feet
A157: Additional building after… | B157: add_2nd_building | C157: 10000 | D157: sf
A159: Residuals Discharge
A160: Add coagulant to holding tank? | B160: coag_res | C160: 0 | D160: <-- 1 for yes, 0 for no | E160: For additional TSS removal, if desired
A161: Type of coagulant added | B161: coag_type | C161: 1 | D161: <-- 1 for polymer, 2 for ferric chloride, 3 for both polymer & ferric chloride
A162: Minimum settling time when coagulant is used | B162: res_coag_settle_time | C162: 90 | D162: minutes | E162: When coagulant is used, holding tanks will be sized so that residuals are present for at least this long. Based on 90-120 minute settling time in sedimentation basins (Water Treatment Plant Design, 4th ed.)
A163: Polymer dosage | B163: polymer_dose | C163: 100 | D163: mg/L
A164: Polymer solution density | B164: polymer_density | C164: 9.6 | D164: lb/gal
A165: Polymer sludge production factor | B165: polymer_spf | C165: 1 | D165: lbs accumulated per pound added
A166: Chemical tank mixer horsepower | B166: cmix_hp_per | C166: 0.25 | D166: hp per 1000 gal
A167: Ferric chloride dosage | B167: coag_dose | C167: 10 | D167: lb/gal
A168: Ferric chloride bulk density | B168: coag_density | C168: 43 | D168: lb/ft3
A169: Ferric chloride sludge production factor | B169: coag_spf | C169: 0.99 | D169: lbs accumulated per pound added
A170: Days of coagulant storage | B170: cstore_days | C170: 30 | D170: days
A171: Chemical storage height | B171: storage_height | C171: 10 | D171: ft
A172: Residual solids storage height (for drying pad) | B172: solids_storage_height | C172: 2 | D172: ft
A173: Holding tank/basin solids density | B173: ht_solids_density | C173: 25 | D173: lb/ft3
A174: Holding tank/basin suspended solids removal efficiency without coagulant | B174: htank_TSSrem | C174: 0.25
A175: Holding tank/basin suspended solids removal efficiency with coagulant | B175: coag_TSSrem | C175: 0.5
A176: Clean holding tanks/basins when solids accumulation =x% of capacity | B176: htank_clean_pct | C176: 0.1
A177: Holding tank/basin capacity safety factor | B177: res_cap_factor | C177: 2 | E177: Holding tanks are designed with a capacity of one generation event, multiplied by this safety factor. This multiplier accounts for less than perfect staggering of generation events and provides for solids accumulation (i.e., it provides excess capacity).
A178: Default number of residuals basins | B178: hbasins_default | C178: 1 | E178: This assumption applies if concrete basins are used. Additonal basins are used, however, if needed to achieve minimum holding time. If tanks are used, number calculated on design sheet.
A179: Holding basin depth to volume ratio | B179: holding_ratio | C179: =3/5 -> 0.6 | E179: This assumption used only if concrete basins are used
A180: Holding basin freeboard | B180: holding_freeboard | C180: 3 | D180: feet | E180: This assumption used only if concrete basins are used
A181: Holding tank/basin mixer horsepower (if coagulant is used) | B181: hmix_hp_per | C181: 0.25 | D181: hp per 1,000 gallons
A182: Holding tank/basin solids transfer method | B182: res_transfer_method | C182: 3 | D182: <-- 1 for slurry pumps, 2 for eductors, 3 for manual trabsfer
A183: Redundant residuals pumps | B183: NRD_res_pump | C183: 1 | D183: units | E183: Applies only if pumping is included
A184: Minimum residuals pipe diameter | B184: min_res_pipe_size | C184: 1 | D184: in. diam.
A185: Distance to discharge or recycle point | B185: add_res_pipe_length | C185: 40 | D185: ft
A186: Distance to discharge point for TCE and PCE | B186: add_res_pipe_length_TCE | C186: 40 | D186: ft | E186: Because these contaminants are present primarily in urban areas, assume sewer connection available at property line
A187: Number of check valves on residuals line per residuals pump | B187: res_chv_pump | C187: 1 | D187: valves/pump
A188: Number of check valves on residuals line if no pumping | B188: res_chv_no_pump | C188: 1 | D188: valves
A189: Drive controllers per residuals pump | B189: S_res_pump | C189: 1
A190: Drive controllers per coagulant feeder | B190: S_feeder | C190: 1
A191: Drive controllers per coagulant mixer | B191: S_mixer | C191: 1
A192: Flow meters for residuals line | B192: tot_fm_res | C192: 1 | D192: units
A193: High/Low alarms per holding tank/basin | B193: alarm_res | C193: 1 | D193: units/tank
A194: TSS in system influent | B194: influent_TSS | C194: 2 | D194: ppm | E194: This is INFLUENT TSS. Backwash TSS is calculated and will be higher, as TSS removed are concentrated.
A195: TSS in treated water | B195: effluent_TSS | C195: 0.5 | D195: ppm
A196: POTW rate structure | B196: POTW_rate_type | C196: 1 | D196: <-- for national average rate, 2 for a specific rate structure
A197: Apply POTW discharge base charge (i.e., $/month) | B197: POTW_base_fee | C197: 1 | D197: <-- 1 for yes, 2 for no
A198: Apply POTW discharge volume charge (i.e., $/1000 gallons) | B198: POTW_volume_fee | C198: 1 | D198: <-- 1 for yes, 2 for no
A199: Apply POTW discharge TSS charge (i.e., $/lb of TSS over limit below) | B199: POTW_TSS_fee | C199: 1 | D199: <-- 1 for yes, 2 for no
A200: POTW TSS discharge limit (over which fee would be imposed) | B200: POTW_TSS_limit | C200: 250 | D200: ppm | E200: Most common limit for cities with a limit
A201: Disposal method for non-hazardous secondary solids | B201: solids_method | C201: 1 | D201: <-- 1 for landfill, 2 for land application | E201: Ignored if solids are hazardous or radioactive
A202: Maximum hazardous waste shipment size | B202: max_haz_ship | C202: 18 | D202: tons
A203: Maximum radioactive (non-hazardous) waste shipment size | B203: max_rad_ship | C203: 18 | D203: tons
A204: Maximum radioactive hazardous waste shipment size | B204: max_hazrad_ship | C204: 18 | D204: tons
A205: Miles to non-hazardous solid waste disposal site | B205: non_haz_miles | C205: 10 | D205: miles
A206: Miles to hazardous solid waste disposal site | B206: haz_miles | C206: 200 | D206: miles
A207: Miles to radioactive (non-hazardous) waste disposal site | B207: rad_miles | C207: 700 | D207: miles
A208: Miles to radioactive hazardous waste disposal site | B208: hazrad_miles | C208: 700 | D208: miles
A210: Minimum septic tank discharge time | B210: min_sept_disch_time | C210: 2 | D210: days | E210: Typical of state/local regulations
A211: Minimum septic tank volume | B211: min_sept_tank_vol | C211: 1000 | D211: gal | E211: State/local regulations dictate a minimum of 750 to 1000 gallons; 1000 is the minimum size for which costs are available
A212: Septic tank volume safety factor | B212: sept_tank_sf | C212: 1.5 | E212: Allow for tank freeboard & effluent other than residuals
A213: Long term acceptance rate | B213: sept_LTAR | C213: 0.5 | D213: gpd/sq ft | E213: Used by states/localities to dermine the minimum trench infiltration area; varies based on soil type
A214: Septic drain field trench width | B214: sept_trench_w | C214: 4 | D214: feet | E214: State/local regulations require 2 to 4 feet; RS Means costs based on 4' trenches
A215: Septic drain field trench depth | B215: sept_trench_d | C215: 4 | D215: feet | E215: State/local regulations require 2 to 4 feet; RS Means costs based on 4' trenches
A216: Septic drain field trench gravel depth below distribution pipe | B216: sept_gravel_d_below | C216: 1 | D216: feet | E216: Typical designs are 8 to 24 inches; 12 inches common
... 64 more rows

Sheet O&M Assumptions
A1: Default O&M Assumptions
A2: Users may change any of the cells in the Value column
A4: Assumption | B4: Range Name | C4: Value | D4: Units | E4: Guidance
A5: Materials
A6: Cost for parts & maintenance for pumps | B6: booster_pump_maintenance | C6: 0.01 | E6: For calculating cost of actual maintenance materials; not to be confused with depreciation; 5% would be too high (Richard E. Hubel, Peter Keenan, American Water Works Service Company, Inc)
A7: Annual contactor materials cost as a percent of capital | B7: Materials_pct | C7: 0.01 | E7: To account for vessel relining, as GAC can be corrosive
A9: Labor
A10: Mangerial LOE as a percent of average technical labor | B10: Manager_percent | C10: 0.1 | D10: fraction
A11: Clerical LOE as a percent of average technical labor | B11: Clerical_percent | C11: 0.1 | D11: fraction
A12: Labor hours per week for contact basins | B12: Weekly_labor | C12: 1 | D12: hr/week/basin or tank
A14: Operating LOE assumptions
A15: Minutes per instrument per day | B15: uloe_inst | C15: 5 | D15: min/day | E15: For manual systems only
A16: Recording operating paramenters for automated systems | B16: uloe_inst_auto | C16: 5 | D16: min/day | E16: For semiautomated and automated systems
A17: Minutes per pump per day | B17: uloe_pump | C17: 5 | D17: min/day | E17: For manual and semiautomated systems
A18: Minutes per valve per week | B18: uloe_valve | C18: 5 | D18: min/week | E18: For manual and semiautomated systems
A19: Minutes per 100 sf per week | B19: uloe_fp | C19: 1 | D19: min/100 sf/day
A20: Minutes per backwash for automated systems | B20: uloe_autoback | C20: 1 | D20: min/event | E20: Manual and semiautomated systems use 2x actual backwash time
A21: Hours per media changeout | B21: uloe_throwaway | C21: =8/(20*27) -> 0.01481481481 | D21: hours/cubic foot | E21: For systems using manual media transfer. Based on 20 cubic yards per day, applied separately to removal and replacement.
A23: Maintenance LOE assumptions
A24: For instruments (includes calibration) | B24: uloe_inst_maint | C24: 10 | D24: min/month
A25: For pumps | B25: uloe_pump_maint | C25: 30.25 | D25: hours/year | E25: Based on vendor recommended maintenance activities; applied to large, frequently operated pumps only
A26: For valves | B26: uloe_valve_maint | C26: 5 | D26: min/year | E26: Applied to main process valves only
A27: For chemical supply systems | B27: uloe_chem_maint | C27: 60 | D27: min/month
A29: Energy
A30: Pump head for booster pumps | B30: pump_head | C30: 44 | D30: feet
A31: Backwash pump head | B31: back_pump_head | C31: 33 | D31: feet
A32: Residuals pump head | B32: res_pump_psi | C32: 25 | D32: psi
A33: Pump efficiency | B33: pump_efficiency | C33: 0.75
A35: Lighting power per sf, low-quality buildings and sheds | B35: lighting_power_low | C35: 1 | D35: W/sf | E35: 1, 2, and 4 W/sf are the assumptions used for building capital costs
A36: Lighting power per sf, mid-quality buildings | B36: lighting_power_mid | C36: 2 | D36: W/sf
A37: Lighting power per sf, high-quality buildings | B37: lighting_power_high | C37: 4 | D37: W/sf
A39: Ventilation air change rate for contactor | B39: Air_changes_contactor | C39: 3 | D39: air changes/hr
A40: Ventilation air change rate for pump room | B40: Air_changes_pump | C40: 20 | D40: air changes/hr | E40: Could be lower (annual average 3 changes/hr) in a northern climate
A41: Ventilation air change rate for chemical storage | B41: Air_changes_chem_storage | C41: 2 | D41: air changes/hr
A42: Ventilation air change rate for offices | B42: Air_changes_office | C42: 2 | D42: air changes/hr
A43: Pressure drop across the fan | B43: Fan_pressure_drop | C43: 0.25 | D43: lbs/ft2
A44: Number of mechanical ventilation days per year first building (small system) | B44: fan_days_build1_small | C44: 90 | D44: days/year | E44: Number of days per year where natural ventilation is applicable cannot be greater than 365 days
A45: Number of mechanical ventilation days per year 2nd building (small system) | B45: fan_days_build2_small | C45: 90 | D45: days/year | E45: For small systems (<1 MGD)
A46: Number of mechanical ventilation days per year first building (medium system) | B46: fan_days_build1_medium | C46: 120 | D46: days/year | E46: For medium systems (1 - 10 MGD)
A47: Number of mechanical ventilation days per year 2nd building (medium system) | B47: fan_days_build2_medium | C47: 120 | D47: days/year
A48: Number of mechanical ventilation days per year first building (large system) | B48: fan_days_build1_large | C48: 185 | D48: days/year | E48: For large systems (> 10 MGD)
A49: Number of mechanical ventilation days per year 2nd building (large system) | B49: fan_days_build2_large | C49: 185 | D49: days/year
A51: R-value for walls | B51: R_wall | C51: 13 | D51: hr-sf-degF/BTU | E51: Assumes standard building materials. If higher R-value materials are desired, user may also need to adjust the cost of building materials.
A52: R-value for ceilings | B52: R_ceiling | C52: 38 | D52: hr-sf-degF/BTU | E52: Assumes standard building materials. If higher R-value materials are desired, user may also need to adjust the cost of building materials.
A53: Annual heating degree days | B53: heat_DD | C53: 4923 | D53: degree days | E53: Heating and cooling assumptions should be consistent with one another. Assumed values are for a climate that results in a total energy usage for heating and cooling equal to the national median.
A54: Annual cooling degree days | B54: cool_DD | C54: 1697 | D54: degree days | E54: Heating and cooling assumptions should be consistent with one another. Assumed values are for a climate that results in a total energy usage for heating and cooling equal to the national median.
A55: Heating ventilation/infiltration load | B55: heat_viload | C55: 168679 | D55: BTU/cfm | E55: Heating and cooling assumptions should be consistent with one another. Assumed values are for a climate that results in a total energy usage for heating and cooling equal to the national median.
A56: Cooling ventilation/infiltration load | B56: cool_viload | C56: 51771 | D56: BTU/cfm | E56: Heating and cooling assumptions should be consistent with one another. Assumed values are for a climate that results in a total energy usage for heating and cooling equal to the national median.
A57: Electric resistance heating efficiency | B57: resist_eff | C57: 0.98 | E57: See Appendix E
A58: Heat pump heating coefficient of performance | B58: COP | C58: 3.2 | E58: See Appendix E
A59: Natural gas non-condensing furnace efficiency | B59: gas_non_eff | C59: 0.8 | E59: See Appendix E
A60: Natural gas condensing furnace efficiency | B60: gas_eff | C60: 0.95 | E60: See Appendix E
A61: Standard oil furnace efficiency | B61: diesel_non_eff | C61: 0.78 | E61: See Appendix E
A62: Mid-efficiency oil furnace efficiency | B62: diesel_eff | C62: 0.85 | E62: See Appendix E
A63: Air conditioning EER | B63: EER | C63: 11 | D63: Whr/BTU | E63: See Appendix E
A64: Heat pump cooling mode EER | B64: hp_EER | C64: 10.1 | D64: Whr/BTU | E64: See Appendix E
A66: Heating Oil Heat Content | B66: diesel_heat_content | C66: 139000 | D66: BTU/gal | E66: U.S. DOE, Energy Information Administration

Sheet Indirect Assumptions
A1: Default Assumptions for Indirect and Add-On Costs
A2: Users may change any of the cells in the Value column
A4: Assumption | B4: Range Name | C4: Value | D4: Units | E4: Guidance
A5: Permits
A6: Include permit costs? | B6: include_permits | C6: 1 | D6: <--- enter 1 for yes, 0 for no
A7: Always include NEPA compliance costs? | B7: include_NEPA | C7: 0 | D7: <--- enter 1 for yes, 2 for no | E7: Default of 0 means NEPA compliance is included in the high component cost estimate only. Selecting 1 means NEPA compliance will be included in all estimates. Selecting 0 means NEPA compliance will never be included.
A9: Pilot Study
A10: Include pilot study costs? | B10: include_pilot | C10: 1 | D10: <--- enter 1 for yes, 0 for no
A11: Include pilot study costs in add-on scenario? | B11: include_pilot_addon | C11: 1 | D11: <--- enter 1 for yes, 0 for no
A13: Land
A14: Include land costs? | B14: include_land | C14: 1 | D14: <--- enter 1 for yes, 0 for no
A16: Mobilization and Demobilization
A17: Mobilization percentage for pre-engineered packages | B17: mob_pct_pre | C17: 0 | D17: of direct capital cost | E17: Typically 2-5% of the estimated construction cost. Enter 0% to exclude.
A18: Mobilization percentage for small systems | B18: mob_pct_small | C18: 0.05 | D18: of direct capital cost
A19: Mobilization percentage for medium systems | B19: mob_pct_medium | C19: 0.04 | D19: of direct capital cost
A20: Mobilization percentage for large systems | B20: mob_pct_large | C20: 0.02 | D20: of direct capital cost
A22: Architectural Fees for Treatment Building
A23: Include architectural fee? | B23: include_arch | C23: 1 | D23: <--- enter 1 for yes, 0 for no | E23: Must be added to building cost. Change for special considerations. Includes structural, mechanical, and electrical engineering for building only.
A24: Include architectural fee for small systems? | B24: include_arch_small | C24: 0 | D24: <--- enter 1 for yes, 0 for no
A26: Installation, Transportatation, and O&P
A27: Installation, Transportatation, and O&P percentage | B27: inst_pct | C27: 0 | D27: of direct capital cost | E27: Included in line item unit costs. Add a percentage for special considerations such as a remote site or high cost location.
A29: Sitework
A30: Include sitework costs? | B30: include_sitework | C30: 1 | D30: <--- enter 1 for yes, 0 for no
A32: Yard Piping
A33: Include yard piping costs? | B33: include_yardpipe | C33: 1 | D33: <--- enter 1 for yes, 0 for no
A34: Frost depth | B34: frost | C34: 38 | D34: inches | E34: Should be consistent with (reflect same climate as) heating and cooling assumptions on O&M assumptions page
A35: Minimum trench depth to top of pipe | B35: min_trench_depth | C35: 36 | D35: inches | E35: US Army Corps of Engineers recommended minimum cover for distribution pipes of 2.5 ft in grassed areas, 3 ft if buried under pavement or roadways but not less than frost penetration depth (USACOE 1984)
A36: Soil density | B36: soil_dens | C36: 97 | D36: lb/cubic ft. | E36: Based on soil density of loamy sand (1.55 gm/cc)
A37: Coefficient of passive pressure | B37: Coeff_Kp | C37: 3
A38: Reduction factor | B38: Reduction | C38: 0.467
A39: Bedding depth below pipe | B39: bedding_depth | C39: 6 | D39: inches
A40: Bedding depth surrounding the pipe | B40: bedding_pct | C40: 0.25 | D40: of pipe diameter
A41: Trench inside angle | B41: trench_angle | C41: =RADIANS(45) -> 0.7853981634 | D41: radians
A42: Pipe length from water source to the boundary of the 10 foot buffer | B42: yard_in | C42: 0 | D42: feet | E42: Use if technology is first step in treatment process
A43: Pipe length the boundary of the 10 foot buffer to distribution network | B43: yard_out | C43: 0 | D43: feet | E43: Use if technology is last step in treatment process
A45: Geotechnical
A46: Include geotechnical costs for low cost pressure systems? | B46: include_geo_low | C46: 0 | D46: <--- enter 1 for yes, 0 for no | E46: Note: geotechnical is always included with the septic system option, regardless of the numbers entered here
A47: Include geotechnical costs for medium cost pressure systems? | B47: include_geo_medium | C47: 0 | D47: <--- enter 1 for yes, 0 for no
A48: Include geotechnical costs for high cost pressure systems? | B48: include_geo_high | C48: 1 | D48: <--- enter 1 for yes, 0 for no
A49: Include geotechnical costs for low cost gravity systems? | B49: include_geo_low_g | C49: 1 | D49: <--- enter 1 for yes, 0 for no | E49: Geotechnical is always included for gravity systems, because of basin excavation
A50: Include geotechnical costs for medium cost gravity systems? | B50: include_geo_medium_g | C50: 1 | D50: <--- enter 1 for yes, 0 for no
A51: Include geotechnical costs for high cost gravity systems? | B51: include_geo_high_g | C51: 1 | D51: <--- enter 1 for yes, 0 for no
A52: Test pit length | B52: pit_length | C52: 4 | D52: feet
A53: Test pit width | B53: pit_width | C53: 4 | D53: feet
A54: Test pit depth | B54: pit_depth | C54: 7 | D54: feet
A55: Borehole depth (pressure systems) | B55: bore_depth_p | C55: 10 | D55: feet
A56: Borehole depth for shallow basins | B56: bore_depth_min | C56: 25 | D56: feet
A57: Borehole depth for deep basins | B57: bore_depth_max | C57: 50 | D57: feet
A58: Basin excavation depth above which deeper boreholes are needed | B58: deep_bore_need | C58: 20 | D58: feet | E58: Large gravity systems with deep basins require deeper investigation
A59: Technology footprint above which boreholes are needed | B59: bore_need | C59: 2000 | D59: square feet | E59: Small pressure system geotechnical investigation can be completed with test pits, larger systems and all gravity systems require boreholes
A60: Minimum number of boreholes | B60: min_holes | C60: 4
A61: Borehole needed every x square feet | B61: hole_per_sf | C61: 1000 | D61: square feet
A62: Boreholes per job | B62: hole_per_job | C62: 24 | D62: boreholes/job
A63: Linear feet bored per day | B63: hole_per_day | C63: 55.5 | D63: l.f./day | E63: RS Means Costworks 2001
A65: Standby Power
A66: Include standby power costs? | B66: include_standby | C66: 1 | D66: <--- enter 1 for yes, 0 for no
A67: Include standby power costs for small systems? | B67: include_standby_small | C67: 0 | D67: <--- enter 1 for yes, 0 for no
A68: Design safety factor for standby power | B68: std_safety_factor | C68: 0 | E68: Default 0%. Apply a percentage to increase standby power requirements.
A69: Include heating in standby power | B69: need_heat | C69: 0 | D69: <--- enter 1 for yes, 0 for no | E69: If a system uses gas or diesel heat, heating will not be included in standby power, regardless of this assumption.
A70: Include cooling in standby power | B70: need_cool | C70: 0 | D70: <--- enter 1 for yes, 0 for no | E70: If both heating and cooling are included, standby power requirements will be based on the maximum of the two.
A71: Minimum standby power generator size | B71: min_standby | C71: 1.5 | D71: kW
A73: Electrical (including yard wiring)
A74: Electrical percentage | B74: elect_pct | C74: 0.1 | D74: of direct cost
A76: Instrumentation and Control
A77: Instrumentation and control percentage | B77: i_c_pct | C77: 0 | D77: of direct cost | E77: Included as a direct cost line item
A79: Contingency
A80: Include contingency costs for low cost systems? | B80: include_conting_low | C80: 0 | D80: <--- enter 1 for yes, 0 for no
A81: Include contingency costs for medium cost systems? | B81: include_conting_medium | C81: 0 | D81: <--- enter 1 for yes, 0 for no
A82: Include contingency costs for high cost systems? | B82: include_conting_high | C82: 1 | D82: <--- enter 1 for yes, 0 for no
A83: Technology complexity factor | B83: complexity | C83: 1 | E83: Technology-specific factor. See Appendices for details. Low complexity = 0.5; Average complexity = 1.0; High complexity = 1.5; Very high complexity = 2.0.
A85: Process Engineering
A86: Engineering percentage for small systems | B86: eng_pct_small | C86: 0.2 | D86: of direct capital cost | E86: Enter 0% to exclude
A87: Engineering percentage for medium systems | B87: eng_pct_medium | C87: 0.12 | D87: of direct capital cost
A88: Engineering percentage for large systems | B88: eng_pct_large | C88: 0.08 | D88: of direct capital cost
A90: Miscellaneous Allowance
A91: Miscellaneous allowance percentage | B91: misc_pct | C91: 0.1 | D91: of direct capital cost | E91: Enter 0% to exclude
A93: Legal, Fiscal, and Administrative
A94: Legal percentage | B94: legal_pct | C94: 0.02 | D94: of direct capital cost | E94: Enter 0% to exclude. Highly site-specific. Can range from 2-5% of equipment, installation, construction, electrical, and standby power.
A96: Sales Tax
A97: Sales tax percentage | B97: tax_pct | C97: 0 | D97: of direct capital cost | E97: May be exempt if constructed with public funds. May be as high as 7.25% of equipment and construction, with national average 4.75%.
A99: Financing during Construction
A100: Financing percentage | B100: finance_pct | C100: 0.05 | D100: of direct capital cost | E100: Enter 0% to exclude. Typically assumed to be one year's interest on capital cost.
A101: Financing percentage for small systems | B101: finance_pct_small | C101: 0 | D101: of direct capital cost | E101: Small system construction assumed to take less than one year
A103: Construction Management and General Contractor Overhead
A104: Builder's risk insurance percentage | B104: br_ins_pct | C104: 0.0034 | E104: Enter 0% to exclude. 0.34% is national average rate. RSMeans Building Construction Cost Data 2009, reference section R01100-070
A105: Include performance bond cost? | B105: include_bond | C105: 1 | D105: <--- enter 1 for yes, 0 for no
A106: Include construction management cost? | B106: include_cm | C106: 1 | D106: <--- enter 1 for yes, 0 for no
A107: Include construction management cost for pre-engineered packages? | B107: include_cm_pre | C107: 0 | D107: <--- enter 1 for yes, 0 for no
A109: Buildings
A110: Include buildings in total capital cost? | B110: include_buildings | C110: 1 | D110: <--- enter 1 for yes, 0 for no
A111: Include concrete pad in total capital cost? | B111: include_pad | C111: 1 | D111: <--- enter 1 for yes, 0 for no
A113: Heating Table (1=include heating in buildings and O&M, 0 = do not include heating)
A114: Component Level | B114: Range Name | C114: System Size
C115: Small (<1 mgd) | D115: Medium (1-10 mgd) | E115: Large (>10 mgd)
A116: Buildings 500 square feet or greater
A117: low cost | B117: heating_table | C117: 0 | D117: 1 | E117: 1
A118: mid cost | C118: 1 | D118: 1 | E118: 1
A119: high cost | C119: 1 | D119: 1 | E119: 1
A120: Buildings less than 500 ft2 (other than those used for chlorine storage)
A121: low cost | B121: heating_table_shed | C121: 0 | D121: 0 | E121: 1
A122: mid cost | C122: 0 | D122: 0 | E122: 1
A123: high cost | C123: 1 | D123: 1 | E123: 1
A125: Cooling Table (1=include cooling in buildings and O&M, 0 = do not include cooling)
A126: Component Level | B126: Range Name | C126: System Size
C127: Small (<1 mgd) | D127: Medium (1-10 mgd) | E127: Large (>10 mgd)
A128: Buildings 500 square feet or greater
A129: low cost | B129: cooling_table | C129: 0 | D129: 0 | E129: 1
A130: mid cost | C130: 0 | D130: 1 | E130: 1
A131: high cost | C131: 1 | D131: 1 | E131: 1
A132: Buildings less than 500 ft2 (other than those used for chlorine storage)
A133: low cost | B133: cooling_table_shed | C133: 0 | D133: 0 | E133: 0
A134: mid cost | C134: 0 | D134: 0 | E134: 0
A135: high cost | C135: 0 | D135: 0 | E135: 0

Sheet Contactor Constraints
A1: Contactor Constraint Calculations
A2: This sheet performs calculations to confirm that the contactor design on the Input page meets engineering constraints
A4: Calculation | B4: Range Name | C4: Value | D4: Units | E4: Guidance
A5: From Inputs
A6: Design Flow | B6: design_flow | C6: =IF(df_units="gpm",(1-bp_pct)*design_flow_I*24*60/1000000,(1-bp_pct)*design_flow_I) -> 75.072 | D6: MGD | E6: From input
A7: Average Flow | B7: average_flow | C7: =(1-bp_pct)*IF(af_units="gpm",average_flow_I*24*60/1000000,IF(af_units="fraction of design flow",average_flow_I*design_flow,average_flow_I)) -> 37.536 | D7: MGD | E7: From input
A8: Design Flow Rate | B8: design_flow_rate | C8: =design_flow*1000000/(24*60) -> 52133.33333 | D8: gpm | E8: Design flow expressed in gpm
A9: Average Flow Rate | B9: average_flow_rate | C9: =average_flow*1000000/(24*60) -> 26066.66667 | D9: gpm | E9: Average flow expressed in gpm
A10: Bypass Flow Rate | B10: bp_flow_rate | C10: =bp_pct/(1-bp_pct)*design_flow_rate -> 0 | D10: gpm
A11: Contaminant removal requirements | B11: EBCT_type | C11: =IF(EBCT_type_I="contaminant removal %",1,IF(EBCT_type_I="influent and effluent concentrations",2, 3)) -> 3 | D11: <-1 for contaminant removal %, 2 for influent and effluent concentrations, 3 for EBCT
A12: Target Contaminant | B12: contam_type | C12: 2 | D12: <-- 2 for atrazine, 3 for radon, 4 for TCE, 5 for PCE, etc.
A13: Design type chosen | B13: design_type | C13: 1 | D13: <-- 1 for Pressure, 2 for Gravity
A14: Empty Bed Contact Time | B14: EBCT | C14: =IF(EBCT_type=1,(LN(1/(1-EBCT_I))/Kss)*60,IF(EBCT_type=2,(LN(EBCT_I/EBCT_O)/Kss)*60,EBCT_I)) -> 15 | D14: minutes | E14: Ce/C0 = e-Kss*EBCT
A15: Is this an add-on (pre- or post-treatment) | B15: add_on | C15: =IF(addon_I="add-on",1,0) -> 0
A17: PRESSURE VESSELS
A18: Minimum number of vessels in series | B18: Num_tanks | C18: =IF(design_type=2,1,Num_tanks_I) -> 3 | D18: units
A19: Vessel geometry | B19: tank_geom | C19: =IF(tank_geom_I="upright",1,2) -> 2 | D19: <-1 for upright cylindrical, 2 for horizontal-laid cylinder
A21: From Central Cost Database
A22: Maximum Standard Vessel Diameter | B22: max_diam_std_size | C22: =IF(design_type=2,"-",max_vessel_diam_cl) -> 14 | D22: feet
A23: Minimum Vessel Diameter | B23: min_diam | C23: =IF(design_type=2,"-",min_vessel_diam_cl) -> 1.5 | D23: feet
A24: Maximum Vessel Diameter | B24: max_diam | C24: =IF(design_type=2,"-",IF(max_diam_override>0,max_diam_override,max_diam_std_size)) -> 14 | D24: feet | E24: Standard unless overridden on CDA's
A26: Vessel Constraints
A27: EBCT per vessel | B27: EBCT_tank | C27: =IF(design_type=2,"-",EBCT/Num_tanks) -> 5 | D27: minutes
A28: Vessel surface area | B28: max_sa | C28: =IF(tank_geom=1,(comm_diam-(2*Vessel_thickness))^2*PI()/4,IF(tank_geom=2,(comm_diam-(2*Vessel_thickness))*comm_height_length)) -> 294 | D28: square feet
A29: Height available above media bed (for horizontal vessels) | B29: distance_above | C29: =IF(design_type=2,"-",IF(tank_geom=2,comm_diam-bed_depth-horiz_underdrain,"NA")) -> 5.9 | D29: ft
A30: Void space above media bed (for horizontal vessels) | B30: void_above | C30: =IF(design_type=2,"-",IF(tank_geom=2,comm_height_length*(comm_diam*comm_diam/2*ASIN(SQRT(distance_above/comm_diam))-(comm_diam/2-distance_above)*SQRT((comm_diam-distance_above)*distance_above)),"NA")) -> 1294.285394 | D30: cubic feet
A31: Maximum flow per vessel | B31: flow_per_vessel | C31: =IF(design_type=2,"-",IF(tank_geom=1,(max_sa*bed_depth*7.48)/EBCT_tank,media_volume*7.48/EBCT_tank)) -> 2621.373971 | D31: gpm
A32: Number of parallel treatment trains | B32: num_treat_lines | C32: =IF(design_type=2,"-",ROUNDUP(design_flow_rate/flow_per_vessel,0)) -> 20 | D32: lines
A33: Number of vessels excluding redundancy | B33: op_num_tanks | C33: =IF(design_type=2,"-",ROUNDUP(design_flow_rate/flow_per_vessel,0)*Num_tanks) -> 60 | D33: units
A34: Number of redundant units | B34: NRD | C34: =IF(design_type=2,"-",IF(NRD_I<>"",NRD_I,IF(design_flow>=1,ROUNDUP(num_treat_lines/redund_freq,0),IF(op_num_tanks=1,NRD_small_1,NRD_small)))) -> 5 | D34: units
A35: Total number of vessels including redundancy | B35: final_num_tanks | C35: =IF(design_type=2,0,op_num_tanks+NRD) -> 65 | D35: units
A37: Vessel requirements based on bed depth and contact time
A38: Minimum total contact material needed | B38: contact_material | C38: =IF(design_type=2,"-",design_flow_rate*EBCT/(7.481)) -> 104531.4797 | D38: cubic feet
A39: Minimum volume of contact material per vessel | B39: contact_mat_per_vessel | C39: =IF(design_type=2,"-",contact_material/op_num_tanks) -> 1742.191329 | D39: cubic feet
A40: Minimum surface area of contact material | B40: SA | C40: =IF(design_type=2,"-",contact_mat_per_vessel/(bed_depth)) -> 263.9683832 | D40: square feet
A42: Quantities based on user-specified vessel dimensions
A43: Final surface area of contact material | B43: comm_SA | C43: =IF(design_type=2,"-",IF(tank_geom=1,(comm_diam-(2*Vessel_thickness))^2*PI()/4,IF(tank_geom=2,(comm_diam-(2*Vessel_thickness))*comm_height_length))) -> 294 | D43: square feet
A44: Final surface loading rate | B44: comm_load_rate | C44: =IF(design_type=2,"-",(design_flow_rate/num_treat_lines)/comm_SA) -> 8.866213152 | D44: gpm/square ft
A45: Total vessel volume | B45: comm_vol | C45: =IF(design_type=2,"-",PI()*comm_diam^2/4*comm_height_length) -> 3232.698841 | D45: cubic feet
B46: comm_vol_gal | C46: =IF(design_type=2,"-",comm_vol*7.48) -> 24180.58733 | D46: gal
A48: Checks on user-specified dimensions
A49: Design dimensions for vertical vessels:
A50: Height of vessel required | B50: height | C50: =IF(design_type=2,"-",bed_depth*(1+bed_expansion)+free_board) -> 10.4 | D50: feet
A51: Required vessel diameter (circular vessels) | B51: diameter | C51: =IF(design_type=2,"-",(SA*4/PI())^0.5+(2*Vessel_thickness)) -> 18.3328935 | D51: feet
A52: Minimum commercial height given diameter | B52: min_comm_height | C52: =IF(design_type=2,"-",VLOOKUP(comm_diam,vessel_size_table_cl,2)) -> 6 | D52: feet
A53: Maximum commercial height given diameter | B53: max_comm_height | C53: =IF(design_type=2,"-",VLOOKUP(comm_diam,vessel_size_table_cl,3)) -> 24 | D53: feet
A55: Void space required for horizontal vessels:
A56: For freeboard | B56: freeboard_horiz_void | C56: =IF(design_type=2,"-",comm_height_length*(comm_diam*comm_diam/2*ASIN(SQRT(free_board/comm_diam))-(comm_diam/2-free_board)*SQRT((comm_diam-free_board)*free_board))) -> 36.64108884 | D56: cubic feet | E56: Volume of a horizontal slice taken out of a cylinder
A57: For underdrain | B57: underdrain_horiz_void | C57: =IF(design_type=2,"-",comm_height_length*(comm_diam*comm_diam/2*ASIN(SQRT(horiz_underdrain/comm_diam))-(comm_diam/2-horiz_underdrain)*SQRT((comm_diam-horiz_underdrain)*horiz_underdrain))) -> 186.1581178 | D57: cubic feet
A58: Total | B58: horiz_void | C58: =IF(design_type=2,"-",freeboard_horiz_void+underdrain_horiz_void) -> 222.7992066 | D58: cubic feet
A60: Volume available for media and expansion:
A61: Vertical vessel | B61: vert_vol_available | C61: =IF(design_type=2,"-",(comm_height_length-free_board)*PI()*comm_diam^2/4) -> 3155.729821 | D61: cubic feet
A62: Horizontal vessel | B62: horiz_vol_available | C62: =IF(design_type=2,"-",comm_vol-horiz_void) -> 3009.899634 | D62: cubic feet
A63: For selected vessel geometry | B63: input_vol_vess | C63: =IF(design_type=2,"-",CHOOSE(tank_geom,vert_vol_available,horiz_vol_available)) -> 3009.899634 | D63: cubic feet | E63: To be compared to vol_vessel, to determine whether vessel is oversized.
A65: GRAVITY CONTACT BASINS
A66: Minimum volume required | B66: min_basin_vol | C66: =IF(design_type=1,"-",design_flow_rate*EBCT/7.48) -> - | D66: cubic ft
A67: Number of basins (no redundancy) | B67: op_num_basins | C67: =IF(design_type=1,"-",ROUNDUP(min_basin_vol/(basin_width*basin_length*basin_op_depth),0)) -> -
A68: Basin depth including freeboard | B68: basin_depth | C68: =IF(design_type=1,"-",basin_op_depth*(1+bed_expansion)+basin_freeboard) -> - | D68: ft
A69: Total basin volume | B69: basin_vol | C69: =IF(design_type=1,"-",basin_width*basin_length*basin_depth*7.48) -> - | D69: gal
A70: Basin loading rate | B70: surface_loading_rate_g | C70: =IF(design_type=1,"-",design_flow_rate/(op_num_basins*(basin_width*basin_length))) -> - | D70: gpm/square ft
A71: Number of reduntant basins | B71: NRD_g | C71: =IF(design_type=1,"-",IF(NRD_I<>"",NRD_I,IF(op_num_basins=1,NRD_small_1,CHOOSE(ss_cat2,NRD_small,NRD_basins_medium,NRD_basins_large)))) -> - | D71: units
A72: Total number of basins (incl. redundancy) | B72: total_num_basins | C72: =IF(design_type=1,0,op_num_basins+NRD_g) -> 0 | D72: units
A73: Concrete volume | B73: basin_conc_vol | C73: =IF(design_type=1,"-",(2*(basin_width*total_num_basins+conc_thick*(total_num_basins+1))*basin_depth*conc_thick+(total_num_basins+1)*basin_length*basin_depth*conc_thick+(basin_length+2*conc_thick)*(basin_width*total_num_basins+conc_thick*(total_num_basins+1))*conc_thick)/27) -> - | D73: cubic yd | E73: incorporates common wall design
A74: Excavation volume | B74: excavation_vol | C74: =IF(design_type=1,"-",((total_num_basins*basin_width+(total_num_basins+1)*conc_thick+overexcavate)*(basin_length+2*conc_thick+overexcavate)*(basin_depth+conc_thick+overexcavate)+0.5*(3*(basin_depth+conc_thick+overexcavate)*(basin_depth+conc_thick+overexcavate)*(basin_length+2*conc_thick+overexcavate)))/27) -> - | D74: cubic yd | E74: incorporates common wall design, includes ramping for moving earth out of excavated area, assumes flush with grade (conservative)
A75: Backfill volume | B75: backfill_vol | C75: =IF(design_type=1,"-",excavation_vol-(total_num_basins*basin_width+(total_num_basins+1)*conc_thick)*(basin_length+2*conc_thick)*(basin_depth+conc_thick)/27) -> - | D75: cubic yd
A76: Railing length | B76: railing | C76: =IF(design_type=1,"-",2*(total_num_basins*basin_width+2*conc_thick/2+(total_num_basins-1)*conc_thick)+2*(basin_length+2*conc_thick/2)) -> - | D76: lf | E76: incorporates common wall design, single railing (concrete thickness is not sufficient to provide walkway)
A77: Surface area each contactor | B77: basin_area | C77: =IF(design_type=1,"-",basin_width*basin_length) -> - | D77: square ft | E77: for internals costing
A79: MEDIA QUANITITIES
A80: GAC volume per contactor | B80: media_volume | C80: =IF(design_type=1,IF(tank_geom=1,comm_SA*bed_depth,IF(tank_geom=2,comm_vol-underdrain_horiz_void-void_above)),basin_width*basin_length*basin_op_depth) -> 1752.255328 | D80: cubic feet
A81: GAC quantity each contactor | B81: GAC_each | C81: =media_volume*GAC_density -> 52567.65985 | D81: lbs
A82: Total GAC quanity | B82: GAC | C82: =GAC_each*IF(design_type=1,final_num_tanks,total_num_basins) -> 3416897.89 | D82: lbs
A83: GAC volume when expanded | B83: media_volume_expanded | C83: =media_volume*(1+bed_expansion) -> 2628.382992 | D83: cubic feet

Sheet Retrofit
A1: Retrofit Calculations
A3: Calculation | B3: Range Name | C3: Value | D3: Units | E3: Guidance
A4: Base Retrofit Calculations
A5: Is this a retrofit design? | B5: retrofit | C5: =IF(retrofit_I="",0,1) -> 0 | D5: 1 = retrofit, 0 = new treatment system
A6: Carbon life input type for retrofit | B6: r_freund_type | C6: =IF(r_freund_type_I="carbon life value- months",1,IF(r_freund_type_I="calculation from Freundlich isotherm",2,IF(r_freund_type_I="calculation from BDST",3,4))) -> 4 | D6: <-- 1 for bed life in months, 2 for calculation from Freundlich isotherms, 4 for bed life in bed volumes
A8: GAC in grams (unchanged) | B8: M | C8: =M -> 476883296.6 | D8: grams | E8: For Freundlich calculation, does not change in retrofit scenario, repeated here for reference
A9: Flow rate in L/min (unchanged) | B9: QL | C9: =QL -> 98662.33333 | D9: L/min | E9: For Freundlich calculation, does not change in retrofit scenario, repeated here for reference
A10: N0/e for retrofit | B10: r_N_0_e | C10: =r_freund_1*GAC_density*453.59/0.02832 -> 0 | D10: mg/cubic m | E10: For BDST calculation, recalculated for retrofit
A11: Fluid velocity (unchanged) | B11: v | C11: =v -> 0.1804226709 | D11: m/min | E11: For BDST calculation, does not change in retrofit scenario, repeated here for reference
A12: Bed depth in meters (unchanged) | B12: D | C12: =D -> 2.01168 | D12: m | E12: For BDST calculation, does not change in retrofit scenario, repeated here for reference
A13: Bed life for retrofit | B13: r_bed_life | C13: =CHOOSE(r_freund_type,r_freund_1,(M*(r_freund_1/1000)*(r_C_b*1000)^r_freund_2/(QL*(r_C_0-r_C_b)))/(30*24*60),(r_N_0_e/(1000*v*r_C_0)*D-LOG(r_C_0/r_C_b-1)/(r_freund_2*r_C_0))/(30*24*60),r_freund_1*IF(design_type=1,comm_SA*bed_depth*num_treat_lines,basin_width*basin_length*basin_op_depth*op_num_basins)*7.48/average_flow_rate/60/24/30) -> 0 | D13: months
A15: Average regeneration rate after retrofit | B15: r_regen_day | C15: =IF(retrofit=0,0,GAC_each*IF(design_type=1,op_num_tanks,op_num_basins)/(r_bed_life/12)/365) -> 0 | D15: lbs/day
A16: Total annual GAC needed after retrofit | B16: r_GAC_yr | C16: =r_regen_day*365 -> 0 | D16: lbs/yr | E16: When regenerating, this quantity is made up of regenerated GAC + makeup GAC
A17: Annual Regenerated GAC after retrofit | B17: r_regen_yr | C17: =CHOOSE(regen_type,(1-makeup_rate)*r_GAC_yr,(1-makeup_rate_off)*r_GAC_yr,0,(1-makeup_rate_off)*r_GAC_yr,0,0,0) -> 0 | D17: lbs/yr
A18: Annual Virgin GAC after retrofit | B18: r_GAC_makeup | C18: =CHOOSE(regen_type,makeup_rate*r_GAC_yr,makeup_rate_off*r_GAC_yr,r_GAC_yr,makeup_rate_off*r_GAC_yr,r_GAC_yr,r_GAC_yr,r_GAC_yr) -> 0 | D18: lbs/yr
A20: Spent media disposal frequency after retrofit | B20: r_disp_freq | C20: =IF(r_bed_life=0,0,IF(OR(regen_type=3,regen_type=5),12/r_bed_life,0)) -> 0 | D20: times per year
A21: Spent media quantity (average per year) after retrofit | B21: r_spent_media_yr | C21: =spent_media*r_disp_freq -> 0 | D21: tons
A22: Media changeouts per year after retrofit | B22: r_media_changes | C22: =IF(design_type=1,final_num_tanks,total_num_basins)*IF(OR(regen_type=3,regen_type=5),r_disp_freq,IF(OR(regen_type=2,regen_type=4),IF(r_bed_life=0,0,12/r_bed_life),0)) -> 0 | E22: For use with mechanical transfer, incorporates number of vessels. For onsite regeneration, media changeout labor is included in regen_labor, below
A23: Quantity of media handled per year after retrofit | B23: r_media_changes_cf | C23: =IF(OR(regen_type=3,regen_type=5),r_GAC_makeup+r_spent_media_yr*2000,IF(OR(regen_type=2,regen_type=4),r_GAC_makeup+2*r_regen_yr,0))/GAC_density -> 0 | D23: cf | E23: For use with manual transfer, incorporates both removal and refill. For onsite regeneration, media changeout labor is included in regen_labor, below
A24: Incremental operator labor for media changeouts after retrofit | B24: r_inc_Operator_LOE | C24: =IF(retrofit=0,0,IF(transfer_method=3,r_media_changes_cf*uloe_throwaway,r_media_changes*transfer_time)-IF(transfer_method=3,media_changes_cf*uloe_throwaway,media_changes*transfer_time)+r_regen_labor) -> 0 | D24: hr/yr
A26: Spent media disposal fee after retrofit | C26: =spent_media*r_disp_freq*CHOOSE(regen_type,0,0,nonhaz_disposal_cost_cl,0,haz_disposal_cost_cl,rad_disposal_cost_cl,hazrad_disposal_cost_cl) -> 0 | D26: $/year
A27: Spent media shipments per year after retrofit | C27: =CHOOSE(regen_type,r_disp_freq,r_disp_freq,r_disp_freq,r_disp_freq,IF(spent_media>max_haz_ship,ROUNDUP(spent_media/max_haz_ship,0)*r_disp_freq,r_disp_freq),IF(spent_media>max_rad_ship,ROUNDUP(spent_media/max_rad_ship,0)*r_disp_freq,r_disp_freq),IF(spent_media>max_hazrad_ship,ROUNDUP(spent_media/max_hazrad_ship,0)*r_disp_freq,r_disp_freq)) -> 0
A28: Transportation unit cost | C28: =CHOOSE(regen_type,0,0,nonhaz_transportation_cost_cl,0,haz_transportation_cost_cl,rad_transportation_cost_cl,hazrad_transportation_cost_cl) -> 0 | D28: $/ton-mile
A29: Transportation minimum charge per shipment | C29: =CHOOSE(regen_type,0,0,0,0,haz_trans_min_cost_cl,rad_trans_min_cost_cl,hazrad_trans_min_cost_cl) -> 0 | D29: $/shipment
A30: Transportation mileage | C30: =CHOOSE(regen_type,0,0,non_haz_miles,0,haz_miles,rad_miles,hazrad_miles) -> 0 | D30: miles
A31: Transportation | C31: =MAX(C27*C29,spent_media*C27*C30*C28) -> 0 | D31: $/year
A32: Total annual spent media diposal fee after retrofit | B32: r_disposal_fee | C32: =C31+C26+CHOOSE(regen_type,0,0,0,0,0,rad_annual_fee_cl,hazrad_annual_fee_cl) -> 0 | D32: $/year
A35: Regeneration frequency after retrofit | C35: =IF(r_bed_life=0,0,12/r_bed_life) -> 0
A36: Hazardous regeneration shipments per year after retrofit | C36: =IF(regen_type=4,IF(r_regen_yr/2000>max_haz_ship,ROUNDUP((r_regen_yr/2000)/max_haz_ship,0)*C35,C35),"NA") -> NA
A37: Additional transportation cost for hazardous regeneration after retrofit | B37: r_haz_regen_transp | C37: =IF(regen_type=4,MAX(C36*haz_trans_min_cost_cl,spent_media*C36*haz_miles*haz_transportation_cost_cl),0) -> 0 | D37: $/year
A39: Incremental lighting | B39: r_lighting | C39: =MIN(1,(r_inc_Operator_LOE+Operator_LOE)/(24*365))*(build1_fp*lighting_energy_1+build2_fp*lighting_energy_2)/1000+r_furnace_lighting-lighting -> 0 | D39: MWh/yr
A40: Incremental standby power for lighting | B40: r_std_lighting | C40: =((build1_fp*lighting_energy_1+build2_fp*lighting_energy_2)/1000+r_furnace_lighting-lighting)/365/24*1000 -> 0 | D40: kW
A41: Total standby power after retrofit | B41: r_std_power | C41: =ROUNDUP(2*MAX(min_standby,(IF(AND(need_heat=1,need_cool=1),MAX(std_heat,std_cool),need_heat*std_heat+need_cool*std_cool)+std_base+r_std_vent+r_std_lighting)*(1+std_safety_factor)),0)/2 -> 641 | D41: kW
A42: Incremental standby power required | B42: r_inc_std_power | C42: =r_std_power-std_power -> 0 | D42: kW
A43: Incremental standby power cost | B43: r_std_power_cost | C43: =VLOOKUP(r_std_power,std_gen_cost_cl,3)*r_inc_std_power -> 0
A45: Additional Calculations for Retrofit with On-site Regeneration
A46: Direct Equipment
A47: On-site regeneration capacity required for retrofit | B47: r_regen_capacity | C47: =(r_regen_day/regen_runtime)*regen_redund -> 0 | D47: lbs/day
A48: Incremental regeneration capacity required for retrofit | B48: r_inc_regen_capacity | C48: =MAX(0,C47-regen_capacity) -> 0 | D48: lbs/day
A49: Capacity expansion required? | B49: r_new_furnace | C49: =IF(AND(retrofit=1,regen_type=1,OUTPUT!G233>0),1,0) -> 0 | D49: 1=yes, 0=no | E49: This considers actual output sheet size of existing furnace when curve fitting isn't used
A51: Building and Land Usage
A52: On-site regeneration footprint for retrofit | B52: r_onsite_regeneration_fp | C52: =IF(regen_type=1,121.3*r_regen_capacity^0.3656,0) -> 0 | D52: square feet | E52: Equations developed in Working draft of "Design and Cost Estimates for Advanced Water Treatment Technologies", 9/30/00, include access space.
A53: Incremental footprint required for retrofit | B53: r_inc_fp_required | C53: =IF(retrofit=0,0,r_onsite_regeneration_fp-Onsite_regeneration_fp) -> 0 | D53: square feet
A54: New footprint of building 1 | B54: r_build1_fp | C54: =IF(retrofit=0,0,ROUNDUP(IF(fp_required<add_2nd_building,fp_required+r_onsite_regeneration_fp,vessel_fp),-1)) -> 0 | D54: square feet | E54: If total footprint is large, building 1 contains vessels only. If total footprint is small, building 1 contains all equipment.
A55: New footprint of building 2 | B55: r_build2_fp | C55: =IF(retrofit=0,0,ROUNDUP(IF(fp_required<add_2nd_building,0,back_tank_fp+pump_fp+r_onsite_regeneration_fp+Virgin_GAC_storage_fp+Spent_GAC_storage_fp+Regenerated_GAC_storage_fp+office_fp+htank_fp+cstore_fp),-1)) -> 0 | D55: square feet | E55: If total footprint is large, a second building is used for pumps, backwash, onsite regeneration, and chemical storage
A56: Incremental building 1 floorplan required for retrofit | B56: r_inc_build1_fp | C56: =IF(retrofit=0,0,r_build1_fp-build1_fp) -> 0 | D56: square feet
A57: Incremental building 2 floorplan required for retrofit | B57: r_inc_build2_fp | C57: =IF(retrofit=0,0,r_build2_fp-build2_fp) -> 0 | D57: square feet
A58: New total footprint | B58: r_total_fp | C58: =r_build1_fp+r_build2_fp -> 0 | D58: square feet
A59: Incremental total footprint | B59: r_inc_total_fp | C59: =IF(retrofit=0,0,r_total_fp-total_fp) -> 0 | D59: square feet
A60: Concrete pad for retrofit | B60: r_concrete | C60: =ROUNDUP(r_inc_fp_required*IF(ss_cat2=1,pad_thick_small,pad_thick)/27,0) -> 0 | D60: cubic yards
A61: Incremental land acquisition (opportunity cost) | B61: r_land_required | C61: =IF(retrofit=0,0,ROUNDUP(((r_build1_fp)^0.5+(2*non_fire_buffer))*((r_build1_fp)^0.5+(non_fire_buffer+fire_buffer))+IF(r_build2_fp=0,0,((r_build2_fp)^0.5+(2*non_fire_buffer))*((r_build2_fp)^0.5+(non_fire_buffer+fire_buffer)))+sept_fp+solids_pad_area,-2)/43560-land_required) -> 0 | D61: acres
A63: Permits
A64: Building #1 additional value | C64: =SUMPRODUCT(OUTPUT!J287:J290,OUTPUT!L287:L290) -> 0 | E64: Determined using Use? Column of output sheet
A65: Building #2 additional value | C65: =SUMPRODUCT(OUTPUT!J292:J295,OUTPUT!L292:L295) -> 0 | E65: Determined using Use? Column of output sheet
A66: Building permit cost | C66: =BPCost_UBC97(C64)+BPCost_UBC97(C65) ->  | E66: Uses custom function to apply formulae developed in SAIC Permit Report 2004
A67: NPDES permit cost | C67: 0 | E67: Retrofit does not change NPDES status
A68: Storm water permit cost | C68: =VLOOKUP(land_required+r_land_required,SW_permit_cost_cl,2)-VLOOKUP(land_required,SW_permit_cost_cl,2) -> 0 | E68: Applies to systems where retrofit pushes land over 1 acre
A69: Risk management plan | C69: 0 | E69: Not applicable for this technology
A70: NEPA compliance | C70: =IF(OR(r_new_furnace=0,include_NEPA=2),0,IF(OR(component_level=2,include_NEPA=1),VLOOKUP(r_land_required+land_required,NEPA_cost_cl,2),0)) -> 0 | E70: Included only for high cost estimates, unless assumption "include_NEPA" is changed on CDA sheet
A71: Total permit cost | B71: r_permit_cost | C71: =SUM(C66:C70) -> 
A73: Indirect
A74: Sitework cost for retrofit | B74: r_sitework_cost | C74: =r_inc_total_fp*sitework_sf_cl -> 0
A76: Building Maintenance
A77: Cost for all buildings, excluding heating and cooling | C77: =building_matl_rate_cl*r_inc_total_fp -> 0 | D77: /yr | E77: Labor and materials; includes routine in-house maintenance and major repairs
A78: Cost to maintain heating system, building 1 | C78: =build1_need_heat*heating_matl_rate_cl*r_inc_build1_fp -> 0 | D78: /yr
A79: Cost to maintain cooling system, building 1 | C79: =build1_need_cool*cooling_matl_rate_cl*r_inc_build1_fp -> 0 | D79: /yr
A80: Cost to maintain heating system, building 2 | C80: =build2_need_heat*heating_matl_rate_cl*r_inc_build2_fp -> 0 | D80: /yr
A81: Cost to maintain cooling system, building 2 | C81: =build2_need_cool*cooling_matl_rate_cl*r_inc_build2_fp -> 0 | D81: /yr
A82: Annual maintenance for all buildings | B82: r_bldg_maint_cost | C82: =SUM(C77:C81) -> 0 | E82: Includes labor and materials
A84: On-site Regeneration O&M
A85: Incremental materials for on-site GAC Regeneration | B85: r_regen_materials | C85: =IF(retrofit=0,0,IF(regen_type=1,8451.4*r_regen_capacity^0.2017,0)-regen_materials) -> 0 | D85: /year | E85: Equations developed in Working draft of "Design and Cost Estimates for Advanced Water Treatment Technologies", 9/30/00.
A86: Incremental On-site GAC regeneration labor | B86: r_regen_labor | C86: =IF(retrofit=0,0,IF(regen_type=1,2.2515*r_regen_capacity^0.7554,0)-regen_labor) -> 0 | D86: hours/year | E86: Equations developed in Working draft of "Design and Cost Estimates for Advanced Water Treatment Technologies", 9/30/00.
A87: Incremental Energy | B87: r_regen_energy | C87: =IF(retrofit=0,0,IF(regen_type=1,9.1217*r_regen_capacity^1.0475/1000-regen_energy,0)) -> 0 | D87: MWh/yr | E87: Equations developed in Working draft of "Design and Cost Estimates for Advanced Water Treatment Technologies", 9/30/00.
A88: Incremental Natural Gas | B88: r_regen_ng | C88: =IF(retrofit=0,0,IF(regen_type=1,28.161*r_inc_regen_capacity,0)) -> 0 | D88: Therms/yr | E88: Equations developed in Working draft of "Design and Cost Estimates for Advanced Water Treatment Technologies", 9/30/00.
A90: Building Lighting and Ventilation
A91: Lighting for additional building floorplan | B91: r_furnace_lighting | C91: =MIN(1,(r_inc_Operator_LOE+Operator_LOE)/(24*365))*(r_inc_build1_fp*lighting_energy_1+r_inc_build2_fp*lighting_energy_2)/1000 -> 0 | D91: MWh/yr
A93: Building 1 weighted average air changes after retrofit | B93: r_air_changes_build1 | C93: =IF(build2_fp=0,IF(r_build1_fp=0,0,(Air_changes_contactor*(vessel_fp+back_tank_fp+r_onsite_regeneration_fp+htank_fp)+Air_changes_pump*pump_fp+Air_changes_chem_storage*(Virgin_GAC_storage_fp+Spent_GAC_storage_fp+Regenerated_GAC_storage_fp+cstore_fp)+Air_changes_office*office_fp)/r_build1_fp),Air_changes_contactor) -> 3 | D93: air changes/hr
A94: Building 2 weighted average air changes after retrofit | B94: r_air_changes_build2 | C94: =IF(build2_fp=0,0,IF(r_build2_fp=0,0,(Air_changes_contactor*(back_tank_fp+r_onsite_regeneration_fp+htank_fp)+Air_changes_pump*pump_fp+Air_changes_chem_storage*(Virgin_GAC_storage_fp+Spent_GAC_storage_fp+Regenerated_GAC_storage_fp+cstore_fp)+Air_changes_office*office_fp)/r_build2_fp)) -> 0 | D94: air changes/hr
A95: Building 1 ventilation after retrofit | C95: =CHOOSE(ss_cat2,fan_days_build1_small,fan_days_build1_medium,fan_days_build1_large)*24*0.746*Fan_pressure_drop*r_build1_fp*Building_height*r_air_changes_build1/33000 -> 0 | D95: kWh/yr
A96: Building 2 ventilation after retrofit | C96: =CHOOSE(ss_cat2,fan_days_build2_small,fan_days_build2_medium,fan_days_build2_large)*24*0.746*Fan_pressure_drop*r_build2_fp*Building_height*r_air_changes_build2/33000 -> 0 | D96: kWh/yr
A97: Total ventilation | B97: r_ventilation | C97: =IF(SUM(C95:C96)=0,0,SUM(C95:C96)/1000-ventilation) -> 0 | D97: MWh/yr
A99: Building 1 ventilation | C99: =0.746*Fan_pressure_drop*r_inc_build1_fp*Building_height*air_changes_build1/33000 -> 0 | D99: kW
A100: Building 2 ventilation | C100: =0.746*Fan_pressure_drop*r_inc_build2_fp*Building_height*air_changes_build2/33000 -> 0 | D100: kW
A101: Incremental standby power for ventilation | B101: r_std_vent | C101: =SUM(C99:C100) -> 0 | D101: kW

Sheet Backwash and Regeneration
A1: Backwash and Regeneration Calculations
A3: Calculation | B3: Range Name | C3: Value | D3: Units | E3: Guidance
A4: From Input
A5: Carbon life input type | B5: freund_type | C5: =IF(freund_type_I="carbon life value- months",1,IF(freund_type_I="calculation from Freundlich isotherm",2,IF(freund_type_I="calculation from BDST",3,4))) -> 1 | D5: <-- 1 for bed life in months, 2 for calculation from Freundlich isotherms, 4 for bed life in bed volumes
A6: Spent media regeneration method | B6: regen_type | C6: =IF(regen_type_I="regeneration on-site",1,IF(regen_type_I="regeneration off-site (non-hazardous)",2,IF(regen_type_I="throwaway (non-hazardous)",3,IF(regen_type_I="regeneration off-site (hazardous)",4,IF(regen_type_I="throwaway (hazardous)",5,IF(regen_type_I="throwaway (radioactive)",6,7)))))) -> 2 | D6: <-- 1 for regeneration on-site, 2 for regeneration off-site (non-hazardous), 3 for throwaway (non-hazardous), 4 for regeneration off-site (hazardous), 5 for throwaway (hazardous), 6 for throwaway (radioactive), 7 for throwaway (hazardous & radioactive)
A8: Interval between backwashes | B8: back_interval | C8: =back_interval_I -> 48 | D8: hours
A9: No backwash pumps | B9: no_backwash | C9: =IF(no_backwash_I="existing pumps",1,IF(no_backwash_I="new pumps","",IF(ss_cat2=1,1,""))) ->  | D9: <-- 1 = backwash using existing supply or treated water pumps, blank = include backwash pumps in costs
A10: No backwash tanks | B10: no_back_tank | C10: =IF(no_back_tank_I="existing storage",1,IF(no_back_tank_I="new storage","",IF(ss_cat2=2,"",1))) -> 1 | D10: <-- 1 = backwash from existing storage or supply, blank = include backwash tanks in costs
A12: Backwash
A13: Backwash flow | B13: water_flush | C13: =ROUND(h2oflush_backwash_rate*IF(design_type=1,comm_SA,basin_width*basin_length),0) -> 3528 | D13: gpm
A14: Total backwash volume | B14: total_backwash | C14: =water_flush*backwash_time -> 35280 | D14: gallons
A15: Backwash storage volume in cubic feet | B15: back_vol_ft | C15: =total_backwash*back_multiplier/7.48 -> 4716.57754 | D15: cubic ft | E15: If concrete basins are used, rather than tanks
A16: Number of backwash basins | B16: back_basins | C16: =IF(no_back_tank=1,0,IF(design_flow>no_back_tank,0,back_basins_default)) -> 0 | D16: units | E16: If concrete basins are used, rather than tanks
A17: Backwash basin operating depth | B17: back_basin_op_depth | C17: =IF(back_basins=0,0,ROUNDUP((back_vol_ft/back_basins)^(1/3)*back_ratio,0)) -> 0 | D17: feet | E17: If concrete basins are used, rather than tanks
A18: Backwash basin width | B18: back_basin_width | C18: =IF(back_basins=0,0,ROUNDUP(((back_vol_ft/back_basins)/back_basin_op_depth)^0.5,0)) -> 0 | D18: feet | E18: If concrete basins are used, rather than tanks
A19: Backwash basin length | B19: back_basin_length | C19: =back_basin_width -> 0 | D19: feet | E19: If concrete basins are used, rather than tanks
A20: Backwash basin depth including freeboard | B20: back_basin_depth | C20: =IF(back_basins=0,0,back_basin_op_depth+back_freeboard) -> 0 | D20: feet | E20: If concrete basins are used, rather than tanks
A21: Backwash basin volume | B21: back_basin_vol | C21: =ROUND(back_basin_width*back_basin_length*back_basin_depth*7.48,0) -> 0 | D21: gal | E21: If concrete basins are used, rather than tanks
A22: Concrete volume | B22: back_conc_vol | C22: =(2*(back_basin_width*back_basins+conc_thick*(back_basins+1))*back_basin_depth*conc_thick+(back_basins+1)*back_basin_length*back_basin_depth*conc_thick+(back_basin_length+2*conc_thick)*(back_basin_width*back_basins+conc_thick*(back_basins+1))*conc_thick)/27 -> 0.07407407407 | D22: cubic yd | E22: If concrete basins are used, rather than tanks
A23: Excavation volume | B23: back_excavation_vol | C23: =IF(back_basins=0,0,((back_basins*back_basin_width+(back_basins+1)*conc_thick+overexcavate)*(back_basin_length+2*conc_thick+overexcavate)*(back_basin_depth+conc_thick+overexcavate)+0.5*(3*(back_basin_depth+conc_thick+overexcavate)*(back_basin_depth+conc_thick+overexcavate)*(back_basin_length+2*conc_thick+overexcavate)))/27) -> 0 | D23: cubic yd | E23: If concrete basins are used, rather than tanks
A24: Backfill volume | B24: back_backfill_vol | C24: =IF(back_basins=0,0,back_excavation_vol-(back_basins*back_basin_width+(back_basins+1)*conc_thick)*(back_basin_length+2*conc_thick)*(back_basin_depth+conc_thick)/27) -> 0 | D24: cubic yd | E24: If concrete basins are used, rather than tanks
A25: Railing length | B25: back_railing | C25: =IF(back_basins=0,0,2*(back_basins*back_basin_width+2*conc_thick/2+(back_basins-1)*conc_thick)+2*(back_basin_length+2*conc_thick/2)) -> 0 | D25: lf | E25: If concrete basins are used, rather than tanks
A26: Maximum backwash tank size | B26: max_back_tank_size | C26: =MAX(VLOOKUP(10^6,st_bwt_cost_cl,1)-1,VLOOKUP(10^6,fg_bwt_cost_cl,1)-1,VLOOKUP(10^6,hdpe_bwt_cost_cl,1)-1) -> 282544 | D26: gallons | E26: The largest size for which costs are available. Applies to backwash tanks and steel GAC storage tanks (below).
A27: Number of backwash tanks | B27: num_back_tanks | C27: =IF(no_back_tank=1,0,IF(design_flow>no_back_tank,0,ROUNDUP(total_backwash*back_multiplier/max_back_tank_size,0))) -> 0 | D27: units
A28: Backwash tank volume | B28: back_tank_vol | C28: =IF(no_back_tank=1,0,IF(design_flow>no_back_tank,0,total_backwash*back_multiplier/num_back_tanks)) -> 0 | D28: gallons
A30: Regeneration
A31: GAC in grams | B31: M | C31: =IF(design_type=1,GAC_each*num_treat_lines,GAC)*453.59 -> 476883296.6 | D31: grams | E31: For Freundlich calculation
A32: Flow rate in L/min | B32: QL | C32: =average_flow_rate*3.785 -> 98662.33333 | D32: L/min | E32: For Freundlich calculation
A33: N0/e | B33: N_0_e | C33: =freund_1*GAC_density*453.59/0.02832 -> 5765974.576 | D33: mg/cubic m | E33: For BDST calculation
A34: Fluid velocity | B34: v | C34: =QL*0.001/IF(design_type=1,comm_SA*num_treat_lines*0.093,basin_width*basin_length*total_num_basins*0.093) -> 0.1804226709 | D34: m/min | E34: For BDST calculation
A35: Bed depth in meters | B35: D | C35: =IF(design_type=1,bed_depth,basin_op_depth)*0.3048 -> 2.01168 | D35: m | E35: For BDST calculation
A36: Bed life | B36: bed_life | C36: =CHOOSE(freund_type,freund_1,(M*(freund_1/1000)*(C_b*1000)^freund_2/(QL*(C_0-C_b)))/(30*24*60),(N_0_e/(1000*v*C_0)*D-LOG(C_0/C_b-1)/(freund_2*C_0))/(30*24*60),freund_1*IF(design_type=1,comm_SA*bed_depth*num_treat_lines,basin_width*basin_length*basin_op_depth*op_num_basins)*7.48/average_flow_rate/60/24/30) -> 12 | D36: months
A38: Average regeneration rate | B38: regen_day | C38: =GAC_each*IF(design_type=1,op_num_tanks,op_num_basins)/(bed_life/12)/365 -> 8641.259153 | D38: lbs/day
A39: Regeneration capacity needed (on-site only) | B39: regen_capacity | C39: =(regen_day/regen_runtime)*regen_redund -> 10166.18724 | D39: lbs/day | E39: Capacity of on-site regeneration increased to account for system runtime and redundancy needs
A40: Total annual GAC needed | B40: GAC_yr | C40: =regen_day*365 -> 3154059.591 | D40: lbs/yr | E40: When regenerating, this quantity is made up of regenerated GAC + makeup GAC
A41: Annual Regenerated GAC | B41: regen_yr | C41: =CHOOSE(regen_type,(1-makeup_rate)*GAC_yr,(1-makeup_rate_off)*GAC_yr,0,(1-makeup_rate_off)*GAC_yr,0,0,0) -> 2207841.714 | D41: lbs/yr
A42: Annual Virgin GAC | B42: GAC_makeup | C42: =CHOOSE(regen_type,makeup_rate*GAC_yr,makeup_rate_off*GAC_yr,GAC_yr,makeup_rate_off*GAC_yr,GAC_yr,GAC_yr,GAC_yr) -> 946217.8773 | D42: lbs/yr
A44: GAC Storage (when on-site regeneration is used)
A45: Virgin GAC storage (on-site only) | B45: virgin_storage | C45: =(GAC_each/GAC_density)*virgin_storage_bv -> 2330.499587 | D45: cubic ft
A46: Spent GAC storage (on-site only) | B46: spent_storage | C46: =(GAC_each/GAC_density)*spent_storage_bv -> 2330.499587 | D46: cubic ft
A47: Regenerated GAC storage (on-site only) | B47: regen_storage | C47: =(GAC_each/GAC_density)*regen_storage_bv -> 2330.499587 | D47: cubic ft
A49: Virgin GAC Storage basin operating depth | B49: virgin_basin_op_depth | C49: =ROUNDUP((virgin_storage/storage_basins)^(1/3)*storage_ratio,0) -> 8 | D49: feet | E49: If concrete basins are used, rather than tanks
A50: Virgin GAC Storage basin width | B50: virgin_basin_width | C50: =ROUNDUP(((virgin_storage/storage_basins)/virgin_basin_op_depth)^0.5,0) -> 18 | D50: feet | E50: If concrete basins are used, rather than tanks
A51: Virgin GAC Storage basin length | B51: virgin_basin_length | C51: =virgin_basin_width -> 18 | D51: feet | E51: If concrete basins are used, rather than tanks
A52: Depth including freeboard | B52: virgin_basin_depth | C52: =virgin_basin_op_depth+storage_freeboard -> 11 | D52: feet | E52: If concrete basins are used, rather than tanks
A53: Virgin GAC Storage basin volume | B53: virgin_basin_vol | C53: =ROUND(virgin_basin_width*virgin_basin_length*virgin_basin_depth*7.48,0) -> 26659 | D53: gal | E53: If concrete basins are used, rather than tanks
A54: Concrete volume | B54: virgin_conc_vol | C54: =ROUNDUP(((2*virgin_basin_depth*virgin_basin_length+2*virgin_basin_depth*virgin_basin_width+virgin_basin_width*virgin_basin_length)*1.2*conc_thick*storage_basins)/27,0) -> 50 | D54: cubic yd | E54: If concrete basins are used, rather than tanks
B55: virgin_excavation_vol | C55: =ROUNDUP(((virgin_basin_width+overexcavate)*(virgin_basin_length+overexcavate)*(virgin_basin_depth+overexcavate)+0.5*(3*(virgin_basin_depth+overexcavate)*(virgin_basin_width+overexcavate)*(virgin_basin_depth+overexcavate)))*storage_basins/27,0) -> 544 | D55: cubic yd | E55: If concrete basins are used, rather than tanks
A56: Backfill volume | B56: virgin_backfill_vol | C56: =ROUNDUP(virgin_excavation_vol-(virgin_basin_width*virgin_basin_length*virgin_basin_depth*storage_basins)/27,0) -> 412 | D56: cubic yd | E56: If concrete basins are used, rather than tanks
A57: Railing length | B57: virgin_railing | C57: =(virgin_basin_width*2+virgin_basin_length*2)*storage_basins*2 -> 144 | D57: lf | E57: If concrete basins are used, rather than tanks
A58: Number of Virgin GAC Storage tanks | B58: virgin_tanks | C58: =ROUNDUP(virgin_storage*7.48/max_back_tank_size,0) -> 1 | D58: units | E58: If tanks are used, rather than concrete basins
A59: Virgin GAC Storage tank volume | B59: virgin_tank_vol | C59: =virgin_storage*7.48/virgin_tanks -> 17432.13691 | D59: gal | E59: If tanks are used, rather than concrete basins
A61: Spent GAC Storage basin operating depth | B61: spent_basin_op_depth | C61: =ROUNDUP((spent_storage/storage_basins)^(1/3)*storage_ratio,0) -> 8 | D61: feet | E61: If concrete basins are used, rather than tanks
A62: Spent GAC Storage basin width | B62: spent_basin_width | C62: =ROUNDUP(((spent_storage/storage_basins)/spent_basin_op_depth)^0.5,0) -> 18 | D62: feet | E62: If concrete basins are used, rather than tanks
A63: Spent GAC Storage basin length | B63: spent_basin_length | C63: =spent_basin_width -> 18 | D63: feet | E63: If concrete basins are used, rather than tanks
A64: Depth including freeboard | B64: spent_basin_depth | C64: =spent_basin_op_depth+storage_freeboard -> 11 | D64: feet | E64: If concrete basins are used, rather than tanks
A65: Spent GAC Storage basin volume | B65: spent_basin_vol | C65: =ROUND(spent_basin_width*spent_basin_length*spent_basin_depth*7.48,0) -> 26659 | D65: gal | E65: If concrete basins are used, rather than tanks
A66: Concrete volume | B66: spent_conc_vol | C66: =ROUNDUP(((2*spent_basin_depth*spent_basin_length+2*spent_basin_depth*spent_basin_width+spent_basin_width*spent_basin_length)*1.2*conc_thick*storage_basins)/27,0) -> 50 | D66: cubic yd | E66: If concrete basins are used, rather than tanks
B67: spent_excavation_vol | C67: =ROUNDUP(((spent_basin_width+overexcavate)*(spent_basin_length+overexcavate)*(spent_basin_depth+overexcavate)+0.5*(3*(spent_basin_depth+overexcavate)*(spent_basin_width+overexcavate)*(spent_basin_depth+overexcavate)))*storage_basins/27,0) -> 544 | D67: cubic yd | E67: If concrete basins are used, rather than tanks
A68: Backfill volume | B68: spent_backfill_vol | C68: =ROUNDUP(spent_excavation_vol-(spent_basin_width*spent_basin_length*spent_basin_depth*storage_basins)/27,0) -> 412 | D68: cubic yd | E68: If concrete basins are used, rather than tanks
A69: Railing length | B69: spent_railing | C69: =(spent_basin_width*2+spent_basin_length*2)*storage_basins*2 -> 144 | D69: lf | E69: If concrete basins are used, rather than tanks
A70: Number of Spent GAC Storage tanks | B70: spent_tanks | C70: =ROUNDUP(spent_storage*7.48/max_back_tank_size,0) -> 1 | D70: units | E70: If tanks are used, rather than concrete basins
A71: Spent GAC Storage tank volume | B71: spent_tank_vol | C71: =spent_storage*7.48/spent_tanks -> 17432.13691 | D71: gal | E71: If tanks are used, rather than concrete basins
A73: Regenerated GAC Storage basin operating depth | B73: regen_basin_op_depth | C73: =ROUNDUP((regen_storage/storage_basins)^(1/3)*storage_ratio,0) -> 8 | D73: feet | E73: If concrete basins are used, rather than tanks
A74: Regenerated GAC Storage basin width | B74: regen_basin_width | C74: =ROUNDUP(((regen_storage/storage_basins)/regen_basin_op_depth)^0.5,0) -> 18 | D74: feet | E74: If concrete basins are used, rather than tanks
A75: Regenerated GAC Storage basin length | B75: regen_basin_length | C75: =regen_basin_width -> 18 | D75: feet | E75: If concrete basins are used, rather than tanks
A76: Depth including freeboard | B76: regen_basin_depth | C76: =regen_basin_op_depth+storage_freeboard -> 11 | D76: feet | E76: If concrete basins are used, rather than tanks
A77: Regenerated GAC Storage basin volume | B77: regen_basin_vol | C77: =ROUND(regen_basin_width*regen_basin_length*regen_basin_depth*7.48,0) -> 26659 | D77: gal | E77: If concrete basins are used, rather than tanks
A78: Concrete volume | B78: regen_conc_vol | C78: =ROUNDUP(((2*regen_basin_depth*regen_basin_length+2*regen_basin_depth*regen_basin_width+regen_basin_width*regen_basin_length)*1.2*conc_thick*storage_basins)/27,0) -> 50 | D78: cubic yd | E78: If concrete basins are used, rather than tanks
B79: regen_excavation_vol | C79: =ROUNDUP(((regen_basin_width+overexcavate)*(regen_basin_length+overexcavate)*(regen_basin_depth+overexcavate)+0.5*(3*(regen_basin_depth+overexcavate)*(regen_basin_width+overexcavate)*(regen_basin_depth+overexcavate)))*storage_basins/27,0) -> 544 | D79: cubic yd | E79: If concrete basins are used, rather than tanks
A80: Backfill volume | B80: regen_backfill_vol | C80: =ROUNDUP(regen_excavation_vol-(regen_basin_width*regen_basin_length*regen_basin_depth*storage_basins)/27,0) -> 412 | D80: cubic yd | E80: If concrete basins are used, rather than tanks
A81: Railing length | B81: regen_railing | C81: =(regen_basin_width*2+regen_basin_length*2)*storage_basins*2 -> 144 | D81: lf | E81: If concrete basins are used, rather than tanks
A82: Number of Regenerated GAC Storage tanks | B82: regen_tanks | C82: =ROUNDUP(regen_storage*7.48/max_back_tank_size,0) -> 1 | D82: units | E82: If tanks are used, rather than concrete basins
A83: Regenerated GAC Storage tank volume | B83: regen_tank_vol | C83: =regen_storage*7.48/regen_tanks -> 17432.13691 | D83: gal | E83: If tanks are used, rather than concrete basins

Sheet Pumps Pipe Structure
A1: Pumps, Piping, and Structure Calculations
A3: Calculation | B3: Range Name | C3: Value | D3: Units | E3: Guidance
A4: Pumps and Transfer Equipment
A5: GAC transfer method | B5: transfer_method | C5: =IF(transfer_method_I="slurry pumps",1,IF(transfer_method_I="eductors",2,3)) -> 2 | D5: <-- 1 for slurry pumps, 2 for eductors, 3 for manual transfer
A7: Booster pump rating | B7: pump_rating | C7: =IF(lines_pump_I="",IF(AND(ss_cat2=1,design_type=1),0,MIN(MAX(average_flow_rate+bp_flow_rate*average_flow_rate/design_flow_rate,(design_flow_rate+bp_flow_rate)/2)*(1+pump_safety_factor),max_pump_size)),IF(lines_pump_I=0,0,(design_flow_rate+bp_flow_rate)*(1+pump_safety_factor)/lines_pump_I)) -> 10000 | D7: gpm | E7: Includes safety factor
A8: Maximum pump size | B8: max_pump_size | C8: =VLOOKUP(10^6,pump_cost_cl,1)-1 -> 10000 | D8: gpm | E8: The largest pump size for which costs are available. Applies to booster pumps and backwash pumps. For booster pumps, will override lines per pump input, if this input results in pumps that are too large.
A9: Maximum chemical metering pump size | B9: max_cm_pump_size | C9: =MAX(VLOOKUP(10^6,ss_mmpump_cost_cl,1)-0.01,VLOOKUP(10^6,pvc_mmpump_cost_cl,1)-0.1) -> 760 | D9: gph | E9: The largest size for which costs are available.
A10: Number of booster pumps | B10: booster_pumps | C10: =IF(pump_rating=0,0,ROUNDUP((design_flow_rate+bp_flow_rate)*(1+pump_safety_factor)/pump_rating,0)) -> 7 | D10: units | E10: Operating pumps
A11: Total booster pumps | B11: total_booster_pumps | C11: =IF(booster_pumps=0,0,booster_pumps+NRD_pumps) -> 7 | D11: units | E11: Includes redundancy
A13: Backwash pumping flow needed | B13: back_pump_flow_total | C13: =water_flush*(1+pump_safety_factor) -> 4410 | D13: gpm | E13: Includes safety factor
A14: Number of backwash pumps | B14: backwash_pumps | C14: =IF(no_backwash=1,0,ROUNDUP(back_pump_flow_total/max_pump_size,0)+NRD_back_pumps) -> 2 | D14: pumps | E14: Multiple pumps used if total backwash flow is very high, includes redundant pumps
A15: Backwash pump rating | B15: back_pump_rating | C15: =IF(no_backwash=1,0,back_pump_flow_total/(backwash_pumps-NRD_back_pumps)) -> 4410 | D15: gpm
A17: Transfer rate required | B17: transfer_rate | C17: =GAC_each/transfer_time -> 13141.91496 | D17: lbs/hr
A18: Maximum eductor size | B18: max_eductor_size | C18: =VLOOKUP(10^6,eductor_size_table_cl,1)*GAC_density/7.48*60 -> 12874.33155 | D18: lbs/hr | E18: The largest size for which costs are available. Assumption used only if tanks are used.
A19: Number of eductors | B19: eductors | C19: =IF(transfer_method=2,ROUNDUP(transfer_rate/max_eductor_size,0)+NRD_eductors,0) -> 3 | D19: units
A20: Eductor size | B20: eductor_size | C20: =IF(transfer_method=2,VLOOKUP(transfer_rate/(eductors-NRD_eductors),eductor_size_table,2),"NA") -> 3 | D20: inches
A22: Piping Design
A23: Inlet and outlet pipe length | B23: in_out_pipe_length | C23: =2*facil_length -> 440 | D23: linear feet
A24: Inlet and outlet pipe flow | B24: in_out_pipe_flow | C24: =design_flow_rate -> 52133.33333 | D24: gpm
A25: Inlet and outlet piping diameter | B25: in_out_pipe_diam | C25: =VLOOKUP(in_out_pipe_flow,pipe_size_table_cl,2) -> 36 | D25: inches
A26: Process piping length | B26: proc_pipe_length | C26: =2*facil_length -> 440 | D26: linear feet
A27: Process pipe flow | B27: proc_pipe_flow | C27: =IF(design_type=1,flow_per_vessel,design_flow_rate/op_num_basins) -> 2621.373971 | D27: gpm
A28: Process pipe diameter | B28: proc_pipe_diam | C28: =VLOOKUP(proc_pipe_flow,pipe_size_table_cl,2) -> 12 | D28: inches
A29: Backwash piping length | B29: back_pipe_length | C29: =2.5*facil_length -> 550 | D29: linear feet
A30: Backwash pipe flow | B30: back_pipe_flow | C30: =water_flush -> 3528 | D30: gpm
A31: Backwash pipe diameter | B31: back_pipe_diam | C31: =VLOOKUP(back_pipe_flow,pipe_size_table_cl,2) -> 12 | D31: inches
A32: Bypass piping length | B32: bp_pipe_length | C32: =IF(bp_pct>0,2.5*facil_length,0) -> 0 | D32: linear feet
A33: Bypass pipe diameter | B33: bp_pipe_diam | C33: =IF(bp_pct>0,VLOOKUP(bp_flow_rate,pipe_size_table_cl,2),0) -> 0 | D33: inches
A34: Polymer addition pipe length | B34: polymer_pipe_length | C34: =IF(polymer_day=0,0,facil_length) -> 0 | D34: linear feet
A35: Polymer pipe flow | B35: polymer_pipe_flow | C35: =polymer_rate/60 -> 0 | D35: gpm
A36: Polymer pipe diameter | B36: polymer_pipe_diam | C36: =IF(polymer_day=0,0,VLOOKUP(polymer_pipe_flow,pipe_size_table_cl,2)) -> 0 | D36: inches
A38: Building Structure
A39: Backwash tank diameter | B39: bt_diam | C39: =ROUNDUP((2*(back_tank_vol/7.48)/PI())^(1/3),0) -> 0 | D39: feet
A40: Virgin GAC storage tank diameter | B40: vt_diam | C40: =ROUNDUP((2*(virgin_tank_vol/7.48)/PI())^(1/3),0) -> 12 | D40: feet
A41: Spent GAC storage tank diameter | B41: st_diam | C41: =ROUNDUP((2*(spent_tank_vol/7.48)/PI())^(1/3),0) -> 12 | D41: feet
A42: Regenerated GAC storage tank diameter | B42: rt_diam | C42: =ROUNDUP((2*(regen_tank_vol/7.48)/PI())^(1/3),0) -> 12 | D42: feet
A43: Residuals holding tank diameter | B43: ht_diam | C43: =ROUNDUP((2*(htank_vol/7.48)/PI())^(1/3),0) -> 19 | D43: feet
A44: Polymer storage tank diameter | B44: polymer_st_diam | C44: =ROUNDUP((2*(polymer_tank_vol/7.48)/PI())^(1/3),0) -> 0 | D44: feet
A45: Maximum access space per vessel or tank | B45: max_space_vessels | C45: =IF(AND(design_type=1,ss_cat2=1),max_space_vessels_pre,max_space_vessels_cust) -> 6 | D45: feet
A46: Access space per pressure vessel | B46: space_vessels | C46: =IF(system_type=2,max_space_vessels,IF(comm_diam>max_space_vessels,max_space_vessels,comm_diam)) -> 6 | D46: feet
A47: Access space per backwash tank | B47: space_bt | C47: =IF(bt_diam>max_space_vessels,max_space_vessels,bt_diam) -> 0 | D47: feet
A48: Access space per virgin GAC storage tank | B48: space_vt | C48: =IF(vt_diam>max_space_vessels,max_space_vessels,vt_diam) -> 6 | D48: feet
A49: Access space per spent GAC storage tank | B49: space_st | C49: =IF(st_diam>max_space_vessels,max_space_vessels,st_diam) -> 6 | D49: feet
A50: Access space per regenerated GAC storage tank | B50: space_rt | C50: =IF(rt_diam>max_space_vessels,max_space_vessels,rt_diam) -> 6 | D50: feet
A51: Access space per residuals holding tank | B51: space_ht | C51: =IF(ht_diam>max_space_vessels,max_space_vessels,ht_diam) -> 6 | D51: feet
A52: Access space per polymer holding tank | B52: space_polymer_st | C52: =IF(polymer_st_diam>max_space_vessels,max_space_vessels,polymer_st_diam) -> 0 | D52: feet
A53: Access space per pump | B53: space_pumps | C53: =IF(AND(design_type=1,ss_cat2=1),space_pumps_pre,space_pumps_cust) -> 4 | D53: feet
A54: Footprint for pressure vessels (large system assumptions) | C54: =IF(design_type=2,0,IF(tank_geom=1,ROUNDUP(((comm_diam+2*space_vessels)^2+(final_num_tanks-1)*(comm_diam+2*space_vessels)*(comm_diam+space_vessels)),0),IF(tank_geom=2,ROUNDUP((comm_diam+2*space_vessels)*(comm_height_length+2*space_vessels)+(final_num_tanks-1)*(comm_height_length+2*space_vessels)*(comm_diam+space_vessels),0)))) -> 43098 | D54: square feet
A55: Footprint for pressure vessels (skid mounted small system) | C55: =IF(design_type=2,0,IF(tank_geom=1,ROUNDUP(((comm_diam+2*space_vessels)^2+(final_num_tanks-1)*(comm_diam+2*space_vessels)*(comm_diam+space_vessels/2)),0),IF(tank_geom=2,ROUNDUP((comm_diam+2*space_vessels)*(comm_height_length+2*space_vessels)+(final_num_tanks-1)*(comm_height_length+2*space_vessels)*(comm_diam+space_vessels/2),0)))) -> 36762 | D55: square feet | E55: Space between skid mounted vessels is reduced, outside access space remains the same
A56: Footprint for gravity contactors | C56: =ROUNDUP(total_num_basins*basin_length*basin_width*2,0) -> 0 | D56: square feet | E56: Two times basin area for walkways and equipment
A57: Footprints for contactors and GAC transfer equipment | B57: vessel_fp | C57: =IF(ss_cat2=1,C55,C54)+C56+IF(transfer_method=1,ROUNDUP(IF(transfer_rate<40000,99.152*transfer_rate^0.0434,0.8761*transfer_rate^0.49),0),0) -> 43098 | D57: square feet
A58: Footprint for backwash tank | B58: back_tank_fp | C58: =IF(OUTPUT!L47=1,ROUNDUP(back_basins*back_basin_length*back_basin_width*2,0),IF(num_back_tanks=0,0,ROUNDUP((bt_diam+2*space_bt)^2+(num_back_tanks-1)*(bt_diam+2*space_bt)*(bt_diam+space_bt),0))) -> 0 | D58: square feet
A59: Footprint for booster pumps | C59: =IF(total_booster_pumps=0,0,ROUNDUP((VLOOKUP(pump_rating,pump_dim_table_cl,3)+space_pumps)*(VLOOKUP(pump_rating,pump_dim_table_cl,4)+2*space_pumps)+(total_booster_pumps-1)*(VLOOKUP(pump_rating,pump_dim_table_cl,3)+space_pumps)*(VLOOKUP(pump_rating,pump_dim_table_cl,4)+space_pumps),0)) -> 905 | D59: square feet
A60: Footprint for backwash pumps | C60: =IF(backwash_pumps=0,0,ROUNDUP((VLOOKUP(back_pump_rating,pump_dim_table_cl,3)+space_pumps)*(VLOOKUP(back_pump_rating,pump_dim_table_cl,4)+2*space_pumps)+(backwash_pumps-1)*(VLOOKUP(back_pump_rating,pump_dim_table_cl,3)+2*space_pumps)*(VLOOKUP(back_pump_rating,pump_dim_table_cl,4)+space_pumps),0)) -> 234 | D60: square feet
A61: Residuals pump footprint | C61: =IF(res_pumps=0,0,ROUNDUP((VLOOKUP(res_pump_rating,pump_dim_table_cl,3)+space_pumps)*(VLOOKUP(res_pump_rating,pump_dim_table_cl,4)+2*space_pumps)+(res_pumps-1)*(VLOOKUP(res_pump_rating,pump_dim_table_cl,3)+2*space_pumps)*(VLOOKUP(res_pump_rating,pump_dim_table_cl,4)+space_pumps),0)) -> 234 | D61: square feet
A62: Total footprint for pumps | B62: pump_fp | C62: =C59+C60+C61 -> 1373 | D62: square feet
A63: On-site regeneration footprint | B63: Onsite_regeneration_fp | C63: =IF(regen_type=1,121.3*regen_capacity^0.3656,0) -> 0 | D63: square feet | E63: Equations developed in Working draft of "Design and Cost Estimates for Advanced Water Treatment Technologies", 9/30/00, include access space.
A64: Virgin GAC storage footprint (for on-site regeneration) | B64: Virgin_GAC_storage_fp | C64: =IF(regen_type=1,IF(OUTPUT!L236=1,ROUNDUP((vt_diam+2*space_vt)^2+(virgin_tanks-1)*(vt_diam+2*space_vt)*(vt_diam+space_vt),0),ROUNDUP(virgin_basin_length*virgin_basin_width*2,0)),0) -> 0 | D64: square feet
A65: Spent GAC storage footprint (for on-site regeneration) | B65: Spent_GAC_storage_fp | C65: =IF(regen_type=1,IF(OUTPUT!L239=1,ROUNDUP((st_diam+2*space_st)^2+(spent_tanks-1)*(st_diam+2*space_st)*(st_diam+space_st),0),ROUNDUP(spent_basin_length*spent_basin_width*2,0)),0) -> 0 | D65: square feet
A66: Regenerated GAC storage footprint (for on-site regeneration) | B66: Regenerated_GAC_storage_fp | C66: =IF(regen_type=1,IF(OUTPUT!L242=1,ROUNDUP((rt_diam+2*space_rt)^2+(regen_tanks-1)*(rt_diam+2*space_rt)*(rt_diam+space_rt),0),ROUNDUP(regen_basin_length*regen_basin_width*2,0)),0) -> 0 | D66: square feet
A67: Residuals holding tank footprint | B67: htank_fp | C67: =IF(res_holding<>"tanks",0,ROUNDUP((ht_diam+2*space_ht)^2+(htanks-1)*(ht_diam+2*space_ht)*(ht_diam+space_ht),0)) -> 961 | D67: square feet
A68: Residuals holding basin footprint | B68: hbasin_fp | C68: =IF(res_holding<>"basins",0,ROUNDUP(hbasins*hbasin_length*hbasin_width*2,0)) -> 0 | D68: square feet
A69: Polymer storage tank footprint | B69: polymer_fp | C69: =ROUNDUP((polymer_st_diam+2*space_polymer_st)^2+(polymer_tanks-1)*(polymer_st_diam+2*space_polymer_st)*(polymer_st_diam+space_polymer_st),0) -> 0 | D69: square feet
A70: Coagulant storage footprint | B70: cstore_fp | C70: =ROUNDUP(coag_store/coag_density/storage_height,0) -> 0 | D70: square feet
A71: Office space | B71: office_fp | C71: =VLOOKUP(design_flow,labor_table_cl,3)*IF(ss_cat2=1,space_office_small,space_office) -> 780 | D71: square feet
A72: Exact building footprint required | B72: fp_required | C72: =vessel_fp+back_tank_fp+pump_fp+Onsite_regeneration_fp+Virgin_GAC_storage_fp+Spent_GAC_storage_fp+Regenerated_GAC_storage_fp+office_fp+htank_fp+hbasin_fp+cstore_fp+polymer_fp -> 46212 | D72: square feet
A73: Footprint of building 1 | B73: build1_fp | C73: =ROUNDUP(IF(fp_required<add_2nd_building,fp_required,vessel_fp),-1) -> 43100 | D73: square feet | E73: If total footprint is large, building 1 contains vessels only. If total footprint is small, building 1 contains all equipment.
A74: Footprint of building 2 | B74: build2_fp | C74: =ROUNDUP(IF(fp_required<add_2nd_building,0,back_tank_fp+pump_fp+Onsite_regeneration_fp+Virgin_GAC_storage_fp+Spent_GAC_storage_fp+Regenerated_GAC_storage_fp+office_fp+htank_fp+hbasin_fp+cstore_fp+polymer_fp),-1) -> 3120 | D74: square feet | E74: If total footprint is large, a second building is used for pumps, backwash, onsite regeneration, and chemical storage
A75: Total footprint | B75: total_fp | C75: =build1_fp+build2_fp -> 46220 | D75: square feet
A76: Concrete Class A for vessel and pumps padding | B76: concrete | C76: =ROUNDUP((fp_required-office_fp)*IF(ss_cat2=1,pad_thick_small,pad_thick)/27,0) -> 842 | D76: cubic yards
A77: Facility dimension assumed square | B77: facil_length | C77: =ROUNDUP(total_fp^0.5,-1) -> 220 | D77: feet
A78: Additional footprint for evaporation pond | B78: ep_fp | C78: =IF(ep_cells=0,0,ROUNDUP((ep_cell_side+2*non_fire_buffer)^2+(ep_cells-1)*(ep_cell_side+2*non_fire_buffer)*(ep_cell_side+non_fire_buffer),0)) -> 0 | D78: square feet
A79: Land acquisition required | B79: land_required | C79: =ROUNDUP(((build1_fp)^0.5+(2*non_fire_buffer))*((build1_fp)^0.5+(non_fire_buffer+fire_buffer))+IF(build2_fp=0,0,((build2_fp)^0.5+(2*non_fire_buffer))*((build2_fp)^0.5+(non_fire_buffer+fire_buffer)))+sept_fp+ep_fp+solids_pad_area,-2)/43560 -> 1.54040404 | D79: acres
A80: Land Cost per acre | B80: land_cost | C80: =VLOOKUP(design_flow,land_cost_cl,3) -> 125211.8554 | D80: $/acre

Sheet Instrumentation and Control
A1: Instrumentation and Control Calculations
A3: Calculation | B3: Range Name | C3: Value | D3: Units | E3: Guidance
A4: From Inputs
A5: Component level | B5: component_level | C5: =IF(component_level_I="high cost",2,IF(component_level_I="mid cost",1,"")) ->  | D5: blank = low cost, 1 = mid cost, 2 = high cost
A6: Manual system controls | B6: manual | C6: =IF(manual_I="manual",1,IF(manual_I="semi-automated",2,IF(manual_I="fully automated",3,IF(component_level="",1,IF(component_level=2,3,CHOOSE(ss_cat2,1,3,3)))))) -> 1 | D6: 1 = fully manual system, 2 = semi-automated system, 3 = fully automated system. | E6: Based on system size and component level (see cell comment), unless user overrides on input sheet
A8: Valves and Instrumentation
A9: Size of valves for inlet and outlet lines | B9: in_valve_size | C9: =in_out_pipe_diam -> 36 | D9: inches
A10: Size of valves for process line | B10: tank_valve_size | C10: =proc_pipe_diam -> 12 | D10: inches
A11: Size of valves for backwash pipe line | B11: back_valve_size | C11: =back_pipe_diam -> 12 | D11: inches
A12: Size of valves for bypass line | B12: bypass_valve_size | C12: =bp_pipe_diam -> 0 | D12: inches
A13: Size of valves for polymer line | B13: polymer_valve_size | C13: =polymer_pipe_diam -> 0 | D13: inches
A15: Number of MOVs on process line per contactor | B15: proc_MOV_vessel | C15: =VLOOKUP(IF(Num_tanks=1,"proc_mov_vessel_par","proc_mov_vessel_ser"),valve_table,manual+1,FALSE) -> 0 | D15: valves/contactor
A16: Number of MOVs for process line | B16: tot_proc_MOVs | C16: =IF(design_type=1,final_num_tanks,total_num_basins)*proc_MOV_vessel+total_booster_pumps*VLOOKUP("proc_MOV_pump",valve_table,manual+1,FALSE) -> 0 | D16: valves
A17: Number of MOVs for backwash line | B17: tot_back_MOVs | C17: =IF(design_type=1,final_num_tanks,total_num_basins)*VLOOKUP("back_MOV_vessel",valve_table,manual+1,FALSE)+backwash_pumps*VLOOKUP("back_MOV_pump",valve_table,manual+1,FALSE)+IF(OUTPUT!L47=1,back_basins,num_back_tanks)*VLOOKUP("back_MOV_tank",valve_table,manual+1,FALSE)+IF(no_back_tank=1,VLOOKUP("back_MOV_no_back",valve_table,manual+1,FALSE),0) -> 0 | D17: valves
A18: Number of MOVs for bypass line | B18: tot_bp_MOVs | C18: =IF(bp_pct=0,0,VLOOKUP("tot_bp_movs",valve_table,manual+1,FALSE)) -> 0 | D18: valves
A19: Number of MOVs for polymer addition line | B19: tot_polymer_MOVs | C19: =IF(polymer_day=0,0,(cm_pumps_polymer)*VLOOKUP("chem_MOV_pump",valve_table,manual+1,FALSE)) -> 0 | D19: valves
A20: Total number of MOVs | B20: tot_MOVs | C20: =tot_proc_MOVs+tot_back_MOVs+tot_bp_MOVs+tot_polymer_MOVs+total_res_MOVs -> 0 | D20: valves
A22: Number of manual valves on influent and effluent line | B22: tot_in_man | C22: =IF(add_on=1,in_man_addon,in_man) -> 2 | D22: valves
A23: Number of manual valves on process line per contactor | B23: proc_man_vessel_cont | C23: =VLOOKUP(IF(Num_tanks=1,"proc_man_vessel_par","proc_man_vessel_ser"),valve_table,manual+1,FALSE) -> 3 | D23: valves/contactor
A24: Number of manual valves for process line | B24: tot_proc_man | C24: =IF(design_type=1,(proc_man_vessel_cont+proc_man_vessel)*final_num_tanks,proc_man_vessel_cont*total_num_basins)+total_booster_pumps*VLOOKUP("proc_man_pump",valve_table,manual+1,FALSE) -> 274 | D24: valves
A25: Number of manual valves for backwash line | B25: tot_back_man | C25: =IF(design_type=1,final_num_tanks,total_num_basins)*VLOOKUP("back_man_vessel",valve_table,manual+1,FALSE)+backwash_pumps*VLOOKUP("back_man_pump",valve_table,manual+1,FALSE)+IF(OUTPUT!L47=1,back_basins,num_back_tanks)*VLOOKUP("back_man_tank",valve_table,manual+1,FALSE)+IF(no_back_tank=1,VLOOKUP("back_man_no_back",valve_table,manual+1,FALSE),0) -> 133 | D25: valves
A26: Number of manual valves for bypass line | B26: tot_bp_man | C26: =IF(bp_pct=0,0,VLOOKUP("tot_bp_man",valve_table,manual+1,FALSE)) -> 0 | D26: valves
A27: Number of manual valves for hydrogen peroxide line | B27: tot_polymer_man | C27: =IF(polymer_day=0,0,(cm_pumps_polymer)*VLOOKUP("chem_man_pump",valve_table,manual+1,FALSE)) -> 0 | D27: valves
A29: Number of check valves on influent line | B29: tot_in_chv | C29: =IF(add_on=1,in_chv_addon,in_chv) -> 1 | D29: valves
A30: Number of check valves backwash line | B30: tot_back_chv | C30: =back_chv_pump*backwash_pumps+IF(no_backwash=1,back_chv_no_back,0) -> 2 | D30: valves
A31: Number of check valves polymer line | B31: tot_polymer_chv | C31: =polymer_chv_pump*cm_pumps_polymer -> 0 | D31: valves
A33: Size of flow meters for influent line | B33: in_meter_size | C33: =in_out_pipe_diam -> 36 | D33: inches
A34: Size of flow meters for process line | B34: proc_meter_size | C34: =proc_pipe_diam -> 12 | D34: inches
A35: Size of flow meters for backwash line | B35: back_meter_size | C35: =back_pipe_diam -> 12 | D35: inches
A36: Number of flow meters for process line | B36: tot_fm_proc | C36: =fm_proc*IF(design_type=1,final_num_tanks,total_num_basins) -> 0 | D36: units
A37: Number of flow meters for influent and effluent line | B37: tot_fm_in | C37: =IF(add_on=1,fm_in_addon,fm_in) -> 1 | D37: units
A39: Total level switch/alarms | B39: tot_level_switch | C39: =IF(design_type=1,final_num_tanks*IF(ss_cat2=1,level_switch_small,level_switch),total_num_basins*IF(ss_cat2=1,level_switch_small_g,level_switch_g)) -> 0 | D39: units
A40: Total high/low alarms | B40: tot_back_alarm | C40: =IF(OUTPUT!L47=1,back_basins,num_back_tanks)*alarm_back -> 0 | D40: units
A41: Total pH controls | B41: pH_controls | C41: =IF(design_type=2,total_num_basins*IF(ss_cat2=1,pH_controls_small_g,pH_controls_g),IF(ss_cat2=1,add_pH_controls_small,add_pH_controls)) -> 2 | D41: units
A42: Total temperature meters | B42: tot_temp_meters | C42: =IF(ss_cat2=1,temp_meters_small,temp_meters) -> 2 | D42: units
A43: Total turbidity meters | B43: tot_turb_meters | C43: =IF(design_type=1,turb_tank*final_num_tanks,turb_tank_g*total_num_basins)+IF(ss_cat2=1,add_turb_small,add_turb)+IF(design_type=1,IF(ss_cat2=1,add_turb_small_p,add_turb_p),0) -> 3 | D43: units
A44: Total head loss sensors | B44: tot_head_sens | C44: =IF(ss_cat2=1,head_tank_small,head_tank)*IF(design_type=1,final_num_tanks,total_num_basins) -> 65 | D44: units
A45: Sampling ports | B45: ports | C45: =ports_tank*IF(design_type=1,final_num_tanks,total_num_basins)+add_ports+IF(bp_pct>0,ports_bp,0) -> 68 | D45: units
A46: Total drive controllers | B46: tot_switches | C46: =IF(manual=2,0,S_booster_pump*total_booster_pumps+S_back_pump*backwash_pumps+S_res_pump*(res_pumps+cm_pumps_polymer)+CHOOSE(transfer_method,S_slurry,S_eductor*eductors,0)+CHOOSE(res_transfer_method,S_slurry*(res_slurry_pumps),S_eductor*(res_eductors),0)+S_mixer*hmixers+IF(grav_feed_rate<>0,S_feeder*IF(res_holding="tanks",htanks,IF(res_holding="basins",hbasins,0)),0)) -> 14 | D46: units
A48: System Controls
A49: Flow meter lookup code - inlet/outlet | B49: fm_lkp_io | C49: =IF(OUTPUT!L160=1,"flow_op",IF(OUTPUT!L161=1,"flow_prop",IF(OUTPUT!L162=1,"flow_ven","flow_mag"))) -> flow_op | E49: These codes are used to look up SCADA requirements, which depend on the type of flow meter selected.
A50: Flow meter lookup code - process | B50: fm_lkp_proc | C50: =IF(OUTPUT!L165=1,"flow_op",IF(OUTPUT!L166=1,"flow_prop",IF(OUTPUT!L167=1,"flow_ven","flow_mag"))) -> flow_mag
A51: Flow meter lookup code - backwash | B51: fm_lkp_back | C51: =IF(OUTPUT!L170=1,"flow_op",IF(OUTPUT!L171=1,"flow_prop",IF(OUTPUT!L172=1,"flow_ven","flow_mag"))) -> flow_ven
A52: Flow meter lookup code - residuals | B52: fm_lkp_res | C52: =IF(OUTPUT!L175=1,"flow_op",IF(OUTPUT!L176=1,"flow_prop",IF(OUTPUT!L177=1,"flow_ven","flow_mag"))) -> flow_ven
A53: Total discrete inputs | B53: discrete_inputs | C53: =VLOOKUP(fm_lkp_io,port_table,2,FALSE)*tot_fm_in+VLOOKUP(fm_lkp_proc,port_table,2,FALSE)*tot_fm_proc+VLOOKUP(fm_lkp_back,port_table,2,FALSE)*tot_fm_back+VLOOKUP(fm_lkp_res,port_table,2,FALSE)*tot_fm_res+VLOOKUP("alarm",port_table,2,FALSE)*(tot_level_switch+tot_back_alarm+tot_res_alarm)+VLOOKUP("ph",port_table,2,FALSE)*pH_controls+VLOOKUP("temp",port_table,2,FALSE)*tot_temp_meters+VLOOKUP("turb",port_table,2,FALSE)*tot_turb_meters+VLOOKUP("head",port_table,2,FALSE)*tot_head_sens+VLOOKUP("port",port_table,2,FALSE)*ports+VLOOKUP("switch",port_table,2,FALSE)*tot_switches+VLOOKUP("valve",port_table,2,FALSE)*tot_MOVs -> 176 | D53: units
A54: Total discrete outputs | B54: discrete_outputs | C54: =IF(manual=2,0,VLOOKUP(fm_lkp_io,port_table,3,FALSE)*tot_fm_in+VLOOKUP(fm_lkp_proc,port_table,3,FALSE)*tot_fm_proc+VLOOKUP(fm_lkp_back,port_table,3,FALSE)*tot_fm_back+VLOOKUP(fm_lkp_res,port_table,3,FALSE)*tot_fm_res+VLOOKUP("alarm",port_table,3,FALSE)*(tot_level_switch+tot_back_alarm+tot_res_alarm)+VLOOKUP("ph",port_table,3,FALSE)*pH_controls+VLOOKUP("temp",port_table,3,FALSE)*tot_temp_meters+VLOOKUP("turb",port_table,3,FALSE)*tot_turb_meters+VLOOKUP("head",port_table,3,FALSE)*tot_head_sens+VLOOKUP("port",port_table,3,FALSE)*ports+VLOOKUP("switch",port_table,3,FALSE)*tot_switches+VLOOKUP("valve",port_table,3,FALSE)*tot_MOVs) -> 15 | D54: units
A55: Total analog inputs | B55: analog_inputs | C55: =VLOOKUP(fm_lkp_io,port_table,4,FALSE)*tot_fm_in+VLOOKUP(fm_lkp_proc,port_table,4,FALSE)*tot_fm_proc+VLOOKUP(fm_lkp_back,port_table,4,FALSE)*tot_fm_back+VLOOKUP(fm_lkp_res,port_table,4,FALSE)*tot_fm_res+VLOOKUP("alarm",port_table,4,FALSE)*(tot_level_switch+tot_back_alarm+tot_res_alarm)+VLOOKUP("ph",port_table,4,FALSE)*pH_controls+VLOOKUP("temp",port_table,4,FALSE)*tot_temp_meters+VLOOKUP("turb",port_table,4,FALSE)*tot_turb_meters+VLOOKUP("head",port_table,4,FALSE)*tot_head_sens+VLOOKUP("port",port_table,4,FALSE)*ports+VLOOKUP("switch",port_table,4,FALSE)*tot_switches+VLOOKUP("valve",port_table,4,FALSE)*tot_MOVs -> 13 | D55: units
A56: Total analog outputs | B56: analog_outputs | C56: =IF(manual=2,0,VLOOKUP(fm_lkp_io,port_table,5,FALSE)*tot_fm_in+VLOOKUP(fm_lkp_proc,port_table,5,FALSE)*tot_fm_proc+VLOOKUP(fm_lkp_back,port_table,5,FALSE)*tot_fm_back+VLOOKUP(fm_lkp_res,port_table,5,FALSE)*tot_fm_res+VLOOKUP("alarm",port_table,5,FALSE)*(tot_level_switch+tot_back_alarm+tot_res_alarm)+VLOOKUP("ph",port_table,5,FALSE)*pH_controls+VLOOKUP("temp",port_table,5,FALSE)*tot_temp_meters+VLOOKUP("turb",port_table,5,FALSE)*tot_turb_meters+VLOOKUP("head",port_table,5,FALSE)*tot_head_sens+VLOOKUP("port",port_table,5,FALSE)*ports+VLOOKUP("switch",port_table,5,FALSE)*tot_switches+VLOOKUP("valve",port_table,5,FALSE)*tot_MOVs) -> 3 | D56: units
A58: I/O Discrete Output Modules | B58: plc_discrete_output | C58: =ROUNDUP(discrete_outputs/32,0) -> 1 | D58: units
A59: I/O Discrete Input Modules | B59: plc_discrete_input | C59: =ROUNDUP(discrete_inputs/32,0) -> 6 | D59: units
A60: I/O Combination Analog Modules | B60: plc_combination_analog | C60: =ROUNDUP((analog_inputs + analog_outputs)/12,0) -> 2 | D60: units
A61: Number of CPUs | B61: plc_cpu | C61: =IF(add_on=1,plc_cpu_addon,plc_cpu_standalone) -> 2 | D61: units
A62: Ethernet modules | B62: plc_ethernet | C62: =IF(add_on=1,plc_ethernet_addon,plc_ethernet_standalone) -> 2 | D62: units
A63: Total number of PLC slots used | B63: plc_slots | C63: =plc_cpu + plc_ethernet + plc_discrete_input + plc_discrete_output + plc_combination_analog -> 13 | D63: units
A64: Expansions required | B64: plc_expansions | C64: =IF(plc_slots<=9,0,ROUNDUP((plc_slots-9)/8,0)) -> 1 | D64: units
A65: PLC Rack/Power Supplies | B65: plc_rack | C65: =IF(add_on=1,0,1+plc_expansions) -> 2 | D65: units
A66: Base Expansion Modules | B66: plc_base_expansion | C66: =plc_expansions -> 1 | D66: units
A67: Base Expansion Controller Modules | B67: plc_base_expansion_controller | C67: =plc_expansions -> 1 | D67: units
A68: Operator interfaces | B68: plc_interface | C68: =IF(add_on=1,plc_interface_addon,plc_interface_standalone) -> 2 | D68: units
A69: UPSs | B69: ups | C69: =IF(add_on=1,ups_addon,ups_standalone) -> 1 | D69: units
A70: Number of computer workstations | B70: workstations | C70: =IF(add_on=1,0,ROUNDUP(Operator_LOE/2080/shifts_day/workstation_ratio,0)) -> 2 | D70: units
A71: Number of printers | B71: printers | C71: =IF(add_on=1,0,ROUNDUP(workstations/printer_ratio,0)) -> 1 | D71: units

Sheet Residuals Management
A1: Residuals Management Calculations
A3: Calculation | B3: Range Name | C3: Value | D3: Units | E3: Guidance
A4: From Inputs
A5: Discharge option for spent backwash | B5: res_s2_opt | C5: =IF(res_s2_opt_I="surface water",1,IF(res_s2_opt_I="POTW",2,IF(res_s2_opt_I="recycle",3,IF(res_s2_opt_I="septic system",4,5)))) -> 2 | D5: <-- 1 for surface water, 2 for POTW, 3 for recycle,4 for septic system, 5 for evaporation pond
A6: Holding tank for spent backwash | B6: res_s1_opt | C6: =IF(OR(res_s2_opt=4,res_s2_opt=5),2,IF(OR(res_s2_opt=3,res_s1_opt_I="holding tank"),1,2)) -> 1 | D6: <-- 1 for holding tank, 2 for no holding tank
A7: Characteristics of holding tank solids | B7: solids_haz | C7: =IF(solids_haz_I="non-hazardous",1,IF(solids_haz_I="hazardous",2,IF(solids_haz_I="radioactive",3,4))) -> 1 | D7: <-- 1 for non-hazardous, 2 for hazardous, 3 for radioactive, 4 for hazardous radioactive
A9: Spent Backwash
A10: Single event volume | B10: res_vol | C10: =total_backwash -> 35280 | D10: gal | E10: Backwashing one vessel
A11: Time between events | B11: res_stagger_time | C11: =back_interval*60/IF(design_type=1,final_num_tanks,total_num_basins) -> 44.30769231 | D11: minutes
A12: Actual residuals discharge flow rate | B12: res_flow_actual | C12: =IF(OR(res_s1_opt=1,res_s2_opt=3),res_vol/res_stagger_time,res_vol/backwash_time) -> 796.25 | D12: gpm | E12: Accounts for flow equalization if holding tanks used
A13: Design residuals discharge flow rate | B13: res_flow | C13: =IF(OR(res_s1_opt=1,res_s2_opt=3),res_cap_factor*res_vol/res_stagger_time,res_flow_actual) -> 1592.5 | D13: gpm | E13: Accounts for less than perfect staggering if holding tanks are used
A14: Annual residuals dischage | B14: res_flow_annual | C14: =res_vol*IF(design_type=1,final_num_tanks,total_num_basins)*(365*24/back_interval) -> 418509000 | D14: gal
A16: Evaporation Pond or Holding/Septic Tank Solids
A17: TSS in residuals | B17: TSS_residuals | C17: =(influent_TSS-effluent_TSS)*average_flow*1000000*(back_interval/24)/(res_vol*IF(design_type=1,final_num_tanks,total_num_basins)) -> 49.10518053 | D17: ppm
A18: Evaporation pond TSS accumulation | B18: ep_solids | C18: =IF(res_s2_opt=5,TSS_residuals*res_flow_annual*3.785/1000/453.59/dredging_freq,0) -> 0 | D18: lbs
A19: Holding tank annual TSS accumulation | C19: =IF(OR(res_s2_opt=5,AND(res_holding="none",num_sept_tanks=0)),0,TSS_residuals*IF(coag_res=1,coag_TSSrem,htank_TSSrem)*res_flow_annual*3.785/1000/453.59) -> 42872.07809 | D19: lbs/year
A20: Holding tank annual coagulant accumulation | C20: =IF(AND(res_holding<>"none",coag_res=1),IF(coag_type<>1,coag_dose*coag_spf*8.34*res_flow_annual/10^6)+IF(coag_type<>2,polymer_dose*polymer_spf*8.34*res_flow_annual/10^6),0) -> 0 | D20: lbs/year
A21: Holding tank annual solids accumulation | B21: ht_solids | C21: =C20+C19 -> 42872.07809 | D21: lbs/year
A22: Holding tank cleaning frequency | B22: sol_disp_freq | C22: =IF(res_s2_opt=5,dredging_freq,IF(res_holding="none",0,ROUNDUP((ht_solids/ht_solids_density*7.48)/(IF(res_holding="tanks",htanks*htank_vol,hbasins*hbasin_vol)*htank_clean_pct),0))) -> 2 | D22: times per year
A23: Septic tank cleaning frequency | B23: septic_disp_freq | C23: =IF(num_sept_tanks=0,0,(ht_solids/ht_solids_density*7.48)/(num_sept_tanks*sept_tank_vol*htank_clean_pct)) -> 0 | D23: times per year
A24: Residual solids quantity (total per event) | B24: res_solids | C24: =IF(AND(res_holding="none",num_sept_tanks=0,ep_solids=0),0,IF(res_s2_opt=5,ep_solids/2000,ht_solids/IF(res_holding="none",septic_disp_freq,sol_disp_freq)/2000)) -> 10.71801952 | D24: tons
A26: Spent Media
A27: Replacement/disposal frequency | B27: disp_freq | C27: =IF(OR(regen_type=3,regen_type=5,regen_type=6,regen_type=7),12/bed_life,0) -> 0 | D27: times per year
A28: Spent media quantity (total per event) | B28: spent_media | C28: =IF(OR(regen_type=3,regen_type=5,regen_type=6,regen_type=7),GAC/2000,0) -> 0 | D28: tons
A29: Spent media quantity (average per year) | B29: spent_media_yr | C29: =spent_media*disp_freq -> 0 | D29: tons
A31: Capital Items
A32: Holding tanks (for flow equalization)
A33: Maximum holding tank size | B33: max_htank_size | C33: =MAX(VLOOKUP(10^6,st_bwt_cost_cl,1)-1,VLOOKUP(10^6,fg_bwt_cost_cl,1)-1,VLOOKUP(10^6,hdpe_bwt_cost_cl,1)-1) -> 282544 | D33: gal | E33: The largest size for which costs are available.
A34: Number of holding tanks | B34: htanks | C34: =IF(coag_res=1,0,IF(OR(res_s1_opt=1,res_s2_opt=3),ROUNDUP(res_cap_factor*res_vol/max_htank_size,0),0)) -> 1 | D34: units | E34: Use basins, instead of tanks, when cogulant is added
A35: Holding tank volume | B35: htank_vol | C35: =IF(htanks=0,0,res_cap_factor*res_vol/htanks) -> 70560 | D35: gal
A37: Holding basins (for flow equalization)
A38: Holding basin redundancy factor | B38: hbasin_redun | C38: =IF(coag_res=1,ROUNDUP(res_coag_settle_time/res_stagger_time,0),1) -> 1 | E38: To account for minumum coagulation time, when concrete basins are used, rather than tanks
A39: Number of holding basins | B39: hbasins | C39: =IF(OR(res_s1_opt=1,res_s2_opt=3),hbasins_default*hbasin_redun,0) -> 1 | D39: units | E39: If concrete basins are used, rather than tanks
A40: Total residuals storage volume in cubic feet | B40: total_hvol_ft | C40: =IF(hbasins=0,0,res_cap_factor*res_vol*hbasin_redun/7.48) -> 9433.15508 | D40: cubic feet | E40: If concrete basins are used, rather than tanks
A41: Residuals storage volume per basin in cubic feet | B41: hvol_ft | C41: =IF(hbasins=0,0,total_hvol_ft/hbasins) -> 9433.15508 | D41: cubic feet | E41: If concrete basins are used, rather than tanks
A42: Holdin basin operating depth | B42: hbasin_op_depth | C42: =IF(hbasins=0,0,ROUNDUP(hvol_ft^(1/3)*holding_ratio,0)) -> 13 | D42: ft | E42: If concrete basins are used, rather than tanks
A43: Holding basin width | B43: hbasin_width | C43: =IF(hbasins=0,0,ROUNDUP((hvol_ft/hbasin_op_depth)^0.5,0)) -> 27 | D43: ft | E43: If concrete basins are used, rather than tanks
A44: Holding basin length | B44: hbasin_length | C44: =hbasin_width -> 27 | D44: ft | E44: If concrete basins are used, rather than tanks
A45: Holding basin depth including freeboard | B45: hbasin_depth | C45: =IF(hbasins=0,0,hbasin_op_depth+holding_freeboard) -> 16 | D45: ft | E45: If concrete basins are used, rather than tanks
A46: Holding basin volume | B46: hbasin_vol | C46: =ROUND(hbasin_width*hbasin_length*hbasin_depth*7.48,0) -> 87247 | D46: gal | E46: If concrete basins are used, rather than tanks
A47: Concrete volume | B47: hconc_vol | C47: =(2*(hbasin_width*hbasins+conc_thick*(hbasins+1))*hbasin_depth*conc_thick+(hbasins+1)*hbasin_length*hbasin_depth*conc_thick+(hbasin_length+2*conc_thick)*(hbasin_width*hbasins+conc_thick*(hbasins+1))*conc_thick)/27 -> 97.51851852 | D47: cubic yards | E47: If concrete basins are used, rather than tanks
A48: Excavation volume | B48: hexcavation_vol | C48: =IF(hbasins=0,0,((hbasins*hbasin_width+(hbasins+1)*conc_thick+overexcavate)*(hbasin_length+2*conc_thick+overexcavate)*(hbasin_depth+conc_thick+overexcavate)+0.5*(3*(hbasin_depth+conc_thick+overexcavate)*(hbasin_depth+conc_thick+overexcavate)*(hbasin_length+2*conc_thick+overexcavate)))/27) -> 1655.5 | D48: cubic yards | E48: If concrete basins are used, rather than tanks
A49: Backfill volume | B49: hbackfill_vol | C49: =IF(hbasins=0,0,hexcavation_vol-(hbasins*hbasin_width+(hbasins+1)*conc_thick)*(hbasin_length+2*conc_thick)*(hbasin_depth+conc_thick)/27) -> 1125.981481 | D49: cubic yards | E49: If concrete basins are used, rather than tanks
A50: Railing length | B50: hrailing | C50: =IF(hbasins=0,0,2*(hbasins*hbasin_width+2*conc_thick/2+(hbasins-1)*conc_thick)+2*(hbasin_length+2*conc_thick/2)) -> 112 | D50: lf | E50: If concrete basins are used, rather than tanks
A52: Residuals holding type selected | B52: res_holding | C52: =IF(OR(res_s2_opt=5,res_s1_opt=2),"none",IF(AND(hbasins<>0,coag_res=1),"basins",IF(OUTPUT!L52=1,"basins","tanks"))) -> tanks | E52: Based on priority lookups on the output sheet, always basins when coagulant is added
A54: Ferric Chloride Addition
A55: Gravimetric dry feeder rating | B55: grav_feed_rate | C55: =IF(AND(res_holding<>"none",coag_res=1,coag_type<>1),coag_dose*8.34*res_vol/10^6/backwash_time/IF(res_holding="tanks",htanks,hbasins),0) -> 0 | D55: lbs/min
A56: Volumetric dry feeder rating | B56: vol_feed_rate | C56: =grav_feed_rate/coag_density -> 0 | D56: cfm
A57: Mixers per tank | B57: hmix_per_tank | C57: =IF(AND(res_holding<>"none",coag_res=1,coag_type<>1),ROUNDUP(IF(res_holding="tanks",htank_vol,hbasin_vol)/1000*hmix_hp_per/hmix_hp_max,0),0) -> 0 | D57: units
A58: Max holding tank mixer horsepower | B58: hmix_hp_max | C58: =VLOOKUP(10^6,imp_mix_cost_cl,1)-0.1 -> 20 | D58: hp | E58: The largest impeller mixer size available
A59: Number of mixers | B59: hmixers | C59: =IF(AND(res_holding<>"none",coag_res=1,coag_type<>1),IF(res_holding="tanks",htanks,hbasins)*hmix_per_tank,0) -> 0 | D59: units
A60: Mixer size for holding tanks (if coagulant is used) | B60: hmix_size | C60: =IF(AND(res_holding<>"none",coag_res=1,coag_type<>1),IF(res_holding="tanks",htank_vol,hbasin_vol)/1000*hmix_hp_per/hmix_per_tank,0) -> 0 | D60: hp
A61: Ferric chloride in storage | B61: coag_store | C61: =IF(AND(res_holding<>"none",coag_res=1,coag_type<>1),coag_dose*8.34*res_flow_annual/10^6/365*cstore_days,0) -> 0 | D61: lbs
A63: Polymer Addition
A64: Polymer needed per event | B64: polymer_day | C64: =IF(AND(res_holding<>"none",coag_res=1,coag_type<>2),polymer_dose*8.34*res_vol/10^6/polymer_density,0) -> 0 | D64: gal
A65: Polymer storage in gallons | B65: polymer_storage | C65: =IF(AND(res_holding<>"none",coag_res=1,coag_type<>2),polymer_dose*8.34*res_flow_annual/10^6/polymer_density/365*cstore_days,0) -> 0 | D65: gal
A66: Polymer storage in pounds | B66: polymer_storage_lbs | C66: =polymer_storage*polymer_density -> 0 | D66: lbs
A67: Maximum chemical storage tank size | B67: max_chem_tank_size | C67: =MAX(VLOOKUP(10^6,pl_cst_cost_cl,1)-1,VLOOKUP(10^6,fg_cst_cost_cl,1)-1,VLOOKUP(10^6,ss_cst_cost_cl,1)-1) -> 30025 | D67: gallons | E67: The largest size for which costs are available
A68: Number of chemical storage tanks | B68: polymer_tanks | C68: =ROUNDUP(polymer_storage/max_chem_tank_size,0) -> 0 | D68: units
A69: Chemical storage tank size | B69: polymer_tank_vol | C69: =IF(polymer_tanks>0,polymer_storage/polymer_tanks,0) -> 0 | D69: gal
A70: Maximum chemical tank mixer horsepower | B70: cmix_hp_max | C70: =MAX(VLOOKUP(10^6,port_mix_cost_cl,1)-0.1,VLOOKUP(10^6,mount_mix_cost_cl,1)-0.1,VLOOKUP(10^6,imp_mix_cost_cl,1)-0.1) -> 20 | D70: hp
A71: Mixers per storage tank | B71: polymer_cmix_per_tank | C71: =IF(polymer_tanks<>0,ROUNDUP(polymer_tank_vol/1000*cmix_hp_per/cmix_hp_max,0),0) -> 0 | D71: units
A72: Number of storage tank mixers | B72: polymer_cmixers | C72: =IF(AND(res_holding<>"none",coag_res=1,coag_type<>2),polymer_tanks*polymer_cmix_per_tank,0) -> 0 | D72: units
A73: Mixer size for storage tanks | B73: polymer_cmix_size | C73: =IF(polymer_tanks<>0,polymer_tank_vol/1000*cmix_hp_per/polymer_cmix_per_tank,0) -> 0 | D73: hp
A74: Solution feed rate | B74: polymer_rate | C74: =polymer_day/backwash_time*60 -> 0 | D74: gph
A75: Number of chemical metering pumps | B75: cm_pumps_polymer | C75: =IF(polymer_day=0,0,ROUNDUP(polymer_rate/max_cm_pump_size,0)+NRD_cm_pump) -> 0 | D75: units
A76: Chemical metering pump rating | B76: cm_pump_rating_polymer | C76: =IF(polymer_day=0,0,polymer_rate*(1+pump_safety_factor)/(cm_pumps_polymer-NRD_cm_pump)) -> 0 | D76: gph
A78: Pumps
A79: Number of pumps | B79: res_pumps | C79: =IF(add_on=1,0,IF(res_holding<>"none",ROUNDUP(res_flow*(1+pump_safety_factor)/max_pump_size,0)+NRD_res_pump,0)) -> 2 | D79: units
A80: Pump design rating | B80: res_pump_rating | C80: =IF(add_on=1,0,IF(res_holding<>"none",res_flow*(1+pump_safety_factor)/(res_pumps-NRD_res_pump),0)) -> 1990.625 | D80: gpm
A82: Solids transfer for holding tanks
A83: Transfer rate required | B83: res_transfer_rate | C83: =res_solids*2000/htransfer_time -> 5359.009761 | D83: lbs/hr
A84: Transfer rate in gallons | B84: res_transfer_rate_gal | C84: =res_transfer_rate/(ht_solids_density/7.48*60) -> 26.72359534 | D84: gpm
A85: Number of slurry pump systems | B85: res_slurry_pumps | C85: =IF(res_transfer_method=1,1,0) -> 0 | D85: units
A86: Number of eductors | B86: res_eductors | C86: =IF(res_transfer_method<>2,0,ROUNDUP(res_transfer_rate_gal/max_eductor_size,0)) -> 0 | D86: units
A87: Effective transfer rate | B87: res_eff_transfer_rate | C87: =IF(res_eductors=0,0,res_transfer_rate_gal/res_eductors) -> 0 | D87: gpm
A88: Eductor size | B88: res_eductor_size | C88: =IF(res_transfer_method=2,VLOOKUP(res_eff_transfer_rate,eductor_size_table_cl,2),"NA") -> NA | D88: inches
A90: Solids drying pad
A91: Area required | B91: solids_pad_area | C91: =IF(res_s2_opt=5,0,ROUNDUP(MAX(spent_media*2000/GAC_density,IF(res_s2_opt=4,0,(res_solids*2000/ht_solids_density)/solids_storage_height)),-1)) -> 430 | D91: square ft | E91: Hold the greater of one event of media removal or one holding tank cleanout
A92: Concrete | B92: solids_pad_concrete | C92: =ROUNDUP(solids_pad_area*IF(ss_cat2=1,pad_thick_small,pad_thick)/27,0) -> 8 | D92: cubic yds
A94: Piping
A95: Pipe length | B95: res_pipe_length | C95: =facil_length+IF(add_on=1,0,IF(OR(contam_type=4,contam_type=5),add_res_pipe_length_TCE,add_res_pipe_length)) -> 260 | D95: ft
A96: Pipe diameter | B96: res_pipe_diam | C96: =MAX(min_res_pipe_size,VLOOKUP(res_flow,pipe_size_table_cl,2)) -> 10 | D96: inches
A97: Buried pipe length | B97: buried_res_pipe_length | C97: =IF(OR(add_on=1, res_s2_opt=3),0,IF(OR(contam_type=4,contam_type=5),add_res_pipe_length_TCE,add_res_pipe_length)) -> 40 | D97: ft
A98: Trench depth to top of pipe | B98: res_trn_depth | C98: =MAX(frost,min_trench_depth) -> 38 | D98: in. diam
A99: Thrust force | B99: res_thrust_force | C99: =VLOOKUP(res_pipe_diam,thrust_block_table_cl,2)*2.2 -> 17189.50337 | D99: inches
A100: Bearing Area (L x H) | B100: res_bearing_area | C100: =1.5*res_thrust_force/(soil_dens*(res_trn_depth/12+res_pipe_diam/12)*Coeff_Kp*Reduction) -> 47.43345155 | D100: lbs
A101: L | C101: =res_bearing_area/C102 -> 9.739964224 | D101: square ft
A102: H | C102: =(res_bearing_area/2)^0.5 -> 4.869982112 | D102: ft
A103: F | C103: =MAX(0.5,res_pipe_diam/12) -> 0.8333333333 | D103: ft
A104: T | C104: =C101/2 -> 4.869982112 | D104: ft
A105: Thrust block volume | B105: res_block_vol | C105: =IF(OR(buried_res_pipe_length=0,res_pipe_diam=0),0,(C104+(C97/12)/2)*(C101+C103)/2*C102/27) -> 6.233029913 | D105: cy
A106: Trench cross-section area | B106: res_trench_area | C106: =IF(res_pipe_diam=0,0,(res_pipe_diam/12+2)*(bedding_depth/12+res_pipe_diam/12+res_trn_depth/12)+(bedding_depth/12+res_pipe_diam/12+res_trn_depth/12)^2*TAN(trench_angle)) -> 33 | D106: cy
A107: Trench volume to discharge point | C107: =res_trench_area*buried_res_pipe_length/27 -> 48.88888889 | D107: square ft
A108: Trench volume total | B108: res_trench_vol | C108: =IF(OR(buried_res_pipe_length=0,res_pipe_diam=0),0,C107+res_block_vol) -> 55.1219188 | D108: cy
A109: Bedding cross sectional surface area | C109: =IF(res_pipe_diam=0,0,(res_pipe_diam/12+2)*(bedding_depth/12+res_pipe_diam/12*bedding_pct)+(bedding_depth/12+res_pipe_diam/12*bedding_pct)^2*TAN(trench_angle)-((res_pipe_diam/12/2)^2*ACOS((res_pipe_diam/12/2-bedding_pct*res_pipe_diam/12)/(res_pipe_diam/12/2))-(res_pipe_diam/12/2-res_pipe_diam/12*bedding_pct)*((2*res_pipe_diam/12/2*res_pipe_diam/12*bedding_pct-(res_pipe_diam/12*bedding_pct)^2)^0.5))) -> 2.402051241 | D109: square ft
A110: Bedding volume | B110: res_pipe_bedding_vol | C110: =C109*buried_res_pipe_length/2/27 -> 1.779297216 | D110: cy
A112: Valves and instrumentation
A113: Residuals valve size | B113: res_valve_size | C113: =res_pipe_diam -> 10 | D113: inches
A114: Number of MOVs for residuals line | B114: total_res_MOVs | C114: =VLOOKUP("res_MOV_pump",valve_table,manual+1,FALSE)*res_pumps+VLOOKUP("res_MOV_tank",valve_table,manual+1,FALSE)*IF(res_holding="tanks",htanks,IF(res_holding="basins",hbasins,0))+VLOOKUP("res_MOV_ep",valve_table,manual+1,FALSE)*ep_cells -> 0 | D114: valves
A115: Number of manual valves for residual line | B115: total_res_man | C115: =VLOOKUP("res_man_pump",valve_table,manual+1,FALSE)*res_pumps+VLOOKUP("res_man_tank",valve_table,manual+1,FALSE)*IF(res_holding="tanks",htanks,IF(res_holding="basins",hbasins,0))+VLOOKUP("res_man_ep",valve_table,manual+1,FALSE)*ep_cells -> 3 | D115: valves
A116: Number of check valves for residuals line | B116: tot_res_chv | C116: =res_chv_pump*res_pumps+IF(res_pumps=0,res_chv_no_pump,0) -> 2 | D116: valves
A117: Total high/low alarms | B117: tot_res_alarm | C117: =IF(res_holding="tanks",htanks,IF(res_holding="basins",hbasins,0))*alarm_res -> 1 | D117: units
A118: Residuals flow meter size | B118: res_meter_size | C118: =res_pipe_diam -> 10 | D118: inches
A120: Septic System
A121: Maximum septic tank volume | B121: max_sept_tank_vol | C121: =VLOOKUP(10^6,septic_tank_cost_cl,1)-1 -> 100000 | D121: gal | E121: The largest size for which costs are available
A122: Number of septic tanks | B122: num_sept_tanks | C122: =IF(res_s2_opt<>4,0,ROUNDUP(res_vol*sept_tank_sf/max_sept_tank_vol,0)) -> 0 | D122: units
A123: Septic tank volume | B123: sept_tank_vol | C123: =IF(num_sept_tanks=0,0,MAX(res_vol*sept_tank_sf,min_sept_tank_vol)/num_sept_tanks) -> 0 | D123: gal
A124: Septic discharge design flow | B124: sept_design_flow | C124: =IF(num_sept_tanks=0,0,res_vol*sept_tank_sf/MIN(min_sept_disch_time,res_stagger_time/(24*60))) -> 0 | D124: gpd
A125: Inflitration area required | B125: sept_infil_area | C125: =sept_design_flow/sept_LTAR -> 0 | D125: sq ft
A126: Trench bottom area required | B126: sept_trench_bot_area | C126: =sept_infil_area*sept_trench_w/(sept_trench_w+2*sept_gravel_d_below) -> 0 | D126: sq ft | E126: Typical state/local regulations allow trench sides below pipe to be counted as part of infiltration area
A127: Number of trenches required | B127: sept_trenches | C127: =IF(num_sept_tanks=0,0,MAX(sept_min_trenches,ROUNDUP(sept_trench_bot_area/(sept_trench_w*sept_max_trench_l),0))) -> 0
A128: Trench length | B128: sept_trench_l | C128: =IF(num_sept_tanks=0,0,sept_trench_bot_area/(sept_trenches*sept_trench_w)) -> 0 | D128: feet
A129: Drain field gravel required | B129: sept_gravel_vol | C129: =sept_trench_l*sept_trenches*sept_trench_w*sept_gravel_d/27 -> 0 | D129: cu yd
A130: Trench excavation required | B130: sept_trench_excav_vol | C130: =sept_trench_l*sept_trenches*sept_trench_d*sept_trench_w/27 -> 0 | D130: cu yd
A131: Septic tank side length | B131: sept_tank_side | C131: =(sept_tank_vol/7.48)^(1/3) -> 0 | D131: feet | E131: Assumes cube shape for simplicity
A132: Tank excavation required | B132: sept_tank_exav_vol | C132: =num_sept_tanks*(sept_tank_vol/7.48+(sept_tank_side+sept_overexcav*2)^2*sept_overexcav+(sept_tank_side+sept_overexcav*2)*sept_tank_side*2*sept_overexcav+sept_tank_side^2*2*sept_overexcav)/27 -> 0 | D132: cu yd
A133: Number of distribution boxes | B133: sept_dist_boxes | C133: =ROUNDUP(sept_trenches/sept_dist_connections,0) -> 0
A134: Septic distribution pipe length | B134: sept_pipe_length | C134: =sept_trenches*sept_trench_l -> 0 | D134: feet | E134: Assumes piping to septic tank and laterals between trenches are accounted for by existing residuals piping cost
A135: Drain field land area required | B135: sept_fp | C135: =IF(num_sept_tanks=0,0,((sept_trench_l+sept_buffer*2)*(sept_trenches*sept_trench_w+(sept_trenches-1)*sept_trench_dist+sept_buffer*2))+sept_tank_side^2) -> 0 | D135: sq ft
A137: Evaporation Ponds
A138: Total open surface area required | B138: ep_total_sa | C138: =IF(res_s2_opt=5,(res_flow_annual/7.48)*ep_safety_factor/((pan_evap*evap_ratio-precip)*0.0328),0) -> 0 | D138: square feet
A139: Required depth for solids accumulation | B139: ep_solids_depth | C139: =IF(res_s2_opt=5,ep_solids/ep_solids_density/ep_total_sa,0) -> 0 | D139: feet
A140: Required depth for liquid accumulation | B140: ep_water_depth | C140: =IF(res_s2_opt=5,(res_flow_annual/7.48)*winter_days/365/ep_total_sa,0) -> 0 | D140: feet
A141: Total excavated depth | B141: ep_depth | C141: =IF(res_s2_opt=5,ep_solids_depth+ep_water_depth+ep_freeboard,0) -> 0 | D141: feet | E141: Additional freeboard provided above grade by dike
A142: Number of cells | B142: ep_cells | C142: =IF(res_s2_opt=5,IF(ROUNDUP(ep_total_sa/(max_ep_cell_area*43560),0)<min_ep_cells,min_ep_cells,ROUNDUP(ep_total_sa/(max_ep_cell_area*43560),0)),0) -> 0 | D142: cells
A143: Cell side length | B143: ep_cell_side | C143: =IF(res_s2_opt=5,SQRT(ep_total_sa/ep_cells),0) -> 0 | D143: feet
A144: Total excavation volume | B144: ep_excavation_vol | C144: =IF(res_s2_opt=5,ROUNDUP(((ep_cell_side+ep_overexcavate)^2*(ep_depth+ep_overexcavate)+0.5*(3*(ep_depth+ep_overexcavate)*(ep_cell_side+ep_overexcavate)*(ep_depth+ep_overexcavate)))*ep_cells/27,0),0) -> 0 | D144: cubic yards
A145: Total backfill volume | B145: ep_backfill_vol | C145: =IF(res_s2_opt=5,ROUNDUP(ep_excavation_vol-(ep_cell_side^2*ep_depth*ep_cells)/27,0),0) -> 0 | D145: cubic yards
A146: Dike volume | B146: dike_volume | C146: =IF(res_s2_opt=5,ep_cells*ep_cell_side*4*dike_xsection/27,0) -> 0 | D146: cubic yards
A147: Liner area | B147: liner_area | C147: =(ep_cell_side^2+ep_cell_side*(ep_depth+2)*4)*ep_cells -> 0 | D147: square feet | E147: Assumes liner extends 2 feet up dike side slope
A149: O&M Items
A150: Pumps
A151: Pump operating horsepower | C151: =IF(res_pumps=0,0,res_flow_actual*res_pump_psi/(res_pumps-NRD_res_pump)/pump_efficiency/14.7*33.9*8.34/550/60) -> 15.46901515 | D151: hp
A152: Energy per pump | C152: =C151*0.7457/1000*24*365 -> 101.0487427 | D152: MWh/yr
A153: Energy for all active pumps | B153: res_pump_energy | C153: =C152*(res_pumps-NRD_res_pump) -> 101.0487427 | D153: MWh/yr
A154: Residuals pump material cost | B154: res_pump_mtl | C154: =IF(OUTPUT!J152="--",0,OUTPUT!J152*booster_pump_maintenance) -> 539.6486437 | D154: /yr
A156: Coagulant Use
